Authority,Department,Spending Area,Expense Type,Posting Date,Reference,Amount,Supplier 
OXFORDSHIRE CC,ENVIRONMENT AND ECONOMY,"	LOWER WINDRUSH PROJ",EQUIPMENT,28/10/2020,9258727509,43.95,AMAZON.CO.UK MC9W69214
OXFORDSHIRE CC,ENVIRONMENT AND ECONOMY,"	LOWER WINDRUSH PROJ",EQUIPMENT,28/10/2020,9258727509,50.70,AMAZON.CO.UK MC9W69214
OXFORDSHIRE CC,SOCIAL AND COMMUNITY SERVICES,ADMIN SUPPORT REVIEW,PURCHASE OF IT EQUIPMENT,28/10/2020,9258727569,32.97,AMZNMKTPLACE
OXFORDSHIRE CC,"CHILDRENS, YOUNG PEOPLE AND FAMILIES","	LEAVING CARE SOUTH",MATERIALS,28/10/2020,9258727587,27.00,ARGOS LTD
OXFORDSHIRE CC,"CHILDRENS, YOUNG PEOPLE AND FAMILIES",EYNSHAM,CATERING PROVISIONS,28/10/2020,9258727601,126.04,TESCO STORES 2008
OXFORDSHIRE CC,"CHILDRENS, YOUNG PEOPLE AND FAMILIES",HOUSE PROJECT,IT SOFTWARE,28/10/2020,9258727631,90.00,OCTS TRAINIG
OXFORDSHIRE CC,"CHILDRENS, YOUNG PEOPLE AND FAMILIES",HOUSE PROJECT,IT SOFTWARE,28/10/2020,9258727635,90.00,OCTS TRAINIG
OXFORDSHIRE CC,"CHILDRENS, YOUNG PEOPLE AND FAMILIES",HOUSE PROJECT,CATERING PROVISIONS,28/10/2020,9258727641,2.05,TESCO STORES 4377
OXFORDSHIRE CC,"CHILDRENS, YOUNG PEOPLE AND FAMILIES","	LOOKED AFTER SOUTH",CATERING PROVISIONS,28/10/2020,9258727681,3.00,CO-OPERATIVE FOOD
OXFORDSHIRE CC,"CHILDRENS, YOUNG PEOPLE AND FAMILIES","	LOOKED AFTER SOUTH",OTHER TRANSPORT ARRANGEMENTS,28/10/2020,9258727689,8.00,OCC RINGGO PARKING M
OXFORDSHIRE CC,"CHILDRENS, YOUNG PEOPLE AND FAMILIES",THAME E&A HOME,VEHICLES REPAIRS AND MAINTENANCE,28/10/2020,9258725631,94.57,1ST CHOICE DOMESTICS L
OXFORDSHIRE CC,"CHILDRENS, YOUNG PEOPLE AND FAMILIES","	LOOKED AFTER SOUTH",OTHER EXPENSES,28/10/2020,9258725679,31.99,FUNKYPIGEON.COM
OXFORDSHIRE CC,"CHILDRENS, YOUNG PEOPLE AND FAMILIES",SOUTH FSS STATUTORY - ABINGDON,OTHER TRANSPORT ARRANGEMENTS,28/10/2020,9258725711,67.50,WWW.THEKEY.CO.UK
OXFORDSHIRE CC,"CHILDRENS, YOUNG PEOPLE AND FAMILIES",CSS WALLINGFORD,CATERING PROVISIONS,28/10/2020,9258725783,184.91,ASDA GROCERIES ONLINE
OXFORDSHIRE CC,"CHILDRENS, YOUNG PEOPLE AND FAMILIES",CSS WALLINGFORD,CATERING PROVISIONS,28/10/2020,9258725789,-8.42,ASDA GROCERIES ONLINE
OXFORDSHIRE CC,"CHILDRENS, YOUNG PEOPLE AND FAMILIES","	LOOKED AFTER CITY 1",DRUGS AND MEDICAL SUPPLIES,28/10/2020,9258725825,9.29,AMZNMKTPLACE
OXFORDSHIRE CC,"CHILDRENS, YOUNG PEOPLE AND FAMILIES","	LOOKED AFTER CITY 1",DRUGS AND MEDICAL SUPPLIES,28/10/2020,9258725833,16.89,AMZNMKTPLACE
OXFORDSHIRE CC,"CHILDRENS, YOUNG PEOPLE AND FAMILIES","	LOOKED AFTER SOUTH",OTHER TRANSPORT ARRANGEMENTS,28/10/2020,9258727691,30.00,OXFORD BUS COMPANY
OXFORDSHIRE CC,CORPORATE CORE,,"SUPPLIES, STATIONERY AND MATERIALS",28/10/2020,9258727745,6.48,LYRECO UK LTD
OXFORDSHIRE CC,CORPORATE CORE,,"SUPPLIES, STATIONERY AND MATERIALS",28/10/2020,9258727751,234.60,LYRECO UK LTD
OXFORDSHIRE CC,CORPORATE CORE,,"SUPPLIES, STATIONERY AND MATERIALS",28/10/2020,9258727761,48.82,LYRECO UK LTD
OXFORDSHIRE CC,ENVIRONMENT AND ECONOMY,HARD FM,HARDWARE AND CROCKERY,28/10/2020,9258725851,134.96,SCREWFIX DIRECT
OXFORDSHIRE CC,ENVIRONMENT AND ECONOMY,HARD FM,GENERAL MAINTENANCE,28/10/2020,9258725877,14.48,WOLSELEY UK
OXFORDSHIRE CC,ENVIRONMENT AND ECONOMY,HARD FM,GENERAL MAINTENANCE,28/10/2020,9258725887,51.86,WOLSELEY UK
OXFORDSHIRE CC,ENVIRONMENT AND ECONOMY,HARD FM,FURNITURE,28/10/2020,9258725895,22.20,WWW.GASPRODUCTS.CO.UK
OXFORDSHIRE CC,ENVIRONMENT AND ECONOMY,HARD FM,GENERAL MAINTENANCE,28/10/2020,9258725903,200.60,WOLSELEY UK
OXFORDSHIRE CC,ENVIRONMENT AND ECONOMY,HARD FM,HARDWARE AND CROCKERY,28/10/2020,9258725929,79.96,SCREWFIX DIRECT
OXFORDSHIRE CC,"CHILDRENS, YOUNG PEOPLE AND FAMILIES","	DISABILITIES TEAM-C",ENTERTAINMENT EXPENSES,28/10/2020,9258725965,29.40,WWW.PARTYMANWORLD.CO.U
OXFORDSHIRE CC,"CHILDRENS, YOUNG PEOPLE AND FAMILIES",THAME E&A HOME,MATERIALS,28/10/2020,9258725987,1.00,POUNDLAND LTD 1230
OXFORDSHIRE CC,ENVIRONMENT AND ECONOMY,"	SIGNING & LINING",HARDWARE AND CROCKERY,28/10/2020,9258726053,59.95,SCREWFIX DIRECT
OXFORDSHIRE CC,"CHILDRENS, YOUNG PEOPLE AND FAMILIES",NTH FAM SUPRT-BCSTR,NON-STAFF SUBSISTENCE AND EXPENSES,28/10/2020,9258726101,14.97,VUE ENTERTAINMENT LTD
OXFORDSHIRE CC,"CHILDRENS, YOUNG PEOPLE AND FAMILIES",WITNEY,CATERING PROVISIONS,28/10/2020,9258726145,5.50,SAINSBURYS SACAT 0632
OXFORDSHIRE CC,SOCIAL AND COMMUNITY SERVICES,DIDCOT MOVE-ON HOME,CATERING PROVISIONS,28/10/2020,9258726165,42.58,WM MORRISONS STORE
OXFORDSHIRE CC,SOCIAL AND COMMUNITY SERVICES,DIDCOT MOVE-ON HOME,CATERING PROVISIONS,28/10/2020,9258726171,12.99,NANA INTERNATIONAL
OXFORDSHIRE CC,CORPORATE CORE,LIBRARY COLLECTIONS,"BOOKS, DVDS AND CDS",28/10/2020,9258726199,478.54,OVERDRIVE DIST
OXFORDSHIRE CC,CORPORATE CORE,LIBRARY COLLECTIONS,"BOOKS, DVDS AND CDS",28/10/2020,9258726209,839.46,OVERDRIVE DIST
OXFORDSHIRE CC,SOCIAL AND COMMUNITY SERVICES,CSS BICESTER,MATERIALS,28/10/2020,9258726263,24.38,AMAZON.CO.UK MC0BN1254
OXFORDSHIRE CC,SOCIAL AND COMMUNITY SERVICES,CSS BICESTER,MATERIALS,28/10/2020,9258726269,5.25,AMAZON.CO.UK MC2IO5S64
OXFORDSHIRE CC,SOCIAL AND COMMUNITY SERVICES,CSS BICESTER,MATERIALS,28/10/2020,9258726277,3.06,AMAZON.CO.UK MC9BK12F4
OXFORDSHIRE CC,SOCIAL AND COMMUNITY SERVICES,CSS BICESTER,MATERIALS,28/10/2020,9258726283,4.99,AMAZON.CO.UK MC9SZ2SV4
OXFORDSHIRE CC,CORPORATE CORE,"MARKETING, COMMUNICATIONS & ENGAGEMENT","PUBLICITY, PROMOTIONS AND ADVERTISEMENT",28/10/2020,9258726323,24.54,SNAP  ADS
OXFORDSHIRE CC,SOCIAL AND COMMUNITY SERVICES,LOOKED AFTER SOUTH,CATERING,28/10/2020,9258726401,.99,MCDONALDS
OXFORDSHIRE CC,"CHILDRENS, YOUNG PEOPLE AND FAMILIES","	FAM SUPP SOUTH",PAYMENT TO GOVERNMENT DEPARTMENTS,28/10/2020,9258726453,11.00,OXFORDSHIRE CC MOTO1
OXFORDSHIRE CC,"CHILDRENS, YOUNG PEOPLE AND FAMILIES","	LOOKED AFTER CITY 1",OTHER TRANSPORT ARRANGEMENTS,28/10/2020,9258726461,6.70,M6 TOLL
OXFORDSHIRE CC,"CHILDRENS, YOUNG PEOPLE AND FAMILIES","	LOOKED AFTER CITY 1",OTHER TRANSPORT ARRANGEMENTS,28/10/2020,9258726467,6.70,M6 TOLL
OXFORDSHIRE CC,"CHILDRENS, YOUNG PEOPLE AND FAMILIES","	LOOKED AFTER CITY 1",VEHICLE FUEL,28/10/2020,9258726471,54.08,ROCKBAY SERVICE ST
OXFORDSHIRE CC,"CHILDRENS, YOUNG PEOPLE AND FAMILIES","	RIVERSIDE CENTRE",CATERING,28/10/2020,9258726489,15.67,SUBWAY
OXFORDSHIRE CC,"CHILDRENS, YOUNG PEOPLE AND FAMILIES",NORTH FSS- WITNEY,ENTERTAINMENT EXPENSES,28/10/2020,9258726497,22.50,ROCKSTAR CLIMBING ONLI
OXFORDSHIRE CC,"CHILDRENS, YOUNG PEOPLE AND FAMILIES","	LEAVING CARE CITY 2",CATERING,28/10/2020,9258726523,2.63,COSTA COFFEE 43043010
OXFORDSHIRE CC,SOCIAL AND COMMUNITY SERVICES,COMMENTS&INFORMATION,POSTAGE AND DELIVERY,28/10/2020,9258726581,6.70,POST OFFICE COUNTER
OXFORDSHIRE CC,SOCIAL AND COMMUNITY SERVICES,RESIDENTIAL STRATEGY,CATERING PROVISIONS,28/10/2020,9258726597,6.00,SAINSBURYS SACAT 0631
OXFORDSHIRE CC,SHARED SERVICES,COVID-19 COD,PURCHASE OF IT EQUIPMENT,28/10/2020,9258726661,68.00,AMZNMKTPLACE
OXFORDSHIRE CC,"CHILDRENS, YOUNG PEOPLE AND FAMILIES",THAME E&A HOME,MATERIALS,28/10/2020,9258726735,5.99,ROBERT DYAS HOLDNG LTD
OXFORDSHIRE CC,"CHILDRENS, YOUNG PEOPLE AND FAMILIES",THAME E&A HOME,CATERING PROVISIONS,28/10/2020,9258726743,7.99,T K MAXX
OXFORDSHIRE CC,"CHILDRENS, YOUNG PEOPLE AND FAMILIES",THAME E&A HOME,CATERING PROVISIONS,28/10/2020,9258726749,16.99,T K MAXX
OXFORDSHIRE CC,"CHILDRENS, YOUNG PEOPLE AND FAMILIES",THAME E&A HOME,CATERING PROVISIONS,28/10/2020,9258726755,41.70,ASDA STORE 4442
OXFORDSHIRE CC,"CHILDRENS, YOUNG PEOPLE AND FAMILIES",THAME E&A HOME,DRUGS AND MEDICAL SUPPLIES,28/10/2020,9258726763,2.98,SUPERDRUG STORES PLC
OXFORDSHIRE CC,"CHILDRENS, YOUNG PEOPLE AND FAMILIES",CSC COVID-19,CATERING,28/10/2020,9258726783,10.93,ALDI 10 775
OXFORDSHIRE CC,"CHILDRENS, YOUNG PEOPLE AND FAMILIES",CSC COVID-19,CATERING,28/10/2020,9258726791,2.59,WM MORRISONS STORE
OXFORDSHIRE CC,"CHILDRENS, YOUNG PEOPLE AND FAMILIES",CSC COVID-19,CATERING,28/10/2020,9258726799,10.86,WM MORRISONS STORE
OXFORDSHIRE CC,"CHILDRENS, YOUNG PEOPLE AND FAMILIES",CSC COVID-19,CATERING,28/10/2020,9258726805,16.39,WM MORRISONS STORE
OXFORDSHIRE CC,"CHILDRENS, YOUNG PEOPLE AND FAMILIES","	OCCG GRANT",CATERING,28/10/2020,9258726815,3.35,COSTA COFFEE
OXFORDSHIRE CC,ENVIRONMENT AND ECONOMY,"	ROW MAINT",VEHICLES REPAIRS AND MAINTENANCE,28/10/2020,9258726891,66.00,ALL TYRES (OXFORD) LTD
OXFORDSHIRE CC,ENVIRONMENT AND ECONOMY,"	ROW MAINT",MATERIALS,28/10/2020,9258726899,6.60,JEWSON LTD
OXFORDSHIRE CC,SOCIAL AND COMMUNITY SERVICES,LEAVING CARE NORTH,CATERING,28/10/2020,9258727097,12.77,SUBWAY-LEXO RED LTD
OXFORDSHIRE CC,ENVIRONMENT AND ECONOMY,"	FLEET OPERATIONS",ROAD FUND LICENCES AND MOTS,28/10/2020,9258727245,272.50,DVLA VEHICLE TAX
OXFORDSHIRE CC,ENVIRONMENT AND ECONOMY,"	FLEET OPERATIONS",POSTAGE AND DELIVERY,28/10/2020,9258727257,1.95,POST OFFICE COUNTER
OXFORDSHIRE CC,"CHILDRENS, YOUNG PEOPLE AND FAMILIES","	40 THE MOORS",CATERING PROVISIONS,28/10/2020,9258727377,20.02,TESCO STORES 4480
OXFORDSHIRE CC,"CHILDRENS, YOUNG PEOPLE AND FAMILIES","	40 THE MOORS",MATERIALS,28/10/2020,9258727389,12.79,AMZNMKTPLACE AMAZON.CO
OXFORDSHIRE CC,"CHILDRENS, YOUNG PEOPLE AND FAMILIES","	LOOKED AFTER SOUTH",MATERIALS,28/10/2020,9258727421,2.00,POUNDLAND LTD
OXFORDSHIRE CC,ENVIRONMENT AND ECONOMY,HARD FM,MATERIALS,27/10/2020,9255446097,120.73,ADVANCED WATER
OXFORDSHIRE CC,"CHILDRENS, YOUNG PEOPLE AND FAMILIES",THAME E&A HOME,CATERING,27/10/2020,9255446099,23.50,BANBURY FISH BAR
OXFORDSHIRE CC,"CHILDRENS, YOUNG PEOPLE AND FAMILIES",THAME E&A HOME,CLOTHING AND UNIFORMS,27/10/2020,9255446101,77.00,MATALAN
OXFORDSHIRE CC,"CHILDRENS, YOUNG PEOPLE AND FAMILIES",THAME E&A HOME,CATERING PROVISIONS,27/10/2020,9255446103,46.92,ASDA SUPERSTORE
OXFORDSHIRE CC,"CHILDRENS, YOUNG PEOPLE AND FAMILIES",THAME E&A HOME,CLOTHING AND UNIFORMS,27/10/2020,9255446105,-12.50,MATALAN
OXFORDSHIRE CC,"CHILDRENS, YOUNG PEOPLE AND FAMILIES",THAME E&A HOME,PAYMENTS TO TRANSPORT OPERATORS,27/10/2020,9255446107,43.50,HADDENHAM & THAME PARK
OXFORDSHIRE CC,"CHILDRENS, YOUNG PEOPLE AND FAMILIES",NTH EARLY HELP-BNRBY,POSTAGE AND DELIVERY,27/10/2020,9255446111,75.80,ROYAL MAIL ONLINE SHOP
OXFORDSHIRE CC,"CHILDRENS, YOUNG PEOPLE AND FAMILIES",NORTH FSS- BANBURY,PAYMENT TO GOVERNMENT DEPARTMENTS,27/10/2020,9255446121,11.00,OXFORDSHIRE CC MOTO1
OXFORDSHIRE CC,"CHILDRENS, YOUNG PEOPLE AND FAMILIES",DIDCOT MOVE-ON HOME,CATERING PROVISIONS,27/10/2020,9255446123,22.65,SAINSBURYS SACAT 2067
OXFORDSHIRE CC,"CHILDRENS, YOUNG PEOPLE AND FAMILIES",WITNEY,CATERING PROVISIONS,27/10/2020,9255446125,13.62,SAINSBURYS SACAT 0632
OXFORDSHIRE CC,SOCIAL AND COMMUNITY SERVICES,DIDCOT MOVE-ON HOME,CATERING PROVISIONS,27/10/2020,9255446129,21.87,WM MORRISONS STORE
OXFORDSHIRE CC,"CHILDRENS, YOUNG PEOPLE AND FAMILIES","	LOOKED AFTER CITY 1",PAYMENT TO GOVERNMENT DEPARTMENTS,27/10/2020,9255446131,11.00,GEN REGISTER OFFICE
OXFORDSHIRE CC,SOCIAL AND COMMUNITY SERVICES,CSS BICESTER,MATERIALS,27/10/2020,9255446139,9.03,AMZNMKTPLACE
OXFORDSHIRE CC,SOCIAL AND COMMUNITY SERVICES,CSS BICESTER,MATERIALS,27/10/2020,9255446141,24.80,AMZNMKTPLACE
OXFORDSHIRE CC,ENVIRONMENT AND ECONOMY,QUANTUM GRAVITOMETER,EXHIBITIONS (PURCHAS,27/10/2020,9255446143,228.00,WESTMINSTER FORUM PROJ
OXFORDSHIRE CC,CORPORATE CORE,"MARKETING, COMMUNICATIONS & ENGAGEMENT","PUBLICITY, PROMOTIONS AND ADVERTISEMENT",27/10/2020,9255446145,33.61,SNAP  ADS
OXFORDSHIRE CC,CORPORATE CORE,"MARKETING, COMMUNICATIONS & ENGAGEMENT","PUBLICITY, PROMOTIONS AND ADVERTISEMENT",27/10/2020,9255446147,25.20,SNAP  ADS
OXFORDSHIRE CC,SOCIAL AND COMMUNITY SERVICES,CSS - BANBURY,CATERING PROVISIONS,27/10/2020,9255446149,61.46,SAINSBURYS TO YOU 0642
OXFORDSHIRE CC,SOCIAL AND COMMUNITY SERVICES,CSS - OXFORD,EQUIPMENT,27/10/2020,9255446153,55.49,AMAZON.CO.UK MC9K68DE4
OXFORDSHIRE CC,"CHILDRENS, YOUNG PEOPLE AND FAMILIES","	LOOKED AFTER CITY 1",HOSPITALITY EXPENSES,27/10/2020,9255446155,22.05,SACRO LOUNGE
OXFORDSHIRE CC,"CHILDRENS, YOUNG PEOPLE AND FAMILIES","	LOOKED AFTER CITY 1",VEHICLE FUEL,27/10/2020,9255446157,24.00,SAINSBURYS PFS1067
OXFORDSHIRE CC,"CHILDRENS, YOUNG PEOPLE AND FAMILIES","	RIVERSIDE CENTRE",PAYMENT TO GOVERNMENT DEPARTMENTS,27/10/2020,9255446159,6.75,THE LOOKOUT DISCOVERY
OXFORDSHIRE CC,"CHILDRENS, YOUNG PEOPLE AND FAMILIES","	RIVERSIDE CENTRE",PAYMENT TO GOVERNMENT DEPARTMENTS,27/10/2020,9255446161,4.00,WWW BRACKNELL FOREST G
OXFORDSHIRE CC,"CHILDRENS, YOUNG PEOPLE AND FAMILIES","	RIVERSIDE CENTRE",VEHICLE EQUIPMENT AND EXPENSES - OTHER,27/10/2020,9255446163,29.95,SWINLEY BIKE HUB LTD
OXFORDSHIRE CC,"CHILDRENS, YOUNG PEOPLE AND FAMILIES","	40 THE MOORS",CATERING PROVISIONS,27/10/2020,9255446179,175.29,SAINSBURYS TO YOU 0600
OXFORDSHIRE CC,"CHILDRENS, YOUNG PEOPLE AND FAMILIES","	FPT CITY",MATERIALS,27/10/2020,9255446181,16.19,AMZNMKTPLACE AMAZON.CO
OXFORDSHIRE CC,SOCIAL AND COMMUNITY SERVICES,LOOKED AFTER NORTH,OTHER TRANSPORT ARRANGEMENTS,27/10/2020,9255446191,10.75,TRAINLINE
OXFORDSHIRE CC,CORPORATE CORE,"MARKETING, COMMUNICATIONS & ENGAGEMENT",MATERIALS,27/10/2020,9255446193,500.00,GOOGLE  ADS4896546035
OXFORDSHIRE CC,CORPORATE CORE,"MARKETING, COMMUNICATIONS & ENGAGEMENT","PUBLICITY, PROMOTIONS AND ADVERTISEMENT",27/10/2020,9255446195,500.00,FACEBK 9R8Z5XN9Z2
OXFORDSHIRE CC,"CHILDRENS, YOUNG PEOPLE AND FAMILIES",THAME E&A HOME,CATERING,27/10/2020,9255446197,6.34,MCDONALDS
OXFORDSHIRE CC,"CHILDRENS, YOUNG PEOPLE AND FAMILIES",KINGFISHER,OTHER TRANSPORT ARRANGEMENTS,27/10/2020,9255446199,45.96,STORAGEBASE
OXFORDSHIRE CC,"CHILDRENS, YOUNG PEOPLE AND FAMILIES",CSC COVID-19,CATERING,27/10/2020,9255446201,6.03,RAMZAN HALAL BUTCHERS
OXFORDSHIRE CC,"CHILDRENS, YOUNG PEOPLE AND FAMILIES",CSC COVID-19,CATERING,27/10/2020,9255446203,.90,TESCO STORES 6338
OXFORDSHIRE CC,CORPORATE CORE,"	CHAIRMANS ALLOWANCE",PAYMENTS TO VOLUNTARY BODIES,27/10/2020,9255446207,17.00,ROYAL BRITISH LEGION P
OXFORDSHIRE CC,ENVIRONMENT AND ECONOMY,"	NATURAL ENVIRONMENT",TRAINING RELATED EXPENDITURE,27/10/2020,9255446209,24.00,COUNTRY LAND AND BUSIN
OXFORDSHIRE CC,"CHILDRENS, YOUNG PEOPLE AND FAMILIES",THAME E&A HOME,CATERING PROVISIONS,27/10/2020,9255446211,146.48,TESCO STORES 2038
OXFORDSHIRE CC,"CHILDRENS, YOUNG PEOPLE AND FAMILIES","	LOOKED AFTER CITY 2",PAYMENTS TO TRANSPORT OPERATORS,27/10/2020,9255446213,115.45,TRAINLINE
OXFORDSHIRE CC,"CHILDRENS, YOUNG PEOPLE AND FAMILIES","	RESIDENTIAL STRATEGY",CATERING,27/10/2020,9255446215,32.30,MAYFLOWER RESTAURANT
OXFORDSHIRE CC,"CHILDRENS, YOUNG PEOPLE AND FAMILIES","	RESIDENTIAL STRATEGY",CATERING,27/10/2020,9255446217,70.20,JUST EAT
OXFORDSHIRE CC,SOCIAL AND COMMUNITY SERVICES,LEAVING CARE NORTH,CATERING,27/10/2020,9255446219,13.48,FRANKIE & BENNYS 5389
OXFORDSHIRE CC,"CHILDRENS, YOUNG PEOPLE AND FAMILIES","	40 THE MOORS",TELEPHONE - EQUIPMENT,27/10/2020,9255446239,35.00,WWW.THREE.CO.UK
OXFORDSHIRE CC,"CHILDRENS, YOUNG PEOPLE AND FAMILIES","	40 THE MOORS",MATERIALS,27/10/2020,9255446241,12.31,AMZNMKTPLACE AMAZON.CO
OXFORDSHIRE CC,"CHILDRENS, YOUNG PEOPLE AND FAMILIES","	40 THE MOORS",MATERIALS,27/10/2020,9255446243,19.89,AMZNMKTPLACE AMAZON.CO
OXFORDSHIRE CC,"CHILDRENS, YOUNG PEOPLE AND FAMILIES","	40 THE MOORS",MATERIALS,27/10/2020,9255446245,6.99,AMZNMKTPLACE AMAZON.CO
OXFORDSHIRE CC,"CHILDRENS, YOUNG PEOPLE AND FAMILIES","	40 THE MOORS",MATERIALS,27/10/2020,9255446247,5.49,AMZNMKTPLACE AMAZON.CO
OXFORDSHIRE CC,"CHILDRENS, YOUNG PEOPLE AND FAMILIES","	40 THE MOORS",MATERIALS,27/10/2020,9255446249,12.95,AMZNMKTPLACE AMAZON.CO
OXFORDSHIRE CC,"CHILDRENS, YOUNG PEOPLE AND FAMILIES","	40 THE MOORS",MATERIALS,27/10/2020,9255446251,61.98,AMZNMKTPLACE AMAZON.CO
OXFORDSHIRE CC,"CHILDRENS, YOUNG PEOPLE AND FAMILIES","	LOOKED AFTER SOUTH",CATERING,27/10/2020,9255446253,5.82,COSTA COFFEE
OXFORDSHIRE CC,"CHILDRENS, YOUNG PEOPLE AND FAMILIES","	LOOKED AFTER SOUTH",CATERING,27/10/2020,9255446255,29.72,PIZZA HUT
OXFORDSHIRE CC,"CHILDRENS, YOUNG PEOPLE AND FAMILIES",DIDCOT MOVE-ON HOME,CATERING PROVISIONS,27/10/2020,9255446263,1.10,SAINSBURYS SACAT 2067
OXFORDSHIRE CC,ENVIRONMENT AND ECONOMY,"	KNIGHTS COURT",CATERING PROVISIONS,27/10/2020,9255446265,15.96,LIDL GB  BICESTER
OXFORDSHIRE CC,"CHILDRENS, YOUNG PEOPLE AND FAMILIES","	LEAVING CARE SOUTH",MATERIALS,27/10/2020,9255446267,-24.00,WWW.BRISTOL-CITY.GOV.U
OXFORDSHIRE CC,"CHILDRENS, YOUNG PEOPLE AND FAMILIES",EYNSHAM,CATERING PROVISIONS,27/10/2020,9255446269,13.00,MAYFIELDEGGS
OXFORDSHIRE CC,"CHILDRENS, YOUNG PEOPLE AND FAMILIES",EYNSHAM,ENTERTAINMENT EXPENSES,27/10/2020,9255446271,5.35,ROCKSTAR CLIMBING
OXFORDSHIRE CC,"CHILDRENS, YOUNG PEOPLE AND FAMILIES",EYNSHAM,ENTERTAINMENT EXPENSES,27/10/2020,9255446273,3.70,ROCKSTAR CLIMBING
OXFORDSHIRE CC,"CHILDRENS, YOUNG PEOPLE AND FAMILIES",EYNSHAM,CATERING PROVISIONS,27/10/2020,9255446277,8.69,POUNDSTRETCHER 700
OXFORDSHIRE CC,"CHILDRENS, YOUNG PEOPLE AND FAMILIES",EYNSHAM,CATERING PROVISIONS,27/10/2020,9255446279,9.00,B&M 515 - ABINGDON
OXFORDSHIRE CC,"CHILDRENS, YOUNG PEOPLE AND FAMILIES",THAME E&A HOME,CATERING PROVISIONS,27/10/2020,9255446281,4.00,SAINSBURYS 2096
OXFORDSHIRE CC,"CHILDRENS, YOUNG PEOPLE AND FAMILIES","	LEAVING CARE SOUTH",MATERIALS,27/10/2020,9255446283,22.45,AMZNMKTPLACE
OXFORDSHIRE CC,CORPORATE CORE,INCOME TEAM,PAYMENT TO GOVERNMENT DEPARTMENTS,27/10/2020,9255446285,11.00,OXFORDSHIRE CC MOTO1
OXFORDSHIRE CC,"CHILDRENS, YOUNG PEOPLE AND FAMILIES",EYNSHAM,FURNITURE,27/10/2020,9255446287,119.99,AMZNMKTPLACE AMAZON.CO
OXFORDSHIRE CC,SOCIAL AND COMMUNITY SERVICES,CSS BICESTER,CATERING PROVISIONS,27/10/2020,9255446073,58.46,TESCO STORES 4480
OXFORDSHIRE CC,ENVIRONMENT AND ECONOMY,ELEC NPR ST LTG,MATERIALS,27/10/2020,9255446075,129.99,AMZNMKTPLACE
OXFORDSHIRE CC,SOCIAL AND COMMUNITY SERVICES,CSS WITNEY,CATERING PROVISIONS,27/10/2020,9255446077,13.10,SAINSBURYS SACAT 0632
OXFORDSHIRE CC,"CHILDRENS, YOUNG PEOPLE AND FAMILIES",THAME E&A HOME,VEHICLE FUEL,27/10/2020,9255446083,7.20,THAME BP SF CONNECT
OXFORDSHIRE CC,"CHILDRENS, YOUNG PEOPLE AND FAMILIES",THAME E&A HOME,VEHICLE FUEL,27/10/2020,9255446085,12.06,TESCO PFS 3443
OXFORDSHIRE CC,"CHILDRENS, YOUNG PEOPLE AND FAMILIES","	LOOKED AFTER CITY 1",RESIDENTIAL ACTIVITIES,27/10/2020,9255446089,48.20,TRAINLINE
OXFORDSHIRE CC,ENVIRONMENT AND ECONOMY,HARD FM,GENERAL MAINTENANCE,27/10/2020,9255446091,133.44,WOLSELEY UK
OXFORDSHIRE CC,ENVIRONMENT AND ECONOMY,HARD FM,LAUNDRY AND DRY CLEANING,27/10/2020,9255446093,40.00,ANDREWS OF OXFORD LTD
OXFORDSHIRE CC,ENVIRONMENT AND ECONOMY,HARD FM,HARDWARE AND CROCKERY,27/10/2020,9255446095,64.62,CITY PLUMBING
OXFORDSHIRE CC,"CHILDRENS, YOUNG PEOPLE AND FAMILIES",CNTL ERLY HELP-BBLEY,CATERING PROVISIONS,26/10/2020,9252253905,.80,TESCO STORE 2990
OXFORDSHIRE CC,"CHILDRENS, YOUNG PEOPLE AND FAMILIES","	LEAVING CARE CITY 2",HIRE OF ACCOMMODATION AND FACILITIES,26/10/2020,9252253911,131.97,PREMIER INN
OXFORDSHIRE CC,SOCIAL AND COMMUNITY SERVICES,ADMIN SUPPORT REVIEW,PURCHASE OF IT EQUIPMENT,26/10/2020,9252253919,43.30,AMZNMKTPLACE
OXFORDSHIRE CC,"CHILDRENS, YOUNG PEOPLE AND FAMILIES","	LEAVING CARE SOUTH",MATERIALS,26/10/2020,9252253925,3.53,AMZNMKTPLACE
OXFORDSHIRE CC,CORPORATE CORE,ICT OPERATIONS & MAI,MATERIALS,26/10/2020,9252253931,41.36,EBAY O 20-05937-64491
OXFORDSHIRE CC,CORPORATE CORE,ICT OPERATIONS & MAI,MATERIALS,26/10/2020,9252253935,47.92,AMZNMKTPLACE
OXFORDSHIRE CC,"CHILDRENS, YOUNG PEOPLE AND FAMILIES",WITNEY,ENTERTAINMENT EXPENSES,26/10/2020,9252253939,8.00,THORPE PARK /ENT/
OXFORDSHIRE CC,"CHILDRENS, YOUNG PEOPLE AND FAMILIES",WITNEY,VEHICLE FUEL,26/10/2020,9252253943,30.00,TESCO PFS 3418
OXFORDSHIRE CC,"CHILDRENS, YOUNG PEOPLE AND FAMILIES","	FAM SUPP CITY 1",CLIENT LODGINGS AND ACCOMMODATION,26/10/2020,9252253255,350.00,PREMIER INN
OXFORDSHIRE CC,"CHILDRENS, YOUNG PEOPLE AND FAMILIES",CNTL EARLY HELP-RHIL,CATERING PROVISIONS,26/10/2020,9252253259,75.59,MILK AND MORE
OXFORDSHIRE CC,"CHILDRENS, YOUNG PEOPLE AND FAMILIES","	FAM SUPP CITY 1",HIRE OF ACCOMMODATION AND FACILITIES,26/10/2020,9252253261,-279.00,PREMIER INN
OXFORDSHIRE CC,"CHILDRENS, YOUNG PEOPLE AND FAMILIES","	FAM SUPP SOUTH",PAYMENTS TO TRANSPORT OPERATORS,26/10/2020,9252253265,59.00,THETRAINLINE.COM
OXFORDSHIRE CC,"CHILDRENS, YOUNG PEOPLE AND FAMILIES",NTH EARLY HELP-BNRBY,HIRE OF EQUIPMENT,26/10/2020,9252253275,246.00,BANBURY PLANT AND SKIP
OXFORDSHIRE CC,"CHILDRENS, YOUNG PEOPLE AND FAMILIES",EYNSHAM,CATERING PROVISIONS,26/10/2020,9252253947,150.21,TESCO STORES 2008
OXFORDSHIRE CC,"CHILDRENS, YOUNG PEOPLE AND FAMILIES",EYNSHAM,CATERING PROVISIONS,26/10/2020,9252253951,-1.38,TESCO STORES 2008
OXFORDSHIRE CC,"CHILDRENS, YOUNG PEOPLE AND FAMILIES",HOUSE PROJECT,OTHER TRANSPORT ARRANGEMENTS,26/10/2020,9252253963,2.00,HEADINGTON CAR PARK
OXFORDSHIRE CC,"CHILDRENS, YOUNG PEOPLE AND FAMILIES",EYNSHAM,CATERING PROVISIONS,26/10/2020,9252253973,18.00,SAINSBURYS SACAT 0632
OXFORDSHIRE CC,"CHILDRENS, YOUNG PEOPLE AND FAMILIES",EYNSHAM,CATERING,26/10/2020,9252253975,41.01,DOMINOS PIZZA (WIT
OXFORDSHIRE CC,"CHILDRENS, YOUNG PEOPLE AND FAMILIES","	LOOKED AFTER SOUTH",MATERIALS,26/10/2020,9252253981,41.47,AMZNMKTPLACE
OXFORDSHIRE CC,"CHILDRENS, YOUNG PEOPLE AND FAMILIES","	LEAVING CARE SOUTH",MATERIALS,26/10/2020,9252253983,13.99,AMZNMKTPLACE AMAZON.CO
OXFORDSHIRE CC,ENVIRONMENT AND ECONOMY,"	ROW MAINT",HARDWARE AND CROCKERY,26/10/2020,9252253775,11.68,OXON FASTENING SYSTEMS
OXFORDSHIRE CC,"CHILDRENS, YOUNG PEOPLE AND FAMILIES","	MALTFIELD HOUSE",CATERING PROVISIONS,26/10/2020,9252253779,59.26,ASDA STORES 4920
OXFORDSHIRE CC,"CHILDRENS, YOUNG PEOPLE AND FAMILIES","	FAMILY SUPPORT CITY3",CATERING PROVISIONS,26/10/2020,9252253137,8.70,ASDA SUPERSTORE
OXFORDSHIRE CC,"CHILDRENS, YOUNG PEOPLE AND FAMILIES",EYNSHAM,DAY ACTIVITIES,26/10/2020,9252253147,5.50,IZ  MOO-MOO S
OXFORDSHIRE CC,"CHILDRENS, YOUNG PEOPLE AND FAMILIES",EYNSHAM,OTHER TRANSPORT ARRANGEMENTS,26/10/2020,9252253153,4.00,WESTGATE OXFORD CAR PA
OXFORDSHIRE CC,ENVIRONMENT AND ECONOMY,HOLDING CODE FOR REA,VEHICLES REPAIRS AND MAINTENANCE,26/10/2020,9252253161,200.00,MK PLY AVENUE
OXFORDSHIRE CC,SOCIAL AND COMMUNITY SERVICES,CSS BICESTER,MATERIALS,26/10/2020,9252253165,161.00,AMZNMKTPLACE
OXFORDSHIRE CC,"CHILDRENS, YOUNG PEOPLE AND FAMILIES",CSC COVID-19,NON-STAFF SUBSISTENCE AND EXPENSES,26/10/2020,9252253171,49.99,AMZNMKTPLACE AMAZON.CO
OXFORDSHIRE CC,"CHILDRENS, YOUNG PEOPLE AND FAMILIES","	40 THE MOORS",MATERIALS,26/10/2020,9252253831,44.53,AMZNMKTPLACE AMAZON.CO
OXFORDSHIRE CC,"CHILDRENS, YOUNG PEOPLE AND FAMILIES","	40 THE MOORS",OTHER TRANSPORT ARRANGEMENTS,26/10/2020,9252253845,87.00,STAGECOACH SERVICE
OXFORDSHIRE CC,"CHILDRENS, YOUNG PEOPLE AND FAMILIES",CSC COVID-19,OTHER EXPENSES,26/10/2020,9252253181,20.00,GIFFGAFF
OXFORDSHIRE CC,"CHILDRENS, YOUNG PEOPLE AND FAMILIES","	LOOKED AFTER CITY 1",DRUGS AND MEDICAL SUPPLIES,26/10/2020,9252253183,6.49,BOOTS 0346
OXFORDSHIRE CC,SOCIAL AND COMMUNITY SERVICES,CSS - ABINGDON,MATERIALS,26/10/2020,9252253185,13.26,HOME BARGAINS
OXFORDSHIRE CC,ENVIRONMENT AND ECONOMY,HARD FM,MATERIALS,26/10/2020,9252253187,13.98,AMZNMKTPLACE
OXFORDSHIRE CC,ENVIRONMENT AND ECONOMY,HARD FM,GENERAL MAINTENANCE,26/10/2020,9252253189,55.38,WOLSELEY UK
OXFORDSHIRE CC,ENVIRONMENT AND ECONOMY,HARD FM,GENERAL MAINTENANCE,26/10/2020,9252253193,180.31,WOLSELEY UK
OXFORDSHIRE CC,ENVIRONMENT AND ECONOMY,HARD FM,HARDWARE AND CROCKERY,26/10/2020,9252253195,291.60,CITY PLUMBING
OXFORDSHIRE CC,ENVIRONMENT AND ECONOMY,HARD FM,VEHICLES REPAIRS AND MAINTENANCE,26/10/2020,9252253197,57.60,CROWMARSH TYRE CENTRE
OXFORDSHIRE CC,ENVIRONMENT AND ECONOMY,HARD FM,GENERAL MAINTENANCE,26/10/2020,9252253201,215.57,WOLSELEY UK
OXFORDSHIRE CC,ENVIRONMENT AND ECONOMY,HARD FM,GENERAL MAINTENANCE,26/10/2020,9252253205,109.63,WOLSELEY UK
OXFORDSHIRE CC,"CHILDRENS, YOUNG PEOPLE AND FAMILIES",DIDCOT MOVE-ON HOME,CATERING PROVISIONS,26/10/2020,9252253865,24.35,SAINSBURYS SACAT 2067
OXFORDSHIRE CC,ENVIRONMENT AND ECONOMY,HARD FM,GENERAL MAINTENANCE,26/10/2020,9252253209,178.37,WOLSELEY UK
OXFORDSHIRE CC,ENVIRONMENT AND ECONOMY,HARD FM,HARDWARE AND CROCKERY,26/10/2020,9252253213,263.26,SCREWFIX DIRECT
OXFORDSHIRE CC,ENVIRONMENT AND ECONOMY,HARD FM,HARDWARE AND CROCKERY,26/10/2020,9252253217,16.39,SCREWFIX DIRECT
OXFORDSHIRE CC,SOCIAL AND COMMUNITY SERVICES,CSS - OXFORD,MATERIALS,26/10/2020,9252253225,20.27,MASONS
OXFORDSHIRE CC,SOCIAL AND COMMUNITY SERVICES,CSS - OXFORD,HARDWARE AND CROCKERY,26/10/2020,9252253227,14.97,FROSTS AT MILLETS
OXFORDSHIRE CC,"CHILDRENS, YOUNG PEOPLE AND FAMILIES","	40 THE MOORS",TELEPHONE - EQUIPMENT,26/10/2020,9252253231,30.00,EE TOPUP  VESTA
OXFORDSHIRE CC,SOCIAL AND COMMUNITY SERVICES,DIDCOT MOVE-ON HOME,CATERING,26/10/2020,9252253237,5.42,COSTA COFFEE 43042160
OXFORDSHIRE CC,SOCIAL AND COMMUNITY SERVICES,DIDCOT MOVE-ON HOME,CATERING PROVISIONS,26/10/2020,9252253243,11.00,SAINSBURYS SACAT 2067
OXFORDSHIRE CC,"CHILDRENS, YOUNG PEOPLE AND FAMILIES",NTH FAM SUPRT-BCSTR,POSTAGE AND DELIVERY,26/10/2020,9252253249,1.30,ROYAL MAIL GROUP LTD
OXFORDSHIRE CC,ENVIRONMENT AND ECONOMY,"	LOWER WINDRUSH PROJ",MATERIALS,26/10/2020,9252253895,11.49,AMZNMKTPLACE
OXFORDSHIRE CC,SOCIAL AND COMMUNITY SERVICES,LOOKED AFTER NORTH,MATERIALS,26/10/2020,9252253505,-199.99,CURRYS ONLINE
OXFORDSHIRE CC,"CHILDRENS, YOUNG PEOPLE AND FAMILIES",EYNSHAM,CATERING,26/10/2020,9252253531,10.63,WAITROSE 142
OXFORDSHIRE CC,CORPORATE CORE,"MARKETING, COMMUNICATIONS & ENGAGEMENT","PUBLICITY, PROMOTIONS AND ADVERTISEMENT",26/10/2020,9252253541,500.00,GOOGLE  ADS4896546035
OXFORDSHIRE CC,CORPORATE CORE,"MARKETING, COMMUNICATIONS & ENGAGEMENT",IT SOFTWARE,26/10/2020,9252253545,78.97,ADOBE STOCK
OXFORDSHIRE CC,"CHILDRENS, YOUNG PEOPLE AND FAMILIES","	LOOKED AFTER SOUTH",SUBSCRIPTIONS,26/10/2020,9252253547,40.26,HOLLYWOOD BOWL
OXFORDSHIRE CC,"CHILDRENS, YOUNG PEOPLE AND FAMILIES",THAME E&A HOME,CATERING PROVISIONS,26/10/2020,9252253553,11.85,SAINSBURYS SACAT 2096
OXFORDSHIRE CC,"CHILDRENS, YOUNG PEOPLE AND FAMILIES",THAME E&A HOME,ENTERTAINMENT EXPENSES,26/10/2020,9252253555,34.00,WWW.BOOKING.GLL.ORG
OXFORDSHIRE CC,"CHILDRENS, YOUNG PEOPLE AND FAMILIES",THAME E&A HOME,ENTERTAINMENT EXPENSES,26/10/2020,9252253559,26.60,WWW.BOOKING.GLL.ORG
OXFORDSHIRE CC,"CHILDRENS, YOUNG PEOPLE AND FAMILIES",UASC 16&17,CATERING PROVISIONS,26/10/2020,9252253563,13.68,TESCO STORES 6880
OXFORDSHIRE CC,"CHILDRENS, YOUNG PEOPLE AND FAMILIES",CSC COVID-19,CATERING,26/10/2020,9252253565,4.60,TESCO STORE 2064
OXFORDSHIRE CC,"CHILDRENS, YOUNG PEOPLE AND FAMILIES",CSC COVID-19,CATERING,26/10/2020,9252253569,19.02,TESCO STORE 2064
OXFORDSHIRE CC,"CHILDRENS, YOUNG PEOPLE AND FAMILIES",CSC COVID-19,CATERING,26/10/2020,9252253571,2.50,TESCO STORE 2064
OXFORDSHIRE CC,"CHILDRENS, YOUNG PEOPLE AND FAMILIES",CSC COVID-19,CATERING,26/10/2020,9252253575,5.04,TESCO STORE 2064
OXFORDSHIRE CC,"CHILDRENS, YOUNG PEOPLE AND FAMILIES",CSC COVID-19,CATERING,26/10/2020,9252253579,4.25,TESCO STORE 2064
OXFORDSHIRE CC,"CHILDRENS, YOUNG PEOPLE AND FAMILIES",CSC COVID-19,CATERING,26/10/2020,9252253583,3.00,WM MORRISONS STORE
OXFORDSHIRE CC,"CHILDRENS, YOUNG PEOPLE AND FAMILIES",CSC COVID-19,CATERING,26/10/2020,9252253587,3.82,WM MORRISONS STORE
OXFORDSHIRE CC,"CHILDRENS, YOUNG PEOPLE AND FAMILIES",CSC COVID-19,CATERING,26/10/2020,9252253591,5.99,RAMZAN HALAL BUTCHERS
OXFORDSHIRE CC,"CHILDRENS, YOUNG PEOPLE AND FAMILIES","	OCCG GRANT",CATERING PROVISIONS,26/10/2020,9252253593,15.45,SAINSBURYS (2305)
OXFORDSHIRE CC,"CHILDRENS, YOUNG PEOPLE AND FAMILIES","	OCCG GRANT",CATERING PROVISIONS,26/10/2020,9252253597,5.00,POUNDLAND LTD 1586
OXFORDSHIRE CC,"CHILDRENS, YOUNG PEOPLE AND FAMILIES","	LOOKED AFTER CITY 2",CATERING,26/10/2020,9252253629,3.19,COSTA COFFEE
OXFORDSHIRE CC,"CHILDRENS, YOUNG PEOPLE AND FAMILIES","	LOOKED AFTER CITY 2",PAYMENTS TO TRANSPORT OPERATORS,26/10/2020,9252253631,7.00,WWW.GWR.COM
OXFORDSHIRE CC,"CHILDRENS, YOUNG PEOPLE AND FAMILIES","	LOOKED AFTER CITY 2",OTHER TRANSPORT ARRANGEMENTS,26/10/2020,9252253635,2.10,FGW CONNECT WEB
OXFORDSHIRE CC,"CHILDRENS, YOUNG PEOPLE AND FAMILIES",WITNEY,CATERING,26/10/2020,9252253643,3.18,SHELL WITNEY
OXFORDSHIRE CC,"CHILDRENS, YOUNG PEOPLE AND FAMILIES",WITNEY,CATERING,26/10/2020,9252253647,5.55,TESCO PFS 3418
OXFORDSHIRE CC,"CHILDRENS, YOUNG PEOPLE AND FAMILIES",THAME E&A HOME,CATERING PROVISIONS,26/10/2020,9252253679,16.08,CO-OPERATIVE FOOD
OXFORDSHIRE CC,"CHILDRENS, YOUNG PEOPLE AND FAMILIES","	RESIDENTIAL STRATEGY",CATERING PROVISIONS,26/10/2020,9252253703,14.00,TESCO STORE 2788
OXFORDSHIRE CC,"CHILDRENS, YOUNG PEOPLE AND FAMILIES","	RESIDENTIAL STRATEGY",CATERING PROVISIONS,26/10/2020,9252253709,12.00,TESCO STORES 2008
OXFORDSHIRE CC,ENVIRONMENT AND ECONOMY,ELEC NPR ST LTG,MATERIALS,26/10/2020,9252253093,22.94,AMZNMKTPLACE
OXFORDSHIRE CC,ENVIRONMENT AND ECONOMY,ELEC NPR ST LTG,MATERIALS,26/10/2020,9252253097,65.47,AMZNMKTPLACE AMAZON.CO
OXFORDSHIRE CC,"CHILDRENS, YOUNG PEOPLE AND FAMILIES",STH EARLY HELP-ABNDN,"SUPPLIES, STATIONERY AND MATERIALS",26/10/2020,9252253101,13.70,PAYPAL  TRANSFORMIN
OXFORDSHIRE CC,"CHILDRENS, YOUNG PEOPLE AND FAMILIES",STH EARLY HELP-ABNDN,MATERIALS,26/10/2020,9252253105,154.49,ARGOS LTD
OXFORDSHIRE CC,"CHILDRENS, YOUNG PEOPLE AND FAMILIES",THAME E&A HOME,MATERIALS,26/10/2020,9252253109,19.99,AMZNMKTPLACE
OXFORDSHIRE CC,SOCIAL AND COMMUNITY SERVICES,DIDCOT MOVE-ON HOME,CATERING PROVISIONS,26/10/2020,9252253289,8.80,SAINSBURYS SACAT 2067
OXFORDSHIRE CC,SOCIAL AND COMMUNITY SERVICES,DIDCOT MOVE-ON HOME,CATERING PROVISIONS,26/10/2020,9252253291,3.95,CO-OP FOOD
OXFORDSHIRE CC,"CHILDRENS, YOUNG PEOPLE AND FAMILIES",EYNSHAM,MATERIALS,26/10/2020,9252254011,6.99,TESCO SUBSCRIPTION
OXFORDSHIRE CC,"CHILDRENS, YOUNG PEOPLE AND FAMILIES",EYNSHAM,MATERIALS,26/10/2020,9252254015,17.99,AMZNMKTPLACE AMAZON.CO
OXFORDSHIRE CC,"CHILDRENS, YOUNG PEOPLE AND FAMILIES",EYNSHAM,FURNITURE,26/10/2020,9252254019,13.99,AMZNMKTPLACE AMAZON.CO
OXFORDSHIRE CC,"CHILDRENS, YOUNG PEOPLE AND FAMILIES",EYNSHAM,MATERIALS,26/10/2020,9252254023,23.98,AMZNMKTPLACE AMAZON.CO
OXFORDSHIRE CC,CORPORATE CORE,,"SUPPLIES, STATIONERY AND MATERIALS",26/10/2020,9252254029,9.00,LYRECO UK LTD
OXFORDSHIRE CC,"CHILDRENS, YOUNG PEOPLE AND FAMILIES",CSC COVID-19,TELEPHONE - EQUIPMENT,26/10/2020,9252253329,10.00,VESTA   VODAFONE TOPUP
OXFORDSHIRE CC,"CHILDRENS, YOUNG PEOPLE AND FAMILIES",NTH FAM SUPRT-BCSTR,PAYMENTS TO TRANSPORT OPERATORS,26/10/2020,9252253333,29.40,WWW.GWR.COM
OXFORDSHIRE CC,CORPORATE CORE,"MARKETING, COMMUNICATIONS & ENGAGEMENT","PUBLICITY, PROMOTIONS AND ADVERTISEMENT",26/10/2020,9252253337,500.00,FACEBK MLSYVWW8Z2
OXFORDSHIRE CC,CORPORATE CORE,"MARKETING, COMMUNICATIONS & ENGAGEMENT","PUBLICITY, PROMOTIONS AND ADVERTISEMENT",26/10/2020,9252253341,26.23,SNAP  ADS
OXFORDSHIRE CC,CORPORATE CORE,"MARKETING, COMMUNICATIONS & ENGAGEMENT","PUBLICITY, PROMOTIONS AND ADVERTISEMENT",26/10/2020,9252253343,500.00,FACEBK 2JU6NXE9Z2
OXFORDSHIRE CC,CORPORATE CORE,"MARKETING, COMMUNICATIONS & ENGAGEMENT","PUBLICITY, PROMOTIONS AND ADVERTISEMENT",26/10/2020,9252253347,30.64,SNAP  ADS
OXFORDSHIRE CC,SOCIAL AND COMMUNITY SERVICES,CSS WALLINGFORD,MATERIALS,26/10/2020,9252253349,4.99,AMZNMKTPLACE
OXFORDSHIRE CC,SOCIAL AND COMMUNITY SERVICES,CSS WALLINGFORD,MATERIALS,26/10/2020,9252253353,15.62,AMZNMKTPLACE
OXFORDSHIRE CC,CORPORATE CORE,,"SUPPLIES, STATIONERY AND MATERIALS",26/10/2020,9252254035,15.91,LYRECO UK LTD
OXFORDSHIRE CC,"CHILDRENS, YOUNG PEOPLE AND FAMILIES",THAME E&A HOME,CATERING PROVISIONS,26/10/2020,9252253407,94.78,TESCO STORES 2038
OXFORDSHIRE CC,"CHILDRENS, YOUNG PEOPLE AND FAMILIES","	LEAVING CARE CITY 2",MATERIALS,26/10/2020,9252253411,7.38,AMAZON.CO.UK MC2RS9BS4
OXFORDSHIRE CC,ENVIRONMENT AND ECONOMY,"	COMMERCIAL MANAGEMEN",MANAGEMENT CONSULTANT FEES,26/10/2020,9252253437,240.00,WWW.ALDERCROSS.COM
OXFORDSHIRE CC,SOCIAL AND COMMUNITY SERVICES,RESIDENTIAL STRATEGY,MATERIALS,26/10/2020,9252253443,5.00,POUNDLAND LTD 1586
OXFORDSHIRE CC,SOCIAL AND COMMUNITY SERVICES,RESIDENTIAL STRATEGY,CATERING PROVISIONS,26/10/2020,9252253445,3.30,SAINSBURYS 0631
OXFORDSHIRE CC,"CHILDRENS, YOUNG PEOPLE AND FAMILIES","	FAMILY SUPPORT CITY3",MATERIALS,26/10/2020,9252253453,129.50,AMZNMKTPLACE AMAZON.CO
OXFORDSHIRE CC,"CHILDRENS, YOUNG PEOPLE AND FAMILIES","	FAMILY SUPPORT CITY3",HIRE OF ACCOMMODATION AND FACILITIES,26/10/2020,9252253459,68.00,WELCOME BREAK
OXFORDSHIRE CC,"CHILDRENS, YOUNG PEOPLE AND FAMILIES","	40 THE MOORS",CATERING PROVISIONS,26/10/2020,9252253475,157.78,TESCO STORES 4480
OXFORDSHIRE CC,"CHILDRENS, YOUNG PEOPLE AND FAMILIES","	40 THE MOORS",MATERIALS,26/10/2020,9252253479,24.99,ARGOS LTD
OXFORDSHIRE CC,"CHILDRENS, YOUNG PEOPLE AND FAMILIES","	40 THE MOORS",CLOTHING AND UNIFORMS,26/10/2020,9252253483,-12.60,BOOHOO.COM
OXFORDSHIRE CC,"CHILDRENS, YOUNG PEOPLE AND FAMILIES","	40 THE MOORS",CATERING,23/10/2020,9247618273,4.00,TESCO STORE 2788
OXFORDSHIRE CC,SOCIAL AND COMMUNITY SERVICES,RESIDENTIAL STRATEGY,TELEPHONE - EQUIPMENT,23/10/2020,9247618285,20.00,EE TOP UP VESTA
OXFORDSHIRE CC,"CHILDRENS, YOUNG PEOPLE AND FAMILIES","	LEAVING CARE SOUTH",OTHER TRANSPORT ARRANGEMENTS,23/10/2020,9247618337,4.00,WESTGATE OXFORD CAR PA
OXFORDSHIRE CC,SHARED SERVICES,COVID-19 COD,STATIONERY,23/10/2020,9247618343,30.00,AMAZON.CO.UK J50G049E5
OXFORDSHIRE CC,CORPORATE CORE,"MARKETING, COMMUNICATIONS & ENGAGEMENT","BOOKS, DVDS AND CDS",23/10/2020,9247618365,251.97,SPOTIFY
OXFORDSHIRE CC,CORPORATE CORE,"MARKETING, COMMUNICATIONS & ENGAGEMENT","PUBLICITY, PROMOTIONS AND ADVERTISEMENT",23/10/2020,9247618371,500.00,FACEBK TN426XW9Z2
OXFORDSHIRE CC,CORPORATE CORE,"	MEMBERS SERVICES",MATERIALS,23/10/2020,9247618419,62.07,AMAZON.CO.UK FW6310NO5
OXFORDSHIRE CC,CORPORATE CORE,OPERATIONS,EQUIPMENT,23/10/2020,9247618429,1.45,AMAZON.CO.UK MC3D65B34
OXFORDSHIRE CC,CORPORATE CORE,COVID-19 COD,SECURITY COSTS,23/10/2020,9247618435,102.99,AMAZON.CO.UK 3T3PO8EH5
OXFORDSHIRE CC,"CHILDRENS, YOUNG PEOPLE AND FAMILIES","	LEAVING CARE CITY 2",OTHER EXPENSES,23/10/2020,9247618485,131.85,CARPETS 4 LESS
OXFORDSHIRE CC,"CHILDRENS, YOUNG PEOPLE AND FAMILIES","	LEAVING CARE CITY 2",REGISTRATION AND INSPECTION FEES,23/10/2020,9247618487,75.50,HM PASSPORT OFFICE
OXFORDSHIRE CC,"CHILDRENS, YOUNG PEOPLE AND FAMILIES","	LEAVING CARE CITY 2",OTHER EXPENSES,23/10/2020,9247618489,279.44,PARADIGM HOUSING GROUP
OXFORDSHIRE CC,ENVIRONMENT AND ECONOMY,COUNTY LIBRARY,GENERAL MAINTENANCE,23/10/2020,9247617999,106.74,WOLSELEY UK
OXFORDSHIRE CC,"CHILDRENS, YOUNG PEOPLE AND FAMILIES","	LEAVING CARE CITY 2","SUPPLIES, STATIONERY AND MATERIALS",23/10/2020,9247618797,107.80,TONI & GUY BANBURY
OXFORDSHIRE CC,"CHILDRENS, YOUNG PEOPLE AND FAMILIES","	LEAVING CARE SOUTH",MATERIALS,23/10/2020,9247618839,17.99,AMZNMKTPLACE AMAZON.CO
OXFORDSHIRE CC,SOCIAL AND COMMUNITY SERVICES,CSS - OXFORD,MATERIALS,23/10/2020,9247618005,-30.00,HOBBYCRAFT
OXFORDSHIRE CC,SOCIAL AND COMMUNITY SERVICES,UASC 16&17,VEHICLE FUEL,23/10/2020,9247618011,30.05,SAINSBURYS OPT 0184
OXFORDSHIRE CC,SOCIAL AND COMMUNITY SERVICES,DIDCOT MOVE-ON HOME,CATERING PROVISIONS,23/10/2020,9247618015,16.10,B&M 514 - DICOT
OXFORDSHIRE CC,SOCIAL AND COMMUNITY SERVICES,DIDCOT MOVE-ON HOME,CATERING PROVISIONS,23/10/2020,9247618019,9.09,SAINSBURYS SACAT 2067
OXFORDSHIRE CC,"CHILDRENS, YOUNG PEOPLE AND FAMILIES","	RIVERSIDE CENTRE",CATERING PROVISIONS,23/10/2020,9247618023,11.69,TESCO STORES 2008
OXFORDSHIRE CC,"CHILDRENS, YOUNG PEOPLE AND FAMILIES","	FAM SUPP CITY 1",HIRE OF ACCOMMODATION AND FACILITIES,23/10/2020,9247618027,341.50,PREMIER INN
OXFORDSHIRE CC,"CHILDRENS, YOUNG PEOPLE AND FAMILIES","	LEAVING CARE SOUTH",MATERIALS,23/10/2020,9247618843,40.95,AMZNMKTPLACE
OXFORDSHIRE CC,SOCIAL AND COMMUNITY SERVICES,BICESTER LIBRARY,MATERIALS,23/10/2020,9247618849,39.99,ARGOS LTD
OXFORDSHIRE CC,"CHILDRENS, YOUNG PEOPLE AND FAMILIES","	LOOKED AFTER NORTH",OTHER EXPENSES,23/10/2020,9247618857,42.07,AMZNMKTPLACE
OXFORDSHIRE CC,SOCIAL AND COMMUNITY SERVICES,FLEET OPERATIONS,MATERIALS,23/10/2020,9247618865,462.30,LSW
OXFORDSHIRE CC,CORPORATE CORE,,"SUPPLIES, STATIONERY AND MATERIALS",23/10/2020,9247618869,187.81,LYRECO UK LTD
OXFORDSHIRE CC,CORPORATE CORE,,"SUPPLIES, STATIONERY AND MATERIALS",23/10/2020,9247618875,234.34,LYRECO UK LTD
OXFORDSHIRE CC,CORPORATE CORE,,"SUPPLIES, STATIONERY AND MATERIALS",23/10/2020,9247618879,45.46,LYRECO UK LTD
OXFORDSHIRE CC,SOCIAL AND COMMUNITY SERVICES,SCHOOLS FM CATERING AREA 1,CATERING PROVISIONS,23/10/2020,9247618075,27.50,SAINSBURYS SACAT 0631
OXFORDSHIRE CC,ENVIRONMENT AND ECONOMY,"	FM RECHARGES",CATERING PROVISIONS,23/10/2020,9247618079,6.25,WAITROSE 142
OXFORDSHIRE CC,SOCIAL AND COMMUNITY SERVICES,"	MUSEUMS COLLECTIONS",CATERING PROVISIONS,23/10/2020,9247618083,3.12,MILK AND MORE
OXFORDSHIRE CC,CORPORATE CORE,LIBRARY COLLECTIONS,"BOOKS, DVDS AND CDS",23/10/2020,9247618091,"3,499.31",BOLINDA PUBLISHING
OXFORDSHIRE CC,CORPORATE CORE,"MARKETING, COMMUNICATIONS & ENGAGEMENT","PUBLICITY, PROMOTIONS AND ADVERTISEMENT",23/10/2020,9247618119,26.80,SNAP  ADS
OXFORDSHIRE CC,SOCIAL AND COMMUNITY SERVICES,SCHOOLS FM,MATERIALS,23/10/2020,9247618133,159.68,AMAZON.CO.UK WK6LX4CB5
OXFORDSHIRE CC,SOCIAL AND COMMUNITY SERVICES,CSS WALLINGFORD,CATERING PROVISIONS,23/10/2020,9247618139,14.61,WAITROSE 675
OXFORDSHIRE CC,"CHILDRENS, YOUNG PEOPLE AND FAMILIES","	LOOKED AFTER CITY 2","SUPPLIES, STATIONERY AND MATERIALS",23/10/2020,9247618185,89.27,LAPTOP CHARGERS FACTOR
OXFORDSHIRE CC,"CHILDRENS, YOUNG PEOPLE AND FAMILIES","	LOOKED AFTER CITY 1","SUPPLIES, STATIONERY AND MATERIALS",23/10/2020,9247618189,253.99,WWW.JOHNLEWIS.COM
OXFORDSHIRE CC,"CHILDRENS, YOUNG PEOPLE AND FAMILIES","	LOOKED AFTER CITY 1",REGISTRATION AND INSPECTION FEES,23/10/2020,9247618193,-33.00,GEN REGISTER OFFICE
OXFORDSHIRE CC,"CHILDRENS, YOUNG PEOPLE AND FAMILIES",KINGFISHER,HARDWARE AND CROCKERY,23/10/2020,9247618197,13.40,BICESTER GARDEN CENTRE
OXFORDSHIRE CC,"CHILDRENS, YOUNG PEOPLE AND FAMILIES",THAME E&A HOME,CATERING PROVISIONS,23/10/2020,9247618203,5.01,TESCO STORES 4377
OXFORDSHIRE CC,"CHILDRENS, YOUNG PEOPLE AND FAMILIES","	MUSIC UNALLOCABLE",IT SOFTWARE,23/10/2020,9247618211,35.39,ADOBE CREATIVE CLOUD
OXFORDSHIRE CC,"CHILDRENS, YOUNG PEOPLE AND FAMILIES","	LEAVING CARE CITY 2",CATERING,23/10/2020,9247618217,4.10,CAFFE NERO CHIPPING NO
OXFORDSHIRE CC,"CHILDRENS, YOUNG PEOPLE AND FAMILIES","	LEAVING CARE CITY 2","SUPPLIES, STATIONERY AND MATERIALS",23/10/2020,9247618221,94.75,AMAZON.CO.UK MC0E38HZ4
OXFORDSHIRE CC,SOCIAL AND COMMUNITY SERVICES,"	KINGFISHER",CATERING PROVISIONS,23/10/2020,9247618227,13.77,OXFORD KFC
OXFORDSHIRE CC,"CHILDRENS, YOUNG PEOPLE AND FAMILIES","	LOOKED AFTER CITY 2",ENTERTAINMENT EXPENSES,23/10/2020,9247618491,6.00,PARADISE WILDLIFE PARK
OXFORDSHIRE CC,"CHILDRENS, YOUNG PEOPLE AND FAMILIES",WITNEY,CATERING,23/10/2020,9247618509,2.25,TESCO PFS 3418
OXFORDSHIRE CC,CORPORATE CORE,"	LEGAL SERVICES",PROFESSIONAL SUBSCRIPTIONS,23/10/2020,9247618537,"9,512.00",WWW.THELAWSOCIETY.ORG
OXFORDSHIRE CC,"CHILDRENS, YOUNG PEOPLE AND FAMILIES","	OCCG GRANT",MATERIALS,23/10/2020,9247618553,47.96,AMZNMKTPLACE
OXFORDSHIRE CC,"CHILDRENS, YOUNG PEOPLE AND FAMILIES","	OCCG GRANT",MATERIALS,23/10/2020,9247618559,7.56,AMZNMKTPLACE
OXFORDSHIRE CC,"CHILDRENS, YOUNG PEOPLE AND FAMILIES","	OCCG GRANT",MATERIALS,23/10/2020,9247618563,36.95,AMZNMKTPLACE
OXFORDSHIRE CC,"CHILDRENS, YOUNG PEOPLE AND FAMILIES","	LEAVING CARE NORTH",CLOTHING AND UNIFORMS,23/10/2020,9247618623,89.39,BOOHOO.COM
OXFORDSHIRE CC,SOCIAL AND COMMUNITY SERVICES,CSS WITNEY,MATERIALS,23/10/2020,9247618655,16.98,AMZNMKTPLACE AMAZON.CO
OXFORDSHIRE CC,SOCIAL AND COMMUNITY SERVICES,CSS WITNEY,MATERIALS,23/10/2020,9247618661,29.95,AMZNMKTPLACE AMAZON.CO
OXFORDSHIRE CC,SOCIAL AND COMMUNITY SERVICES,CSS WANTAGE,CATERING PROVISIONS,23/10/2020,9247618663,17.40,SAINSBURYS SACAT 2244
OXFORDSHIRE CC,"CHILDRENS, YOUNG PEOPLE AND FAMILIES","	SEN/ICT EQUIPMENT",PURCHASE OF IT EQUIPMENT,23/10/2020,9247618669,87.97,AMZNMKTPLACE AMAZON.CO
OXFORDSHIRE CC,SOCIAL AND COMMUNITY SERVICES,CSS - BANBURY,MATERIALS,23/10/2020,9247618729,36.46,AMAZON.CO.UK N08OA41U5
OXFORDSHIRE CC,"CHILDRENS, YOUNG PEOPLE AND FAMILIES",STH EARLY HELP-ABNDN,MATERIALS,23/10/2020,9247617915,39.99,AMZNMKTPLACE
OXFORDSHIRE CC,"CHILDRENS, YOUNG PEOPLE AND FAMILIES",UASC 16&17,"SUPPLIES, STATIONERY AND MATERIALS",23/10/2020,9247617933,50.00,JO JOS MOBILE
OXFORDSHIRE CC,"CHILDRENS, YOUNG PEOPLE AND FAMILIES","	LEAVING CARE CITY 2",HIRE OF ACCOMMODATION AND FACILITIES,23/10/2020,9247618793,57.99,PREMIER INN
OXFORDSHIRE CC,"CHILDRENS, YOUNG PEOPLE AND FAMILIES","	LOOKED AFTER CITY 1",RESIDENTIAL ACTIVITIES,23/10/2020,9247617943,29.99,PUREGYM LIMITED
OXFORDSHIRE CC,ENVIRONMENT AND ECONOMY,HARD FM,HARDWARE AND CROCKERY,23/10/2020,9247617947,6.98,SCREWFIX DIRECT
OXFORDSHIRE CC,ENVIRONMENT AND ECONOMY,HARD FM,HARDWARE AND CROCKERY,23/10/2020,9247617955,94.99,SCREWFIX DIRECT
OXFORDSHIRE CC,ENVIRONMENT AND ECONOMY,HARD FM,VEHICLES REPAIRS AND MAINTENANCE,23/10/2020,9247617963,100.00,MM COMMERCIALS ABINGDO
OXFORDSHIRE CC,ENVIRONMENT AND ECONOMY,HARD FM,VEHICLES REPAIRS AND MAINTENANCE,23/10/2020,9247617967,978.53,MM COMMERCIALS ABINGDO
OXFORDSHIRE CC,ENVIRONMENT AND ECONOMY,HARD FM,GENERAL MAINTENANCE,23/10/2020,9247617971,30.58,WOLSELEY UK
OXFORDSHIRE CC,"CHILDRENS, YOUNG PEOPLE AND FAMILIES",THAME E&A HOME,CATERING PROVISIONS,23/10/2020,9247617977,2.95,SAINSBURYS SACAT 2096
OXFORDSHIRE CC,"CHILDRENS, YOUNG PEOPLE AND FAMILIES",THAME E&A HOME,CATERING PROVISIONS,23/10/2020,9247617985,31.12,ASDA SUPERSTORE
OXFORDSHIRE CC,ENVIRONMENT AND ECONOMY,HARD FM,MATERIALS,23/10/2020,9247617993,240.00,A & C SERVICES (OXFORD
OXFORDSHIRE CC,"CHILDRENS, YOUNG PEOPLE AND FAMILIES","	LOOKED AFTER SOUTH",OTHER TRANSPORT ARRANGEMENTS,22/10/2020,9244799809,2.00,UNION STREET CAR PARK
OXFORDSHIRE CC,"CHILDRENS, YOUNG PEOPLE AND FAMILIES","	LOOKED AFTER SOUTH",CATERING PROVISIONS,22/10/2020,9244799811,23.55,SAINSBURYS 0600
OXFORDSHIRE CC,"CHILDRENS, YOUNG PEOPLE AND FAMILIES","	LOOKED AFTER SOUTH",CATERING,22/10/2020,9244799813,9.07,KFC
OXFORDSHIRE CC,"CHILDRENS, YOUNG PEOPLE AND FAMILIES","	LOOKED AFTER SOUTH",MATERIALS,22/10/2020,9244799815,329.00,ARGOS HEYFORD HILL
OXFORDSHIRE CC,"CHILDRENS, YOUNG PEOPLE AND FAMILIES","	LOOKED AFTER SOUTH",CATERING,22/10/2020,9244799817,4.21,MCDONALDS
OXFORDSHIRE CC,SOCIAL AND COMMUNITY SERVICES,FLEET OPERATIONS,MATERIALS,22/10/2020,9244799835,"1,179.41",LSW
OXFORDSHIRE CC,"CHILDRENS, YOUNG PEOPLE AND FAMILIES",EYNSHAM,MANAGEMENT CONSULTANT FEES,22/10/2020,9244799839,157.50,TVLICENSING.CO.UK
OXFORDSHIRE CC,,,CATERING,22/10/2020,9244799841,-10.29,BRAKE BROS LTD
OXFORDSHIRE CC,SOCIAL AND COMMUNITY SERVICES,"	KINGFISHER",CATERING PROVISIONS,22/10/2020,9244799555,2.00,NYA JURYS INN OXFORD
OXFORDSHIRE CC,SOCIAL AND COMMUNITY SERVICES,CSS WITNEY,MATERIALS,22/10/2020,9244799395,8.99,AMZNMKTPLACE
OXFORDSHIRE CC,SOCIAL AND COMMUNITY SERVICES,"	KINGFISHER",CATERING PROVISIONS,22/10/2020,9244799557,2.00,NYA JURYS INN OXFORD
OXFORDSHIRE CC,"CHILDRENS, YOUNG PEOPLE AND FAMILIES",CSS - ABINGDON,CATERING PROVISIONS,22/10/2020,9244799573,50.50,TESCO STORES 2008
OXFORDSHIRE CC,"CHILDRENS, YOUNG PEOPLE AND FAMILIES",CSS - ABINGDON,HARDWARE AND CROCKERY,22/10/2020,9244799575,12.65,B & Q 1156
OXFORDSHIRE CC,"CHILDRENS, YOUNG PEOPLE AND FAMILIES",DIDCOT MOVE-ON HOME,CATERING PROVISIONS,22/10/2020,9244799741,9.28,SAINSBURYS SACAT 2067
OXFORDSHIRE CC,"CHILDRENS, YOUNG PEOPLE AND FAMILIES",DIDCOT MOVE-ON HOME,CATERING PROVISIONS,22/10/2020,9244799743,3.68,TESCO STORE 2413
OXFORDSHIRE CC,"CHILDRENS, YOUNG PEOPLE AND FAMILIES",EYNSHAM,VEHICLE FUEL,22/10/2020,9244799751,2.00,SHELL PEARTREE
OXFORDSHIRE CC,"CHILDRENS, YOUNG PEOPLE AND FAMILIES",DIDCOT MOVE-ON HOME,CATERING PROVISIONS,22/10/2020,9244799499,1.10,SAINSBURYS SACAT 2067
OXFORDSHIRE CC,SOCIAL AND COMMUNITY SERVICES,"	CENTRAL LIBRARY",PAYMENT TO GOVERNMENT DEPARTMENTS,22/10/2020,9244799757,1.50,OCC LIBRARY SERVICES
OXFORDSHIRE CC,SOCIAL AND COMMUNITY SERVICES,"	CENTRAL LIBRARY",PAYMENT TO GOVERNMENT DEPARTMENTS,22/10/2020,9244799759,1.00,OXFORD COUNTY LIBRARY
OXFORDSHIRE CC,"CHILDRENS, YOUNG PEOPLE AND FAMILIES","	LEAVING CARE CITY 2",HIRE OF ACCOMMODATION AND FACILITIES,22/10/2020,9244799761,65.49,PREMIER INN
OXFORDSHIRE CC,"CHILDRENS, YOUNG PEOPLE AND FAMILIES","	LEAVING CARE CITY 2","SUPPLIES, STATIONERY AND MATERIALS",22/10/2020,9244799763,-56.16,PAYPAL  SALLYSALONS
OXFORDSHIRE CC,"CHILDRENS, YOUNG PEOPLE AND FAMILIES","	LEAVING CARE SOUTH",MATERIALS,22/10/2020,9244799765,10.98,AMZNMKTPLACE
OXFORDSHIRE CC,"CHILDRENS, YOUNG PEOPLE AND FAMILIES","	LEAVING CARE SOUTH",MATERIALS,22/10/2020,9244799767,8.99,AMZNMKTPLACE
OXFORDSHIRE CC,"CHILDRENS, YOUNG PEOPLE AND FAMILIES","	LEAVING CARE SOUTH",MATERIALS,22/10/2020,9244799769,6.49,AMZNMKTPLACE
OXFORDSHIRE CC,"CHILDRENS, YOUNG PEOPLE AND FAMILIES","	LEAVING CARE SOUTH",MATERIALS,22/10/2020,9244799771,9.98,AMZNMKTPLACE
OXFORDSHIRE CC,"CHILDRENS, YOUNG PEOPLE AND FAMILIES","	LEAVING CARE SOUTH",MATERIALS,22/10/2020,9244799773,3.55,AMZNMKTPLACE
OXFORDSHIRE CC,"CHILDRENS, YOUNG PEOPLE AND FAMILIES",STH EARLY HELP-ABNDN,"BOOKS, DVDS AND CDS",22/10/2020,9244799511,7.99,AMAZON.CO.UK SR8WE2YD5
OXFORDSHIRE CC,"CHILDRENS, YOUNG PEOPLE AND FAMILIES",STH EARLY HELP-ABNDN,"BOOKS, DVDS AND CDS",22/10/2020,9244799513,7.99,AMAZON.CO.UK 5J2NW25W5
OXFORDSHIRE CC,"CHILDRENS, YOUNG PEOPLE AND FAMILIES",STH EARLY HELP-ABNDN,"BOOKS, DVDS AND CDS",22/10/2020,9244799515,47.94,AMAZON.CO.UK ZA0PI8RV5
OXFORDSHIRE CC,"CHILDRENS, YOUNG PEOPLE AND FAMILIES","	LEAVING CARE SOUTH",MATERIALS,22/10/2020,9244799775,70.00,WWW.BRISTOL-CITY.GOV.U
OXFORDSHIRE CC,CORPORATE CORE,ICT OPERATIONS & MAI,IT SOFTWARE,22/10/2020,9244799777,225.00,FS  SONOCENT
OXFORDSHIRE CC,SOCIAL AND COMMUNITY SERVICES,"	SHARED LIVES",PAYMENT TO GOVERNMENT DEPARTMENTS,22/10/2020,9244799785,421.25,CHERWELL DC
OXFORDSHIRE CC,"CHILDRENS, YOUNG PEOPLE AND FAMILIES",EYNSHAM,CATERING PROVISIONS,22/10/2020,9244799789,3.20,CO-OPERATIVE FOOD
OXFORDSHIRE CC,"CHILDRENS, YOUNG PEOPLE AND FAMILIES","	ASSESS TEAM CITY",HIRE OF ACCOMMODATION AND FACILITIES,22/10/2020,9244799791,254.43,TRAVELODGE
OXFORDSHIRE CC,SOCIAL AND COMMUNITY SERVICES,"	MENTAL CAPACITY",OTHER TRAINING COURSES AND QUALIFICATION,22/10/2020,9244799793,180.00,PAYPAL  EDGETRAININ
OXFORDSHIRE CC,"CHILDRENS, YOUNG PEOPLE AND FAMILIES",THAME E&A HOME,MATERIALS,22/10/2020,9244799375,20.98,AMZNMKTPLACE
OXFORDSHIRE CC,"CHILDRENS, YOUNG PEOPLE AND FAMILIES",CSC COVID-19,TELEPHONE - EQUIPMENT,22/10/2020,9244799527,20.00,VESTA   VODAFONE TOPUP
OXFORDSHIRE CC,SOCIAL AND COMMUNITY SERVICES,CSS - OXFORD,CATERING PROVISIONS,22/10/2020,9244799529,6.40,TESCO STORE 2994
OXFORDSHIRE CC,CORPORATE CORE,"MARKETING, COMMUNICATIONS & ENGAGEMENT","PUBLICITY, PROMOTIONS AND ADVERTISEMENT",22/10/2020,9244799531,33.16,SNAP  ADS
OXFORDSHIRE CC,"CHILDRENS, YOUNG PEOPLE AND FAMILIES","	SM QUALITY ASSURANCE",PAYMENTS TO TRANSPORT OPERATORS,22/10/2020,9244799533,48.10,TRAINLINE
OXFORDSHIRE CC,SOCIAL AND COMMUNITY SERVICES,CSS WALLINGFORD,CATERING PROVISIONS,22/10/2020,9244799535,8.50,WAITROSE 675
OXFORDSHIRE CC,SOCIAL AND COMMUNITY SERVICES,LOOKED AFTER SOUTH,VEHICLE FUEL,22/10/2020,9244799537,26.22,TESCO PFS 3932
OXFORDSHIRE CC,SOCIAL AND COMMUNITY SERVICES,CSS - OXFORD,CATERING PROVISIONS,22/10/2020,9244799543,27.62,TESCO STORE 2994
OXFORDSHIRE CC,CORPORATE CORE,MOTOR FLEET,MOTOR IF OWN DAMAGE,22/10/2020,9244799795,656.04,WWW.OXFORDDDS.COM
OXFORDSHIRE CC,"CHILDRENS, YOUNG PEOPLE AND FAMILIES",THAME E&A HOME,CATERING,22/10/2020,9244799803,4.70,COSTA TEMPLAR SQUARE O
OXFORDSHIRE CC,"CHILDRENS, YOUNG PEOPLE AND FAMILIES",THAME E&A HOME,MATERIALS,22/10/2020,9244799805,80.00,J D SPORTS
OXFORDSHIRE CC,"CHILDRENS, YOUNG PEOPLE AND FAMILIES",NTH EARLY HELP-BCSTR,MATERIALS,22/10/2020,9244799663,18.99,AMAZON.CO.UK V339V3BU5
OXFORDSHIRE CC,ENVIRONMENT AND ECONOMY,"	TVERC",OTHER TRAINING COURSES AND QUALIFICATION,22/10/2020,9244799457,30.00,PAYPAL  NATIONALBIO
OXFORDSHIRE CC,ENVIRONMENT AND ECONOMY,"	TVERC",OTHER TRAINING COURSES AND QUALIFICATION,22/10/2020,9244799459,90.00,PAYPAL  NATIONALBIO
OXFORDSHIRE CC,SOCIAL AND COMMUNITY SERVICES,CSS - OXFORD,MATERIALS,22/10/2020,9244799461,55.80,MASONS
OXFORDSHIRE CC,SOCIAL AND COMMUNITY SERVICES,CSS - OXFORD,MATERIALS,22/10/2020,9244799463,40.20,MASONS
OXFORDSHIRE CC,"CHILDRENS, YOUNG PEOPLE AND FAMILIES",KEEP ON CARING,"SUPPLIES, STATIONERY AND MATERIALS",22/10/2020,9244799465,8.27,CARD FACTORY
OXFORDSHIRE CC,"CHILDRENS, YOUNG PEOPLE AND FAMILIES","	RESIDENTIAL STRATEGY",EDUCATIONAL AND VOCATIONAL TRAINING ,22/10/2020,9244799467,156.00,PROTRAININGS
OXFORDSHIRE CC,"CHILDRENS, YOUNG PEOPLE AND FAMILIES","	RESIDENTIAL STRATEGY",CATERING PROVISIONS,22/10/2020,9244799693,14.50,SQ  THE COD FATHER FIS
OXFORDSHIRE CC,ENVIRONMENT AND ECONOMY,"	FM RECHARGES",HARDWARE AND CROCKERY,22/10/2020,9244799493,9.87,SCREWFIX DIRECT
OXFORDSHIRE CC,ENTERPRISEVC,BUSINESS SYST STAFF,MATERIALS,22/10/2020,9244799495,2.99,AMZNMKTPLACE
OXFORDSHIRE CC,ENVIRONMENT AND ECONOMY,THE OXFORDSHIRE MUSEUM - SITE,EQUIPMENT,22/10/2020,9244799695,20.39,AMZNMKTPLACE
OXFORDSHIRE CC,SOCIAL AND COMMUNITY SERVICES,CSS WITNEY,MATERIALS,22/10/2020,9244799705,8.19,AMZNMKTPLACE AMAZON.CO
OXFORDSHIRE CC,"CHILDRENS, YOUNG PEOPLE AND FAMILIES","	SEN/ICT EQUIPMENT",PURCHASE OF IT EQUIPMENT,22/10/2020,9244799707,22.49,AMZNMKTPLACE AMAZON.CO
OXFORDSHIRE CC,"CHILDRENS, YOUNG PEOPLE AND FAMILIES","	SEN/ICT EQUIPMENT",PURCHASE OF IT EQUIPMENT,22/10/2020,9244799707,7.82,AMZNMKTPLACE AMAZON.CO
OXFORDSHIRE CC,"CHILDRENS, YOUNG PEOPLE AND FAMILIES","	EDM",MATERIALS,22/10/2020,9244799707,.00,AMZNMKTPLACE AMAZON.CO
OXFORDSHIRE CC,"CHILDRENS, YOUNG PEOPLE AND FAMILIES","	EDM",MATERIALS,22/10/2020,9244799707,.00,AMZNMKTPLACE AMAZON.CO
OXFORDSHIRE CC,"CHILDRENS, YOUNG PEOPLE AND FAMILIES","	EDM",MATERIALS,22/10/2020,9244799707,.00,AMZNMKTPLACE AMAZON.CO
OXFORDSHIRE CC,"CHILDRENS, YOUNG PEOPLE AND FAMILIES","	EDM",MATERIALS,22/10/2020,9244799707,.00,AMZNMKTPLACE AMAZON.CO
OXFORDSHIRE CC,"CHILDRENS, YOUNG PEOPLE AND FAMILIES","	SEN/ICT EQUIPMENT",PURCHASE OF IT EQUIPMENT,22/10/2020,9244799709,5.69,AMZNMKTPLACE
OXFORDSHIRE CC,"CHILDRENS, YOUNG PEOPLE AND FAMILIES","	SEN/ICT EQUIPMENT",PURCHASE OF IT EQUIPMENT,22/10/2020,9244799711,41.64,AMZNMKTPLACE AMAZON.CO
OXFORDSHIRE CC,ENVIRONMENT AND ECONOMY,"	ROW MAINT",MATERIALS,22/10/2020,9244799713,22.32,M & M SKIP HIRE
OXFORDSHIRE CC,"CHILDRENS, YOUNG PEOPLE AND FAMILIES",DIDCOT MOVE-ON HOME,CATERING PROVISIONS,22/10/2020,9244799497,8.98,B&M 515 - ABINGDON
OXFORDSHIRE CC,ENVIRONMENT AND ECONOMY,"	FLEET OPERATIONS",VEHICLE EQUIPMENT AND EXPENSES - OTHER,22/10/2020,9244799715,2.50,DART-CHARGE
OXFORDSHIRE CC,SOCIAL AND COMMUNITY SERVICES,CSS - BANBURY,MATERIALS,22/10/2020,9244799733,11.98,AMZNMKTPLACE
OXFORDSHIRE CC,"CHILDRENS, YOUNG PEOPLE AND FAMILIES","	40 THE MOORS",CLOTHING AND UNIFORMS,22/10/2020,9244799737,67.99,WWW.CONSORTIUM.CO.UK
OXFORDSHIRE CC,"CHILDRENS, YOUNG PEOPLE AND FAMILIES","	LOOKED AFTER SOUTH",PAYMENTS TO TRANSPORT OPERATORS,22/10/2020,9244799413,362.64,BRITISH A
OXFORDSHIRE CC,"CHILDRENS, YOUNG PEOPLE AND FAMILIES","	LOOKED AFTER SOUTH",OTHER TRANSPORT ARRANGEMENTS,22/10/2020,9244799415,87.00,STAGECOACH SERVICE
OXFORDSHIRE CC,"CHILDRENS, YOUNG PEOPLE AND FAMILIES","	LOOKED AFTER SOUTH",HIRE OF ACCOMMODATION AND FACILITIES,22/10/2020,9244799417,53.00,THE HIGHFIELD
OXFORDSHIRE CC,"CHILDRENS, YOUNG PEOPLE AND FAMILIES","	LOOKED AFTER SOUTH",HIRE OF ACCOMMODATION AND FACILITIES,22/10/2020,9244799419,53.00,THE HIGHFIELD
OXFORDSHIRE CC,"CHILDRENS, YOUNG PEOPLE AND FAMILIES","	LOOKED AFTER SOUTH",OTHER TRANSPORT ARRANGEMENTS,22/10/2020,9244799421,17.00,STAR CABS LIMITED
OXFORDSHIRE CC,"CHILDRENS, YOUNG PEOPLE AND FAMILIES","	LOOKED AFTER SOUTH",DAY ACTIVITIES,22/10/2020,9244799423,14.20,WWW.360PLAY.UK.COM
OXFORDSHIRE CC,SOCIAL AND COMMUNITY SERVICES,RESIDENTIAL STRATEGY,CATERING PROVISIONS,22/10/2020,9244799577,2.99,DIAMOND CONVENIENCE ST
OXFORDSHIRE CC,"CHILDRENS, YOUNG PEOPLE AND FAMILIES","	LEAVING CARE SOUTH",FURNITURE,22/10/2020,9244799585,131.00,IKEA LTD SHOP ONLINE
OXFORDSHIRE CC,SHARED SERVICES,COVID-19 COD,STATIONERY,22/10/2020,9244799587,11.81,AMAZON.CO.UK FF48P2VZ5
OXFORDSHIRE CC,SHARED SERVICES,COVID-19 COD,STATIONERY,22/10/2020,9244799589,106.64,AMZNMKTPLACE
OXFORDSHIRE CC,"CHILDRENS, YOUNG PEOPLE AND FAMILIES","	MANAGEMENT & ADMIN",IT SOFTWARE,22/10/2020,9244799435,86.40,WIX.COM
OXFORDSHIRE CC,SOCIAL AND COMMUNITY SERVICES,CSS BICESTER,MATERIALS,22/10/2020,9244799437,39.96,AMZNMKTPLACE AMAZON.CO
OXFORDSHIRE CC,"CHILDRENS, YOUNG PEOPLE AND FAMILIES","	LOOKED AFTER CITY 1",RESIDENTIAL ACTIVITIES,22/10/2020,9244799439,29.99,PUREGYM LIMITED
OXFORDSHIRE CC,ENVIRONMENT AND ECONOMY,HARD FM,GENERAL MAINTENANCE,22/10/2020,9244799441,119.04,WOLSELEY UK
OXFORDSHIRE CC,ENVIRONMENT AND ECONOMY,HARD FM,GENERAL MAINTENANCE,22/10/2020,9244799443,372.02,WOLSELEY UK
OXFORDSHIRE CC,"CHILDRENS, YOUNG PEOPLE AND FAMILIES","	SEN/ICT EQUIPMENT",IT SOFTWARE,22/10/2020,9244799599,28.00,MIRADORE
OXFORDSHIRE CC,CORPORATE CORE,"MARKETING, COMMUNICATIONS & ENGAGEMENT","PUBLICITY, PROMOTIONS AND ADVERTISEMENT",22/10/2020,9244799601,500.00,FACEBK MKQ7XW2AZ2
OXFORDSHIRE CC,"CHILDRENS, YOUNG PEOPLE AND FAMILIES","	OCCG GRANT",CATERING,22/10/2020,9244799605,3.51,COSTA COFFEE 43039930
OXFORDSHIRE CC,"CHILDRENS, YOUNG PEOPLE AND FAMILIES",CSC COVID-19,CATERING,22/10/2020,9244799607,5.10,TESCO STORE 2064
OXFORDSHIRE CC,"CHILDRENS, YOUNG PEOPLE AND FAMILIES","	OCCG GRANT",FURNITURE,22/10/2020,9244799609,19.00,TESCO STORE 2064
OXFORDSHIRE CC,"CHILDRENS, YOUNG PEOPLE AND FAMILIES",CSC COVID-19,CATERING,22/10/2020,9244799611,4.43,TESCO STORE 2064
OXFORDSHIRE CC,"CHILDRENS, YOUNG PEOPLE AND FAMILIES","	OCCG GRANT",FURNITURE,22/10/2020,9244799613,12.00,TESCO STORE 2064
OXFORDSHIRE CC,"CHILDRENS, YOUNG PEOPLE AND FAMILIES","	LEAVING CARE CITY 1",FURNITURE,22/10/2020,9244799615,209.00,SILENTNIGHT GROUP
OXFORDSHIRE CC,CORPORATE CORE,OPERATIONS,MATERIALS,22/10/2020,9244799649,12.99,AMAZON.CO.UK IA8WZ1S05
OXFORDSHIRE CC,CORPORATE CORE,LIBRARY COLLECTIONS,MATERIALS,22/10/2020,9244799651,4.95,AMAZON.CO.UK Q86C47275
OXFORDSHIRE CC,ENVIRONMENT AND ECONOMY,HARD FM,GENERAL MAINTENANCE,22/10/2020,9244799445,76.02,WOLSELEY UK
OXFORDSHIRE CC,ENVIRONMENT AND ECONOMY,HARD FM,GENERAL MAINTENANCE,22/10/2020,9244799447,48.02,WOLSELEY UK
OXFORDSHIRE CC,ENVIRONMENT AND ECONOMY,HARD FM,GENERAL MAINTENANCE,22/10/2020,9244799449,161.34,WOLSELEY UK
OXFORDSHIRE CC,ENVIRONMENT AND ECONOMY,HARD FM,HARDWARE AND CROCKERY,22/10/2020,9244799451,26.36,WICKES OXFORD
OXFORDSHIRE CC,ENVIRONMENT AND ECONOMY,COUNTY LIBRARY,GENERAL MAINTENANCE,22/10/2020,9244799453,62.84,WOLSELEY UK
OXFORDSHIRE CC,ENVIRONMENT AND ECONOMY,COUNTY LIBRARY,GENERAL MAINTENANCE,22/10/2020,9244799455,52.58,WOLSELEY UK
OXFORDSHIRE CC,"CHILDRENS, YOUNG PEOPLE AND FAMILIES",HOUSE PROJECT,OTHER TRANSPORT ARRANGEMENTS,21/10/2020,9241279747,4.00,WESTGATE OXFORD CAR PA
OXFORDSHIRE CC,CORPORATE CORE,MOTOR FLEET,MOTOR IF FEES,21/10/2020,9241279759,4.50,WWW.MIB.ORG.UK
OXFORDSHIRE CC,"CHILDRENS, YOUNG PEOPLE AND FAMILIES","	LOOKED AFTER SOUTH",HOSPITALITY EXPENSES,21/10/2020,9241279781,10.49,WHITE HORSE
OXFORDSHIRE CC,"CHILDRENS, YOUNG PEOPLE AND FAMILIES",MEMBERS ALLOWANCES,HIRE OF ACCOMMODATION AND FACILITIES,21/10/2020,9241278387,78.45,THE OLD MILL
OXFORDSHIRE CC,ENVIRONMENT AND ECONOMY,HARD FM,MATERIALS,21/10/2020,9241278395,12.50,HALFORDS 0988
OXFORDSHIRE CC,ENVIRONMENT AND ECONOMY,HARD FM,HARDWARE AND CROCKERY,21/10/2020,9241278405,-154.76,OXON FASTENING SYSTEMS
OXFORDSHIRE CC,ENVIRONMENT AND ECONOMY,HARD FM,HARDWARE AND CROCKERY,21/10/2020,9241278415,10.80,ALAN ASTON ROOFING
OXFORDSHIRE CC,ENVIRONMENT AND ECONOMY,HARD FM,HARDWARE AND CROCKERY,21/10/2020,9241278423,21.45,CITY PLUMBING
OXFORDSHIRE CC,ENVIRONMENT AND ECONOMY,HARD FM,HARDWARE AND CROCKERY,21/10/2020,9241278427,34.65,SCREWFIX OXFORD
OXFORDSHIRE CC,ENVIRONMENT AND ECONOMY,"	COUNTY PRINT FINSHRS",MATERIALS,21/10/2020,9241278449,170.97,AMAZON.CO.UK EJ3UJ6AQ5
OXFORDSHIRE CC,SOCIAL AND COMMUNITY SERVICES,CSS - OXFORD,MATERIALS,21/10/2020,9241278461,58.05,HOBBYCRAFT
OXFORDSHIRE CC,SOCIAL AND COMMUNITY SERVICES,CSS - BANBURY,CATERING PROVISIONS,21/10/2020,9241279459,12.52,TESCO STORE 2064
OXFORDSHIRE CC,"CHILDRENS, YOUNG PEOPLE AND FAMILIES","	LOOKED AFTER SOUTH","SUPPLIES, STATIONERY AND MATERIALS",21/10/2020,9241279471,29.85,WWW.PILOTFISHTRADING
OXFORDSHIRE CC,"CHILDRENS, YOUNG PEOPLE AND FAMILIES",CSS WALLINGFORD,CATERING PROVISIONS,21/10/2020,9241278155,27.00,WAITROSE 675
OXFORDSHIRE CC,"CHILDRENS, YOUNG PEOPLE AND FAMILIES",SOUTH FSS STATUTORY - ABINGDON,OTHER COMMUNICATIONS,21/10/2020,9241278165,10.00,EE TOPUP  VESTA
OXFORDSHIRE CC,"CHILDRENS, YOUNG PEOPLE AND FAMILIES",THAME E&A HOME,MATERIALS,21/10/2020,9241278173,5.64,AMZNMKTPLACE
OXFORDSHIRE CC,"CHILDRENS, YOUNG PEOPLE AND FAMILIES",THAME E&A HOME,MATERIALS,21/10/2020,9241278183,19.98,AMZNMKTPLACE
OXFORDSHIRE CC,"CHILDRENS, YOUNG PEOPLE AND FAMILIES",THAME E&A HOME,MATERIALS,21/10/2020,9241278191,20.57,AMZNMKTPLACE
OXFORDSHIRE CC,"CHILDRENS, YOUNG PEOPLE AND FAMILIES",THAME E&A HOME,CATERING PROVISIONS,21/10/2020,9241278199,12.50,WAITROSE 206
OXFORDSHIRE CC,ENVIRONMENT AND ECONOMY,"	LOWER WINDRUSH PROJ",EQUIPMENT,21/10/2020,9241279557,145.20,ATLANTIC PUMPS LTD
OXFORDSHIRE CC,ENVIRONMENT AND ECONOMY,"	LOWER WINDRUSH PROJ",EQUIPMENT,21/10/2020,9241279561,67.15,KINGFISHERDIRECT
OXFORDSHIRE CC,"CHILDRENS, YOUNG PEOPLE AND FAMILIES",CNTL ERLY HELP-BBLEY,CATERING PROVISIONS,21/10/2020,9241279565,.80,TESCO STORE 2990
OXFORDSHIRE CC,"CHILDRENS, YOUNG PEOPLE AND FAMILIES","	LEAVING CARE CITY 2",HIRE OF ACCOMMODATION AND FACILITIES,21/10/2020,9241279577,49.00,PREMIER INN
OXFORDSHIRE CC,"CHILDRENS, YOUNG PEOPLE AND FAMILIES","	LEAVING CARE CITY 2",HIRE OF ACCOMMODATION AND FACILITIES,21/10/2020,9241279581,56.50,PREMIER INN
OXFORDSHIRE CC,SOCIAL AND COMMUNITY SERVICES,CSS WITNEY,CATERING PROVISIONS,21/10/2020,9241278215,5.50,SAINSBURYS 0632
OXFORDSHIRE CC,"CHILDRENS, YOUNG PEOPLE AND FAMILIES","	LOOKED AFTER CITY 2",OTHER TRANSPORT ARRANGEMENTS,21/10/2020,9241279587,3.30,OXFORD BUS COMPANY
OXFORDSHIRE CC,"CHILDRENS, YOUNG PEOPLE AND FAMILIES","	LEAVING CARE CITY 2",HIRE OF ACCOMMODATION AND FACILITIES,21/10/2020,9241279591,-49.00,PREMIER INN
OXFORDSHIRE CC,"CHILDRENS, YOUNG PEOPLE AND FAMILIES","	LEAVING CARE SOUTH",MATERIALS,21/10/2020,9241279601,23.98,AMZNMKTPLACE
OXFORDSHIRE CC,"CHILDRENS, YOUNG PEOPLE AND FAMILIES","	LEAVING CARE SOUTH",MATERIALS,21/10/2020,9241279605,26.98,AMZNMKTPLACE
OXFORDSHIRE CC,"CHILDRENS, YOUNG PEOPLE AND FAMILIES","	LEAVING CARE SOUTH",MATERIALS,21/10/2020,9241279609,38.48,AMZNMKTPLACE
OXFORDSHIRE CC,"CHILDRENS, YOUNG PEOPLE AND FAMILIES","	LEAVING CARE SOUTH",MATERIALS,21/10/2020,9241279611,10.80,AMZNMKTPLACE
OXFORDSHIRE CC,"CHILDRENS, YOUNG PEOPLE AND FAMILIES","	LEAVING CARE SOUTH",MATERIALS,21/10/2020,9241279619,5.00,AMZNMKTPLACE
OXFORDSHIRE CC,"CHILDRENS, YOUNG PEOPLE AND FAMILIES","	LEAVING CARE SOUTH",MATERIALS,21/10/2020,9241279625,22.43,AMZNMKTPLACE
OXFORDSHIRE CC,"CHILDRENS, YOUNG PEOPLE AND FAMILIES","	LEAVING CARE SOUTH",MATERIALS,21/10/2020,9241279633,13.55,AMZNMKTPLACE
OXFORDSHIRE CC,"CHILDRENS, YOUNG PEOPLE AND FAMILIES","	LEAVING CARE SOUTH",MATERIALS,21/10/2020,9241279639,80.46,AMZNMKTPLACE
OXFORDSHIRE CC,SOCIAL AND COMMUNITY SERVICES,CSS - ABINGDON,CATERING PROVISIONS,21/10/2020,9241278323,17.50,WAITROSE 211
OXFORDSHIRE CC,ENVIRONMENT AND ECONOMY,"	NAT TRAILS GENERAL",VEHICLE FUEL,21/10/2020,9241278351,23.33,TESCO PAY AT PUMP 2488
OXFORDSHIRE CC,SOCIAL AND COMMUNITY SERVICES,CSS BICESTER,MATERIALS,21/10/2020,9241278363,35.38,AMZNMKTPLACE
OXFORDSHIRE CC,"CHILDRENS, YOUNG PEOPLE AND FAMILIES",THAME E&A HOME,CATERING PROVISIONS,21/10/2020,9241278373,49.42,ASDA SUPERSTORE
OXFORDSHIRE CC,"CHILDRENS, YOUNG PEOPLE AND FAMILIES","	LEAVING CARE SOUTH",CATERING PROVISIONS,21/10/2020,9241279645,92.00,SAINSBURYS SACAT 0642
OXFORDSHIRE CC,"CHILDRENS, YOUNG PEOPLE AND FAMILIES","	LEAVING CARE SOUTH",MATERIALS,21/10/2020,9241279655,9.99,AMZNMKTPLACE
OXFORDSHIRE CC,"CHILDRENS, YOUNG PEOPLE AND FAMILIES","	LEAVING CARE SOUTH",MATERIALS,21/10/2020,9241279663,21.98,AMZNMKTPLACE
OXFORDSHIRE CC,CORPORATE CORE,ICT OPERATIONS & MAI,MATERIALS,21/10/2020,9241279681,27.35,AMAZON.CO.UK ZV7B70KC5
OXFORDSHIRE CC,"CHILDRENS, YOUNG PEOPLE AND FAMILIES",WITNEY,VEHICLE FUEL,21/10/2020,9241279705,5.25,TESCO PFS 3418
OXFORDSHIRE CC,"CHILDRENS, YOUNG PEOPLE AND FAMILIES",EYNSHAM,CATERING PROVISIONS,21/10/2020,9241279729,146.20,TESCO STORES 2008
OXFORDSHIRE CC,CORPORATE CORE,"MARKETING, COMMUNICATIONS & ENGAGEMENT","PUBLICITY, PROMOTIONS AND ADVERTISEMENT",21/10/2020,9241278947,500.00,GOOGLE  ADS4896546035
OXFORDSHIRE CC,CORPORATE CORE,OPERATIONS,EQUIPMENT,21/10/2020,9241279113,49.99,AMZNMKTPLACE AMAZON.CO
OXFORDSHIRE CC,CORPORATE CORE,OPERATIONS,EQUIPMENT,21/10/2020,9241279121,4.49,AMAZON.CO.UK CA9J53NA5
OXFORDSHIRE CC,"CHILDRENS, YOUNG PEOPLE AND FAMILIES","	MUSIC UNALLOCABLE",HARDWARE AND CROCKERY,21/10/2020,9241279149,502.90,ALUMINIUM ACCESS PRODU
OXFORDSHIRE CC,ENVIRONMENT AND ECONOMY,"	COUNTY HALL",MATERIALS,21/10/2020,9241279163,485.00,WWW.MOWDIRECT.CO.UK
OXFORDSHIRE CC,ENVIRONMENT AND ECONOMY,"	BRIDGES GENERAL",MATERIALS,21/10/2020,9241279175,185.90,AMZNMKTPLACE
OXFORDSHIRE CC,CORPORATE CORE,"	ORGANISATIONAL DEV'T",IT SOFTWARE,21/10/2020,9241279221,708.00,ADOBE CREATIVE CLOUD
OXFORDSHIRE CC,"CHILDRENS, YOUNG PEOPLE AND FAMILIES","	RESIDENTIAL STRATEGY",CATERING PROVISIONS,21/10/2020,9241279231,12.00,TESCO STORE 2990
OXFORDSHIRE CC,"CHILDRENS, YOUNG PEOPLE AND FAMILIES","	RESIDENTIAL STRATEGY",VEHICLE FUEL,21/10/2020,9241279237,15.80,SHELL WITNEY
OXFORDSHIRE CC,SOCIAL AND COMMUNITY SERVICES,LEAVING CARE NORTH,MATERIALS,21/10/2020,9241279255,214.99,AMZNMKTPLACE AMAZON.CO
OXFORDSHIRE CC,"CHILDRENS, YOUNG PEOPLE AND FAMILIES","	LEAVING CARE NORTH",HIRED AND CONTRACTED SERVICES,21/10/2020,9241279287,125.00,MAGENTA STORAGE
OXFORDSHIRE CC,SOCIAL AND COMMUNITY SERVICES,CSS WITNEY,MATERIALS,21/10/2020,9241279373,59.80,AMZNMKTPLACE AMAZON.CO
OXFORDSHIRE CC,ENVIRONMENT AND ECONOMY,"	FLEET OPERATIONS",POSTAGE AND DELIVERY,21/10/2020,9241279411,11.18,POST OFFICE COUNTER
OXFORDSHIRE CC,SOCIAL AND COMMUNITY SERVICES,CSS - BANBURY,CATERING PROVISIONS,21/10/2020,9241278085,4.00,TESCO-STORES-5812
OXFORDSHIRE CC,"CHILDRENS, YOUNG PEOPLE AND FAMILIES","	MALTFIELD HOUSE",CATERING PROVISIONS,21/10/2020,9241279433,6.70,SAINSBURYS 0632
OXFORDSHIRE CC,SOCIAL AND COMMUNITY SERVICES,CSS BICESTER,MATERIALS,21/10/2020,9241278467,20.00,POUNDLAND LTD 1505
OXFORDSHIRE CC,ENTERPRISEVC,BUSINESS SYST STAFF,MATERIALS,21/10/2020,9241278513,3.23,AMAZON.CO.UK AO5S15KM5
OXFORDSHIRE CC,ENTERPRISEVC,BUSINESS SYST STAFF,MATERIALS,21/10/2020,9241278519,16.12,AMAZON.CO.UK TB7YR5S65
OXFORDSHIRE CC,SOCIAL AND COMMUNITY SERVICES,SCHOOLS FM,CATERING,21/10/2020,9241278531,14.98,BOOKER LIMITED OXFORD
OXFORDSHIRE CC,"CHILDRENS, YOUNG PEOPLE AND FAMILIES",EYNSHAM,MATERIALS,21/10/2020,9241279997,11.99,AMAZON.CO.UK 985AK3KA5
OXFORDSHIRE CC,CORPORATE CORE,,"SUPPLIES, STATIONERY AND MATERIALS",21/10/2020,9241280015,2.66,LYRECO UK LTD
OXFORDSHIRE CC,CORPORATE CORE,,"SUPPLIES, STATIONERY AND MATERIALS",21/10/2020,9241280029,28.26,LYRECO UK LTD
OXFORDSHIRE CC,CORPORATE CORE,,"SUPPLIES, STATIONERY AND MATERIALS",21/10/2020,9241280041,20.64,LYRECO UK LTD
OXFORDSHIRE CC,CORPORATE CORE,,"SUPPLIES, STATIONERY AND MATERIALS",21/10/2020,9241280051,335.59,LYRECO UK LTD
OXFORDSHIRE CC,CORPORATE CORE,,"SUPPLIES, STATIONERY AND MATERIALS",21/10/2020,9241280067,15.80,LYRECO UK LTD
OXFORDSHIRE CC,CORPORATE CORE,,"SUPPLIES, STATIONERY AND MATERIALS",21/10/2020,9241280079,36.20,LYRECO UK LTD
OXFORDSHIRE CC,ENTERPRISEVC,,CAR LEASING - PRIVATE RENTALS,21/10/2020,9241280093,62.08,ENTERPRISE RENT-A-CAR
OXFORDSHIRE CC,ENTERPRISEVC,,CAR LEASING - PRIVATE RENTALS,21/10/2020,9241280101,43.18,ENTERPRISE RENT-A-CAR
OXFORDSHIRE CC,ENTERPRISEVC,,CAR LEASING - PRIVATE RENTALS,21/10/2020,9241280111,46.85,ENTERPRISE RENT-A-CAR
OXFORDSHIRE CC,SOCIAL AND COMMUNITY SERVICES,DIDCOT MOVE-ON HOME,CATERING PROVISIONS,21/10/2020,9241278591,9.59,SAINSBURYS 2067
OXFORDSHIRE CC,ENTERPRISEVC,,CAR LEASING - PRIVATE RENTALS,21/10/2020,9241280121,43.18,ENTERPRISE RENT-A-CAR
OXFORDSHIRE CC,ENTERPRISEVC,,CAR LEASING - PRIVATE RENTALS,21/10/2020,9241280131,69.71,ENTERPRISE RENT-A-CAR
OXFORDSHIRE CC,ENTERPRISEVC,,CAR LEASING - PRIVATE RENTALS,21/10/2020,9241280141,115.07,ENTERPRISE RENT-A-CAR
OXFORDSHIRE CC,,,CATERING,21/10/2020,9241280161,127.99,BRAKE BROS LTD
OXFORDSHIRE CC,,,CATERING,21/10/2020,9241280181,10.29,BRAKE BROS LTD
OXFORDSHIRE CC,SOCIAL AND COMMUNITY SERVICES,CSS - OXFORD,MATERIALS,21/10/2020,9241278683,11.96,AMZNMKTPLACE
OXFORDSHIRE CC,SOCIAL AND COMMUNITY SERVICES,CSS - OXFORD,MATERIALS,21/10/2020,9241278691,19.94,AMZNMKTPLACE
OXFORDSHIRE CC,SOCIAL AND COMMUNITY SERVICES,CSS - OXFORD,MATERIALS,21/10/2020,9241278699,5.99,AMZNMKTPLACE
OXFORDSHIRE CC,CORPORATE CORE,"MARKETING, COMMUNICATIONS & ENGAGEMENT","PUBLICITY, PROMOTIONS AND ADVERTISEMENT",21/10/2020,9241278709,80.26,SNAP  ADS
OXFORDSHIRE CC,SOCIAL AND COMMUNITY SERVICES,"	KINGFISHER",CATERING,21/10/2020,9241278769,5.60,IZ  WOODSTOCK COFF
OXFORDSHIRE CC,ENVIRONMENT AND ECONOMY,"	COMMERCIAL MANAGEMEN",POSTAGE AND DELIVERY,21/10/2020,9241278779,12.00,ROYAL MAIL GROUP LTD
OXFORDSHIRE CC,CORPORATE CORE,INCOME TEAM,PAYMENT TO GOVERNMENT DEPARTMENTS,21/10/2020,9241278815,1.50,WWW.GOV.UK
OXFORDSHIRE CC,SOCIAL AND COMMUNITY SERVICES,COMMENTS&INFORMATION,POSTAGE AND DELIVERY,21/10/2020,9241278821,6.70,POST OFFICE COUNTER
OXFORDSHIRE CC,"CHILDRENS, YOUNG PEOPLE AND FAMILIES",EYNSHAM,CATERING PROVISIONS,21/10/2020,9241278827,2.59,CO-OPERATIVE FOOD
OXFORDSHIRE CC,"CHILDRENS, YOUNG PEOPLE AND FAMILIES","	FAMILY SUPPORT CITY3",OTHER TRANSPORT ARRANGEMENTS,21/10/2020,9241278839,53.00,OXFORD BUS COMPANY
OXFORDSHIRE CC,"CHILDRENS, YOUNG PEOPLE AND FAMILIES","	FAMILY SUPPORT CITY3",PAYMENT TO GOVERNMENT DEPARTMENTS,21/10/2020,9241278847,28.00,GEN REGISTER OFFICE
OXFORDSHIRE CC,"CHILDRENS, YOUNG PEOPLE AND FAMILIES","	40 THE MOORS",CATERING PROVISIONS,21/10/2020,9241278851,138.72,SAINSBURYS (2243)
OXFORDSHIRE CC,"CHILDRENS, YOUNG PEOPLE AND FAMILIES","	40 THE MOORS",CATERING,21/10/2020,9241278859,13.70,WWW.JUST-EAT.CO.UK
OXFORDSHIRE CC,"CHILDRENS, YOUNG PEOPLE AND FAMILIES","	40 THE MOORS",CATERING PROVISIONS,21/10/2020,9241278867,-175.20,SAINSBURYS (2243)
OXFORDSHIRE CC,SOCIAL AND COMMUNITY SERVICES,CSS WANTAGE,CATERING PROVISIONS,20/10/2020,9239052823,14.05,SAINSBURYS SACAT 2244
OXFORDSHIRE CC,"CHILDRENS, YOUNG PEOPLE AND FAMILIES","	AAC EQUIPMENT",POSTAGE AND DELIVERY,20/10/2020,9239052831,2.45,POST OFFICE COUNTER
OXFORDSHIRE CC,"CHILDRENS, YOUNG PEOPLE AND FAMILIES",DIDCOT MOVE-ON HOME,CLEANING MATERIALS,20/10/2020,9239053043,1.00,SAINSBURYS SACAT 2067
OXFORDSHIRE CC,"CHILDRENS, YOUNG PEOPLE AND FAMILIES",DIDCOT MOVE-ON HOME,CATERING PROVISIONS,20/10/2020,9239053051,5.60,SAINSBURYS SACAT 2067
OXFORDSHIRE CC,ENVIRONMENT AND ECONOMY,"	LOWER WINDRUSH PROJ",OTHER SERVICES,20/10/2020,9239053087,11.99,ZOOM.US 888-799-9666
OXFORDSHIRE CC,"CHILDRENS, YOUNG PEOPLE AND FAMILIES","	LOOKED AFTER CITY 2",OTHER TRANSPORT ARRANGEMENTS,20/10/2020,9239053095,30.00,IZ  ROYAL CARS OXFORD
OXFORDSHIRE CC,"CHILDRENS, YOUNG PEOPLE AND FAMILIES","	LOOKED AFTER CITY 2",OTHER TRANSPORT ARRANGEMENTS,20/10/2020,9239053101,4.10,ARRIVA THE SHIRES LIMI
OXFORDSHIRE CC,"CHILDRENS, YOUNG PEOPLE AND FAMILIES",WITNEY,ENTERTAINMENT EXPENSES,20/10/2020,9239053109,252.00,THORPE PARK
OXFORDSHIRE CC,"CHILDRENS, YOUNG PEOPLE AND FAMILIES",EYNSHAM,IT SOFTWARE,20/10/2020,9239053117,13.00,MAYFIELDEGGS
OXFORDSHIRE CC,"CHILDRENS, YOUNG PEOPLE AND FAMILIES","	ASSESS TEAM CITY",HIRE OF ACCOMMODATION AND FACILITIES,20/10/2020,9239053135,97.89,TRAVELODGE
OXFORDSHIRE CC,CORPORATE CORE,MOTOR FLEET,MOTOR IF OWN DAMAGE,20/10/2020,9239053141,553.40,WHOLESALE AUTOPARTS
OXFORDSHIRE CC,ENVIRONMENT AND ECONOMY,EET SERVICE,MATERIALS,20/10/2020,9239053149,10.93,AMAZON.CO.UK H10AH0HY5
OXFORDSHIRE CC,"CHILDRENS, YOUNG PEOPLE AND FAMILIES","	LOOKED AFTER SOUTH",CATERING,20/10/2020,9239053155,5.03,MCDONALDS 768
OXFORDSHIRE CC,CORPORATE CORE,,"SUPPLIES, STATIONERY AND MATERIALS",20/10/2020,9239053285,8.18,LYRECO UK LTD
OXFORDSHIRE CC,SOCIAL AND COMMUNITY SERVICES,CSS BICESTER,CATERING PROVISIONS,20/10/2020,9239051789,57.15,TESCO STORES 4480
OXFORDSHIRE CC,"CHILDRENS, YOUNG PEOPLE AND FAMILIES",SOUTH FSS STATUTORY - ABINGDON,PAYMENT TO GOVERNMENT DEPARTMENTS,20/10/2020,9239051793,42.00,GEN REGISTER OFFICE
OXFORDSHIRE CC,"CHILDRENS, YOUNG PEOPLE AND FAMILIES",SOUTH FSS STATUTORY - ABINGDON,PAYMENT TO GOVERNMENT DEPARTMENTS,20/10/2020,9239051799,14.00,GEN REGISTER OFFICE
OXFORDSHIRE CC,"CHILDRENS, YOUNG PEOPLE AND FAMILIES",THAME E&A HOME,MATERIALS,20/10/2020,9239051807,69.46,AMZNMKTPLACE
OXFORDSHIRE CC,"CHILDRENS, YOUNG PEOPLE AND FAMILIES",THAME E&A HOME,MATERIALS,20/10/2020,9239051809,8.99,AMZNMKTPLACE
OXFORDSHIRE CC,"CHILDRENS, YOUNG PEOPLE AND FAMILIES",THAME E&A HOME,MATERIALS,20/10/2020,9239051813,26.97,AMZNMKTPLACE
OXFORDSHIRE CC,"CHILDRENS, YOUNG PEOPLE AND FAMILIES",THAME E&A HOME,MATERIALS,20/10/2020,9239051817,6.39,AMZNMKTPLACE
OXFORDSHIRE CC,"CHILDRENS, YOUNG PEOPLE AND FAMILIES",CSC COVID-19,TELEPHONE - EQUIPMENT,20/10/2020,9239052089,10.00,VESTA VODAFONE
OXFORDSHIRE CC,ENTERPRISEVC,BUSINESS SYST STAFF,CATERING PROVISIONS,20/10/2020,9239052099,9.12,SAINSBURYS LOC 4264
OXFORDSHIRE CC,"CHILDRENS, YOUNG PEOPLE AND FAMILIES",DIDCOT MOVE-ON HOME,CATERING PROVISIONS,20/10/2020,9239052105,14.98,SAINSBURYS SACAT 2067
OXFORDSHIRE CC,SOCIAL AND COMMUNITY SERVICES,SCHOOLS FM,CATERING PROVISIONS,20/10/2020,9239052107,14.00,CO-OPERATIVE FOOD
OXFORDSHIRE CC,CORPORATE CORE,LIBRARY COLLECTIONS,"BOOKS, DVDS AND CDS",20/10/2020,9239052121,"16,523.68",OVERDRIVE DIST
OXFORDSHIRE CC,CORPORATE CORE,LIBRARY COLLECTIONS,"BOOKS, DVDS AND CDS",20/10/2020,9239052125,"1,002.78",OVERDRIVE DIST
OXFORDSHIRE CC,"CHILDRENS, YOUNG PEOPLE AND FAMILIES",THAME E&A HOME,MATERIALS,20/10/2020,9239051821,7.99,AMZNMKTPLACE
OXFORDSHIRE CC,SOCIAL AND COMMUNITY SERVICES,CSS - ABINGDON,MATERIALS,20/10/2020,9239051859,30.69,AMAZON.CO.UK T11D719W5
OXFORDSHIRE CC,"CHILDRENS, YOUNG PEOPLE AND FAMILIES",MEMBERS ALLOWANCES,VEHICLE FUEL,20/10/2020,9239051889,36.25,BP THINFORD NORTH
OXFORDSHIRE CC,ENVIRONMENT AND ECONOMY,HARD FM,HARDWARE AND CROCKERY,20/10/2020,9239051891,202.06,JEWSON LTD
OXFORDSHIRE CC,ENVIRONMENT AND ECONOMY,HARD FM,HARDWARE AND CROCKERY,20/10/2020,9239051895,74.13,B AND Q
OXFORDSHIRE CC,"CHILDRENS, YOUNG PEOPLE AND FAMILIES",CNTL EARLY HELP-RHIL,MATERIALS,20/10/2020,9239052039,22.99,AMZNMKTPLACE
OXFORDSHIRE CC,CORPORATE CORE,LIBRARY COLLECTIONS,"BOOKS, DVDS AND CDS",20/10/2020,9239052127,911.91,OVERDRIVE DIST
OXFORDSHIRE CC,CORPORATE CORE,LIBRARY COLLECTIONS,"BOOKS, DVDS AND CDS",20/10/2020,9239052131,289.33,OVERDRIVE DIST
OXFORDSHIRE CC,CORPORATE CORE,LIBRARY COLLECTIONS,"BOOKS, DVDS AND CDS",20/10/2020,9239052133,17.21,OVERDRIVE DIST
OXFORDSHIRE CC,CORPORATE CORE,"MARKETING, COMMUNICATIONS & ENGAGEMENT","PUBLICITY, PROMOTIONS AND ADVERTISEMENT",20/10/2020,9239052175,83.24,SNAP  ADS
OXFORDSHIRE CC,ENVIRONMENT AND ECONOMY,HOME LIBRARY SERVICE,EQUIPMENT,20/10/2020,9239052287,8.95,AMZNMKTPLACE
OXFORDSHIRE CC,ENVIRONMENT AND ECONOMY,COMM LIBRARIES CO-OR,MATERIALS,20/10/2020,9239052291,29.99,AMZNMKTPLACE
OXFORDSHIRE CC,ENVIRONMENT AND ECONOMY,COMM LIBRARIES CO-OR,EQUIPMENT,20/10/2020,9239052297,13.99,AMZNMKTPLACE
OXFORDSHIRE CC,"CHILDRENS, YOUNG PEOPLE AND FAMILIES","	FAMILY SUPPORT CITY3",HIRE OF ACCOMMODATION AND FACILITIES,20/10/2020,9239052341,84.00,WELCOME BREAK
OXFORDSHIRE CC,SOCIAL AND COMMUNITY SERVICES,SCHOOLS FM,CATERING,20/10/2020,9239052181,118.81,BOOKER LIMITED OXFORD
OXFORDSHIRE CC,"CHILDRENS, YOUNG PEOPLE AND FAMILIES","	40 THE MOORS",CATERING,20/10/2020,9239052365,37.50,JUST EAT
OXFORDSHIRE CC,"CHILDRENS, YOUNG PEOPLE AND FAMILIES","	40 THE MOORS",CATERING PROVISIONS,20/10/2020,9239052373,175.20,SAINSBURYS (2243)
OXFORDSHIRE CC,"CHILDRENS, YOUNG PEOPLE AND FAMILIES","	40 THE MOORS",CATERING,20/10/2020,9239052377,59.70,WWW.PAPAJOHNS.CO.UK
OXFORDSHIRE CC,ENVIRONMENT AND ECONOMY,"	KNIGHTS COURT",CATERING PROVISIONS,20/10/2020,9239052411,4.47,COWLEY CONVENIENCE STO
OXFORDSHIRE CC,CORPORATE CORE,HOLTON SITE,HEALTH AND SAFETY EQUIPMENT,20/10/2020,9239052563,7.79,AMAZON.CO.UK KN3YJ0Z65
OXFORDSHIRE CC,ENVIRONMENT AND ECONOMY,"	BRIDGES GENERAL",MATERIALS,20/10/2020,9239052587,45.63,AMAZON.CO.UK HC8VD3055
OXFORDSHIRE CC,SOCIAL AND COMMUNITY SERVICES,CSS WITNEY,CATERING PROVISIONS,20/10/2020,9239052819,132.90,SAINSBURYS 0632
OXFORDSHIRE CC,"CHILDRENS, YOUNG PEOPLE AND FAMILIES",THAME E&A HOME,CATERING PROVISIONS,20/10/2020,9239052237,127.96,TESCO STORES 2038
OXFORDSHIRE CC,ENVIRONMENT AND ECONOMY,COMM LIBRARIES CO-OR,MATERIALS,20/10/2020,9239052281,29.99,AMZNMKTPLACE
OXFORDSHIRE CC,CORPORATE CORE,"MARKETING, COMMUNICATIONS & ENGAGEMENT",MATERIALS,20/10/2020,9239052445,24.98,LINKEDIN 5778267743
OXFORDSHIRE CC,CORPORATE CORE,"MARKETING, COMMUNICATIONS & ENGAGEMENT","PUBLICITY, PROMOTIONS AND ADVERTISEMENT",20/10/2020,9239052451,500.00,FACEBK V3N4WW2AZ2
OXFORDSHIRE CC,"CHILDRENS, YOUNG PEOPLE AND FAMILIES",UASC 16&17,CATERING PROVISIONS,20/10/2020,9239052485,10.70,TESCO STORES 6880
OXFORDSHIRE CC,"CHILDRENS, YOUNG PEOPLE AND FAMILIES","	40 THE MOORS",DAY ACTIVITIES,20/10/2020,9239052687,2.00,SPORTS CENTRE
OXFORDSHIRE CC,"CHILDRENS, YOUNG PEOPLE AND FAMILIES","	RIVERSIDE CENTRE",DAY ACTIVITIES,20/10/2020,9239052693,5.00,SPORTS CENTRE
OXFORDSHIRE CC,"CHILDRENS, YOUNG PEOPLE AND FAMILIES","	40 THE MOORS",DAY ACTIVITIES,20/10/2020,9239052699,8.50,SPORTS CENTRE
OXFORDSHIRE CC,"CHILDRENS, YOUNG PEOPLE AND FAMILIES","	40 THE MOORS",MATERIALS,20/10/2020,9239052983,47.68,AMAZON.CO.UK DH07M5WT5
OXFORDSHIRE CC,ENVIRONMENT AND ECONOMY,"	TVERC",SUBSCRIPTIONS,20/10/2020,9239051993,250.00,PAYPAL  NATIONALBIO
OXFORDSHIRE CC,SOCIAL AND COMMUNITY SERVICES,CSS - OXFORD,MATERIALS,20/10/2020,9239052001,5.00,POUNDLAND LTD 1586
OXFORDSHIRE CC,SOCIAL AND COMMUNITY SERVICES,CSS - OXFORD,MATERIALS,20/10/2020,9239052009,22.10,POUNDLAND LTD
OXFORDSHIRE CC,ENVIRONMENT AND ECONOMY,HARD FM,HARDWARE AND CROCKERY,20/10/2020,9239051899,28.15,WICKES BANBURY
OXFORDSHIRE CC,ENVIRONMENT AND ECONOMY,HARD FM,MATERIALS,20/10/2020,9239051905,163.00,AMZNMKTPLACE
OXFORDSHIRE CC,ENVIRONMENT AND ECONOMY,HARD FM,MATERIALS,20/10/2020,9239051911,64.79,PAYPAL  KJPLUMBINGF
OXFORDSHIRE CC,ENVIRONMENT AND ECONOMY,HARD FM,GENERAL MAINTENANCE,20/10/2020,9239051917,733.94,WOLSELEY UK
OXFORDSHIRE CC,ENVIRONMENT AND ECONOMY,HARD FM,GENERAL MAINTENANCE,20/10/2020,9239051919,30.70,WOLSELEY UK
OXFORDSHIRE CC,ENVIRONMENT AND ECONOMY,HARD FM,GENERAL MAINTENANCE,20/10/2020,9239051923,192.00,WOLSELEY UK
OXFORDSHIRE CC,ENVIRONMENT AND ECONOMY,HARD FM,HARDWARE AND CROCKERY,20/10/2020,9239051929,11.98,SCREWFIX DIRECT
OXFORDSHIRE CC,"CHILDRENS, YOUNG PEOPLE AND FAMILIES","	DISABILITIES TEAM-C",OTHER TRANSPORT ARRANGEMENTS,20/10/2020,9239052019,75.00,SGP THAMES TRANSIT
OXFORDSHIRE CC,"CHILDRENS, YOUNG PEOPLE AND FAMILIES",THAME E&A HOME,DRUGS AND MEDICAL SUPPLIES,20/10/2020,9239052023,4.30,"BOOTS,COWLEY"
OXFORDSHIRE CC,"CHILDRENS, YOUNG PEOPLE AND FAMILIES",THAME E&A HOME,DRUGS AND MEDICAL SUPPLIES,20/10/2020,9239052025,20.02,SUPERDRUG STORES PLC
OXFORDSHIRE CC,"CHILDRENS, YOUNG PEOPLE AND FAMILIES",THAME E&A HOME,MATERIALS,20/10/2020,9239052029,4.00,POUNDLAND LTD 1586
OXFORDSHIRE CC,ENVIRONMENT AND ECONOMY,"	KNIGHTS COURT",CATERING PROVISIONS,19/10/2020,9235956969,1.49,COWLEY CONVENIENCE STO
OXFORDSHIRE CC,"CHILDRENS, YOUNG PEOPLE AND FAMILIES",THAME E&A HOME,CATERING PROVISIONS,19/10/2020,9235956983,6.20,TESCO STORES 6519
OXFORDSHIRE CC,ENVIRONMENT AND ECONOMY,EET SERVICE,HIRE OF ACCOMMODATION AND FACILITIES,19/10/2020,9235957753,49.00,PREMIER INN
OXFORDSHIRE CC,"CHILDRENS, YOUNG PEOPLE AND FAMILIES","	LEAVING CARE NORTH",OTHER EXPENSES,19/10/2020,9235957759,31.05,WTRBLUEGRASS-BBQ-SMOK
OXFORDSHIRE CC,"CHILDRENS, YOUNG PEOPLE AND FAMILIES","	LOOKED AFTER SOUTH",MATERIALS,19/10/2020,9235957765,1.29,CARD FACTORY
OXFORDSHIRE CC,"CHILDRENS, YOUNG PEOPLE AND FAMILIES","	LOOKED AFTER SOUTH",MATERIALS,19/10/2020,9235957771,.89,CARD FACTORY
OXFORDSHIRE CC,"CHILDRENS, YOUNG PEOPLE AND FAMILIES",THAME E&A HOME,CATERING PROVISIONS,19/10/2020,9235956987,7.80,SAINSBURYS SACAT 2096
OXFORDSHIRE CC,CORPORATE CORE,"MARKETING, COMMUNICATIONS & ENGAGEMENT","PUBLICITY, PROMOTIONS AND ADVERTISEMENT",19/10/2020,9235957025,500.00,FACEBK 7GG9WWN9Z2
OXFORDSHIRE CC,CORPORATE CORE,"MARKETING, COMMUNICATIONS & ENGAGEMENT","PUBLICITY, PROMOTIONS AND ADVERTISEMENT",19/10/2020,9235957029,500.00,GOOGLE  ADS4896546035
OXFORDSHIRE CC,"CHILDRENS, YOUNG PEOPLE AND FAMILIES","	RIVERSIDE CENTRE",LAUNDRY AND DRY CLEANING,19/10/2020,9235957849,170.40,BMA VARSITY LTD
OXFORDSHIRE CC,CORPORATE CORE,"MARKETING, COMMUNICATIONS & ENGAGEMENT","BOOKS, DVDS AND CDS",19/10/2020,9235957033,287.65,SPOTIFY
OXFORDSHIRE CC,CORPORATE CORE,"MARKETING, COMMUNICATIONS & ENGAGEMENT","PUBLICITY, PROMOTIONS AND ADVERTISEMENT",19/10/2020,9235957039,500.00,FACEBK 5BCMQWS9Z2
OXFORDSHIRE CC,"CHILDRENS, YOUNG PEOPLE AND FAMILIES",THAME E&A HOME,CATERING,19/10/2020,9235957053,10.78,BURGER KINGBURGER KING
OXFORDSHIRE CC,SOCIAL AND COMMUNITY SERVICES,FLEET OPERATIONS,VEHICLES REPAIRS AND MAINTENANCE,19/10/2020,9235957879,150.00,EGERTONS RECVRY MOBBER
OXFORDSHIRE CC,"CHILDRENS, YOUNG PEOPLE AND FAMILIES",EYNSHAM,MATERIALS,19/10/2020,9235957887,10.00,AMZNMKTPLACE
OXFORDSHIRE CC,CORPORATE CORE,,"SUPPLIES, STATIONERY AND MATERIALS",19/10/2020,9235957893,270.17,LYRECO UK LTD
OXFORDSHIRE CC,"CHILDRENS, YOUNG PEOPLE AND FAMILIES","	LEAVING CARE SOUTH",MATERIALS,19/10/2020,9235957903,16.66,WWW.COLLEGEKITSDIRECT.
OXFORDSHIRE CC,"CHILDRENS, YOUNG PEOPLE AND FAMILIES","	LEAVING CARE SOUTH",MATERIALS,19/10/2020,9235957911,199.06,WWW.COLLEGEKITSDIRECT.
OXFORDSHIRE CC,"CHILDRENS, YOUNG PEOPLE AND FAMILIES","	LEAVING CARE SOUTH",CLOTHING AND UNIFORMS,19/10/2020,9235957915,32.34,WORKWEAR EXPRESS
OXFORDSHIRE CC,"CHILDRENS, YOUNG PEOPLE AND FAMILIES","	HOME SUPPORT",MATERIALS,19/10/2020,9235956761,117.90,AMZNMKTPLACE
OXFORDSHIRE CC,"CHILDRENS, YOUNG PEOPLE AND FAMILIES","	LOOKED AFTER NORTH",PAYMENTS TO TRANSPORT OPERATORS,19/10/2020,9235956793,154.50,GWR OXFORD TO
OXFORDSHIRE CC,"CHILDRENS, YOUNG PEOPLE AND FAMILIES","	40 THE MOORS",CATERING,19/10/2020,9235956797,9.84,CO-OPERATIVE FOOD
OXFORDSHIRE CC,"CHILDRENS, YOUNG PEOPLE AND FAMILIES",DIDCOT MOVE-ON HOME,CATERING PROVISIONS,19/10/2020,9235957595,19.05,SAINSBURYS SACAT 2067
OXFORDSHIRE CC,"CHILDRENS, YOUNG PEOPLE AND FAMILIES",THAME E&A HOME,FURNITURE,19/10/2020,9235956803,20.50,IKEA LTD 461 READING I
OXFORDSHIRE CC,"CHILDRENS, YOUNG PEOPLE AND FAMILIES",THAME E&A HOME,FURNITURE,19/10/2020,9235956811,22.00,IKEA LTD 461 READING M
OXFORDSHIRE CC,"CHILDRENS, YOUNG PEOPLE AND FAMILIES",THAME E&A HOME,FURNITURE,19/10/2020,9235956817,126.20,IKEA LTD 461 READING M
OXFORDSHIRE CC,"CHILDRENS, YOUNG PEOPLE AND FAMILIES",EYNSHAM,MATERIALS,19/10/2020,9235956823,-72.50,AMAZON PRIME
OXFORDSHIRE CC,SOCIAL AND COMMUNITY SERVICES,RESIDENTIAL STRATEGY,STATIONERY,19/10/2020,9235956833,39.34,VIKING UK
OXFORDSHIRE CC,"CHILDRENS, YOUNG PEOPLE AND FAMILIES","	FAMILY SUPPORT CITY3",MATERIALS,19/10/2020,9235956851,193.80,IZ  BEOWULF ADVISO
OXFORDSHIRE CC,"CHILDRENS, YOUNG PEOPLE AND FAMILIES","	40 THE MOORS",ENTERTAINMENT EXPENSES,19/10/2020,9235956871,13.56,VUE ENTERTAINMENT LTD
OXFORDSHIRE CC,"CHILDRENS, YOUNG PEOPLE AND FAMILIES",DIDCOT MOVE-ON HOME,CATERING PROVISIONS,19/10/2020,9235957601,7.60,SAINSBURYS SACAT 2067
OXFORDSHIRE CC,"CHILDRENS, YOUNG PEOPLE AND FAMILIES",EYNSHAM,CATERING PROVISIONS,19/10/2020,9235957629,8.47,CO-OPERATIVE FOOD
OXFORDSHIRE CC,"CHILDRENS, YOUNG PEOPLE AND FAMILIES","	40 THE MOORS",CATERING PROVISIONS,19/10/2020,9235956873,186.63,SAINSBURYS (2243)
OXFORDSHIRE CC,"CHILDRENS, YOUNG PEOPLE AND FAMILIES","	40 THE MOORS",CLOTHING AND UNIFORMS,19/10/2020,9235956875,-17.50,BOOHOO.COM
OXFORDSHIRE CC,CORPORATE CORE,RESOURCING,MATERIALS,19/10/2020,9235956879,120.00,LINKEDIN
OXFORDSHIRE CC,"CHILDRENS, YOUNG PEOPLE AND FAMILIES","	LEAVING CARE SOUTH",VEHICLE FUEL,19/10/2020,9235956897,10.00,BP MILTON HEIGHTS S/SE
OXFORDSHIRE CC,"CHILDRENS, YOUNG PEOPLE AND FAMILIES","	LEAVING CARE SOUTH",MATERIALS,19/10/2020,9235956911,208.56,AMZNMKTPLACE
OXFORDSHIRE CC,SOCIAL AND COMMUNITY SERVICES,LOOKED AFTER NORTH,MATERIALS,19/10/2020,9235956923,281.97,CURRYS ONLINE
OXFORDSHIRE CC,SOCIAL AND COMMUNITY SERVICES,LOOKED AFTER NORTH,MATERIALS,19/10/2020,9235956929,281.97,CURRYS ONLINE
OXFORDSHIRE CC,"CHILDRENS, YOUNG PEOPLE AND FAMILIES","	LEAVING CARE CITY 2",HIRE OF ACCOMMODATION AND FACILITIES,19/10/2020,9235957665,208.46,PREMIER INN
OXFORDSHIRE CC,SOCIAL AND COMMUNITY SERVICES,WEST OXFORDSHIRE TEAM,PURCHASE OF IT EQUIPMENT,19/10/2020,9235957671,17.99,AMZNMKTPLACE
OXFORDSHIRE CC,"CHILDRENS, YOUNG PEOPLE AND FAMILIES",WITNEY,CATERING PROVISIONS,19/10/2020,9235957693,139.37,SAINSBURYS 0632
OXFORDSHIRE CC,"CHILDRENS, YOUNG PEOPLE AND FAMILIES",WITNEY,CATERING PROVISIONS,19/10/2020,9235957701,91.85,SAINSBURYS 0632
OXFORDSHIRE CC,"CHILDRENS, YOUNG PEOPLE AND FAMILIES",EYNSHAM,CATERING PROVISIONS,19/10/2020,9235957707,175.84,TESCO STORES 2008
OXFORDSHIRE CC,"CHILDRENS, YOUNG PEOPLE AND FAMILIES","	LEAVING CARE NORTH",CATERING PROVISIONS,19/10/2020,9235956939,7.05,WM MORRISONS STORE
OXFORDSHIRE CC,"CHILDRENS, YOUNG PEOPLE AND FAMILIES","	LEAVING CARE NORTH",EDUCATIONAL AND VOCATIONAL TRAINING ,19/10/2020,9235956943,9.99,WATERSTONES
OXFORDSHIRE CC,"CHILDRENS, YOUNG PEOPLE AND FAMILIES","	LEAVING CARE NORTH",STATIONERY,19/10/2020,9235956945,-1.51,WATERSTONES
OXFORDSHIRE CC,"CHILDRENS, YOUNG PEOPLE AND FAMILIES",UASC 16&17,OTHER EXPENSES,19/10/2020,9235956953,4.20,NOC CAR PARK
OXFORDSHIRE CC,"CHILDRENS, YOUNG PEOPLE AND FAMILIES",UASC 16&17,OTHER EXPENSES,19/10/2020,9235956957,1.50,3C_ ECP EAST OXFORD HE
OXFORDSHIRE CC,"CHILDRENS, YOUNG PEOPLE AND FAMILIES",NORTH FSS- BANBURY,TELEPHONE - EQUIPMENT,19/10/2020,9235956569,10.00,THREE
OXFORDSHIRE CC,"CHILDRENS, YOUNG PEOPLE AND FAMILIES",NORTH FSS- BANBURY,MATERIALS,19/10/2020,9235956577,12.95,ARGOS LTD
OXFORDSHIRE CC,"CHILDRENS, YOUNG PEOPLE AND FAMILIES",NTH EARLY HELP-BCSTR,MATERIALS,19/10/2020,9235956581,190.00,DIAL-A-BIN REFUSE COLL
OXFORDSHIRE CC,CORPORATE CORE,"MARKETING, COMMUNICATIONS & ENGAGEMENT","PUBLICITY, PROMOTIONS AND ADVERTISEMENT",19/10/2020,9235956597,86.28,SNAP  ADS
OXFORDSHIRE CC,CORPORATE CORE,"MARKETING, COMMUNICATIONS & ENGAGEMENT","PUBLICITY, PROMOTIONS AND ADVERTISEMENT",19/10/2020,9235956607,99.90,SNAP  ADS
OXFORDSHIRE CC,CORPORATE CORE,"MARKETING, COMMUNICATIONS & ENGAGEMENT","PUBLICITY, PROMOTIONS AND ADVERTISEMENT",19/10/2020,9235956613,102.14,SNAP  ADS
OXFORDSHIRE CC,SOCIAL AND COMMUNITY SERVICES,CSS WALLINGFORD,CATERING PROVISIONS,19/10/2020,9235956633,17.98,WAITROSE 675
OXFORDSHIRE CC,SOCIAL AND COMMUNITY SERVICES,CSS WALLINGFORD,CATERING PROVISIONS,19/10/2020,9235956635,6.03,WAITROSE 675
OXFORDSHIRE CC,SOCIAL AND COMMUNITY SERVICES,LOOKED AFTER SOUTH,POSTAGE AND DELIVERY,19/10/2020,9235956649,6.70,POST OFFICE COUNTER
OXFORDSHIRE CC,ENVIRONMENT AND ECONOMY,NUFFIELD WAY,MATERIALS,19/10/2020,9235957471,25.98,EXTRA ELECTRICAL HARD
OXFORDSHIRE CC,"CHILDRENS, YOUNG PEOPLE AND FAMILIES",THAME E&A HOME,CATERING PROVISIONS,19/10/2020,9235956657,106.86,TESCO STORES 2038
OXFORDSHIRE CC,ENVIRONMENT AND ECONOMY,WASTE REDUCTION GEN,"PUBLICITY, PROMOTIONS AND ADVERTISEMENT",19/10/2020,9235956663,51.82,FACEBK NLJSXW29M2
OXFORDSHIRE CC,SOCIAL AND COMMUNITY SERVICES,CSS - OXFORD,MATERIALS,19/10/2020,9235956673,40.50,HOBBYCRAFT TRADING LIM
OXFORDSHIRE CC,SOCIAL AND COMMUNITY SERVICES,CSS - OXFORD,EQUIPMENT,19/10/2020,9235956681,25.37,AMZNMKTPLACE AMAZON.CO
OXFORDSHIRE CC,"CHILDRENS, YOUNG PEOPLE AND FAMILIES",DIDCOT MOVE-ON HOME,MATERIALS,19/10/2020,9235956687,4.00,THE WORKS
OXFORDSHIRE CC,"CHILDRENS, YOUNG PEOPLE AND FAMILIES",DIDCOT MOVE-ON HOME,MATERIALS,19/10/2020,9235956693,4.00,THE WORKS
OXFORDSHIRE CC,"CHILDRENS, YOUNG PEOPLE AND FAMILIES","	40 THE MOORS",TELEPHONE - EQUIPMENT,19/10/2020,9235957495,30.00,EE TOPUP  VESTA
OXFORDSHIRE CC,"CHILDRENS, YOUNG PEOPLE AND FAMILIES",WITNEY,DRUGS AND MEDICAL SUPPLIES,19/10/2020,9235957211,12.20,KIDLINGTON PHARMACY
OXFORDSHIRE CC,ENVIRONMENT AND ECONOMY,HARD FM,MATERIALS,19/10/2020,9235956293,182.87,PAYPAL  KJPLUMBINGF
OXFORDSHIRE CC,"CHILDRENS, YOUNG PEOPLE AND FAMILIES",ICT INFORMATION,IT SOFTWARE,19/10/2020,9235956295,293.23,GOOGLE  CLOUD_01D722-8
OXFORDSHIRE CC,ENVIRONMENT AND ECONOMY,HARD FM,HARDWARE AND CROCKERY,19/10/2020,9235956297,19.98,SCREWFIX DIRECT
OXFORDSHIRE CC,ENVIRONMENT AND ECONOMY,COUNTY LIBRARY,GENERAL MAINTENANCE,19/10/2020,9235956299,396.29,WOLSELEY UK
OXFORDSHIRE CC,ENVIRONMENT AND ECONOMY,COUNTY LIBRARY,GENERAL MAINTENANCE,19/10/2020,9235956305,56.58,WOLSELEY UK
OXFORDSHIRE CC,"CHILDRENS, YOUNG PEOPLE AND FAMILIES","	40 THE MOORS",CATERING,19/10/2020,9235956353,7.50,COSTA COFFEE 43039930
OXFORDSHIRE CC,"CHILDRENS, YOUNG PEOPLE AND FAMILIES","	40 THE MOORS",CATERING PROVISIONS,19/10/2020,9235956359,36.00,CO-OPERATIVE FOOD
OXFORDSHIRE CC,CORPORATE CORE,"	LEGAL SERVICES",PROFESSIONAL SUBSCRIPTIONS,19/10/2020,9235957255,984.00,WWW.THELAWSOCIETY.ORG
OXFORDSHIRE CC,SOCIAL AND COMMUNITY SERVICES,DIDCOT MOVE-ON HOME,CATERING PROVISIONS,19/10/2020,9235956375,18.71,SAINSBURYS SACAT 2067
OXFORDSHIRE CC,SOCIAL AND COMMUNITY SERVICES,DIDCOT MOVE-ON HOME,CATERING PROVISIONS,19/10/2020,9235956383,9.60,SAINSBURYS SACAT 2067
OXFORDSHIRE CC,"CHILDRENS, YOUNG PEOPLE AND FAMILIES","	LOOKED AFTER CITY 1",OTHER TRANSPORT ARRANGEMENTS,19/10/2020,9235956445,67.50,WWW.THEKEY.CO.UK
OXFORDSHIRE CC,"CHILDRENS, YOUNG PEOPLE AND FAMILIES","	LEAVING CARE CITY 1",MATERIALS,19/10/2020,9235956451,199.99,ARGOS LTD
OXFORDSHIRE CC,"CHILDRENS, YOUNG PEOPLE AND FAMILIES","	RIVERSIDE CENTRE",EQUIPMENT,19/10/2020,9235957295,170.40,BMA VARSITY LTD
OXFORDSHIRE CC,"CHILDRENS, YOUNG PEOPLE AND FAMILIES","	RIVERSIDE CENTRE",EQUIPMENT,19/10/2020,9235957299,10.99,SAINSBURYS 0600
OXFORDSHIRE CC,SOCIAL AND COMMUNITY SERVICES,CSS WANTAGE,MATERIALS,19/10/2020,9235957353,19.44,AMAZON.CO.UK KY7MU7EL5
OXFORDSHIRE CC,"CHILDRENS, YOUNG PEOPLE AND FAMILIES","	VISUAL IMPAIRMENT",DISABILITY AIDS AND EQUIPMENT,19/10/2020,9235957359,64.20,RNIB CHARITY
OXFORDSHIRE CC,"CHILDRENS, YOUNG PEOPLE AND FAMILIES","	OCCG GRANT",CATERING,19/10/2020,9235957089,3.99,KFC
OXFORDSHIRE CC,"CHILDRENS, YOUNG PEOPLE AND FAMILIES","	OCCG GRANT",CATERING,19/10/2020,9235957089,4.19,KFC
OXFORDSHIRE CC,"CHILDRENS, YOUNG PEOPLE AND FAMILIES","	OCCG GRANT",CATERING,19/10/2020,9235957097,2.50,SOM NOOR
OXFORDSHIRE CC,"CHILDRENS, YOUNG PEOPLE AND FAMILIES","	OCCG GRANT",CATERING,19/10/2020,9235957103,4.69,BANBURY EXPRESS FOOD W
OXFORDSHIRE CC,"CHILDRENS, YOUNG PEOPLE AND FAMILIES",NTH FAM SUPRT-BCSTR,PAYMENTS TO TRANSPORT OPERATORS,19/10/2020,9235957105,10.75,THETRAINLINE.COM
OXFORDSHIRE CC,"CHILDRENS, YOUNG PEOPLE AND FAMILIES","	OCCG GRANT",CATERING,19/10/2020,9235957107,2.50,SOM NOOR
OXFORDSHIRE CC,"CHILDRENS, YOUNG PEOPLE AND FAMILIES","	OCCG GRANT",CATERING,19/10/2020,9235957109,5.31,MCDONALDS
OXFORDSHIRE CC,"CHILDRENS, YOUNG PEOPLE AND FAMILIES",NORTH FSS- WITNEY,MATERIALS,19/10/2020,9235956191,45.43,AMZNMKTPLACE
OXFORDSHIRE CC,"CHILDRENS, YOUNG PEOPLE AND FAMILIES","	LEAVING CARE SOUTH",OTHER EXPENSES,19/10/2020,9235956203,234.99,AMZNMKTPLACE
OXFORDSHIRE CC,"CHILDRENS, YOUNG PEOPLE AND FAMILIES",EYNSHAM,FURNITURE,19/10/2020,9235956219,16.99,AMZNMKTPLACE AMAZON.CO
OXFORDSHIRE CC,"CHILDRENS, YOUNG PEOPLE AND FAMILIES","	MALTFIELD HOUSE",CATERING PROVISIONS,19/10/2020,9235956221,3.00,SAINSBURYS 2096
OXFORDSHIRE CC,SOCIAL AND COMMUNITY SERVICES,CSS BICESTER,MATERIALS,19/10/2020,9235956223,9.96,AMZNMKTPLACE AMAZON.CO
OXFORDSHIRE CC,SOCIAL AND COMMUNITY SERVICES,CSS BICESTER,MATERIALS,19/10/2020,9235956225,9.99,AMZNMKTPLACE AMAZON.CO
OXFORDSHIRE CC,SOCIAL AND COMMUNITY SERVICES,CSS BICESTER,MATERIALS,19/10/2020,9235956227,31.52,AMAZON.CO.UK H64206JT5
OXFORDSHIRE CC,ENVIRONMENT AND ECONOMY,POOL CARS,MATERIALS,19/10/2020,9235957173,162.99,EV CABLE SHOP
OXFORDSHIRE CC,SOCIAL AND COMMUNITY SERVICES,CSS - ABINGDON,EQUIPMENT,19/10/2020,9235956229,15.99,AMZNMKTPLACE
OXFORDSHIRE CC,"CHILDRENS, YOUNG PEOPLE AND FAMILIES",WITNEY,CATERING PROVISIONS,19/10/2020,9235956235,30.58,SAINSBURYS SACAT 0632
OXFORDSHIRE CC,"CHILDRENS, YOUNG PEOPLE AND FAMILIES",WITNEY,CATERING,19/10/2020,9235956245,6.79,SUBWAY
OXFORDSHIRE CC,"CHILDRENS, YOUNG PEOPLE AND FAMILIES","	LOOKED AFTER CITY 1",NON-STAFF SUBSISTENCE AND EXPENSES,19/10/2020,9235956263,8.98,HOLLAND & BARRETT
OXFORDSHIRE CC,"CHILDRENS, YOUNG PEOPLE AND FAMILIES",UASC 16&17,RESIDENTIAL ACTIVITIES,19/10/2020,9235956285,38.99,PUREGYM LIMITED
OXFORDSHIRE CC,ENVIRONMENT AND ECONOMY,HARD FM,HARDWARE AND CROCKERY,19/10/2020,9235956287,7.99,SCREWFIX DIRECT
OXFORDSHIRE CC,ENVIRONMENT AND ECONOMY,HARD FM,EQUIPMENT,19/10/2020,9235956289,17.26,ELECTRIC CENTRE
OXFORDSHIRE CC,ENVIRONMENT AND ECONOMY,HARD FM,HARDWARE AND CROCKERY,19/10/2020,9235956291,76.68,JOHN NICHOLLS KIDLINGT
OXFORDSHIRE CC,"CHILDRENS, YOUNG PEOPLE AND FAMILIES","	LEAVING CARE CITY 2",OTHER EXPENSES,19/10/2020,9235957203,294.99,ARGOS LTD
OXFORDSHIRE CC,"CHILDRENS, YOUNG PEOPLE AND FAMILIES","	LEAVING CARE CITY 2","SUPPLIES, STATIONERY AND MATERIALS",19/10/2020,9235957205,20.97,AMAZON.CO.UK 8X37M8W55
OXFORDSHIRE CC,"CHILDRENS, YOUNG PEOPLE AND FAMILIES","	LOOKED AFTER CITY 2",FURNITURE,19/10/2020,9235957207,212.95,ARGOS LTD
OXFORDSHIRE CC,ENVIRONMENT AND ECONOMY,HARD FM,EQUIPMENT,16/10/2020,9230981359,36.71,W F SENATE
OXFORDSHIRE CC,ENVIRONMENT AND ECONOMY,HARD FM,FURNITURE,16/10/2020,9230981365,250.03,BLINDS 2 GO LTD
OXFORDSHIRE CC,ENVIRONMENT AND ECONOMY,HARD FM,HARDWARE AND CROCKERY,16/10/2020,9230981369,135.00,WICKES OXFORD
OXFORDSHIRE CC,ENVIRONMENT AND ECONOMY,HARD FM,GENERAL MAINTENANCE,16/10/2020,9230981375,219.76,WOLSELEY UK
OXFORDSHIRE CC,ENVIRONMENT AND ECONOMY,HARD FM,HARDWARE AND CROCKERY,16/10/2020,9230981381,24.99,SCREWFIX DIRECT
OXFORDSHIRE CC,ENVIRONMENT AND ECONOMY,HARD FM,HARDWARE AND CROCKERY,16/10/2020,9230981385,24.99,SCREWFIX DIRECT
OXFORDSHIRE CC,CORPORATE CORE,MOTOR FLEET,MOTOR IF FEES,16/10/2020,9230982153,95.40,SIDNEY H HOOPER & COMP
OXFORDSHIRE CC,"CHILDRENS, YOUNG PEOPLE AND FAMILIES","	LEAVING CARE NORTH",OTHER TRANSPORT ARRANGEMENTS,16/10/2020,9230982159,2.00,REEF LONDON LIMITED
OXFORDSHIRE CC,"CHILDRENS, YOUNG PEOPLE AND FAMILIES","	LEAVING CARE NORTH",OTHER EXPENSES,16/10/2020,9230982165,2.85,HOLLYWOOD BOWL
OXFORDSHIRE CC,"CHILDRENS, YOUNG PEOPLE AND FAMILIES","	LEAVING CARE NORTH",RESIDENTIAL ACTIVITIES,16/10/2020,9230982169,22.98,HOLLYWOOD BOWL
OXFORDSHIRE CC,"CHILDRENS, YOUNG PEOPLE AND FAMILIES",CNTL ERLY HELP-BBLEY,MATERIALS,16/10/2020,9230982185,449.00,CURRYS ONLINE
OXFORDSHIRE CC,"CHILDRENS, YOUNG PEOPLE AND FAMILIES",ICT INFORMATION,MATERIALS,16/10/2020,9230981393,20.34,AMAZON.CO.UK UX02P5XM5
OXFORDSHIRE CC,ENVIRONMENT AND ECONOMY,COUNTY LIBRARY,GENERAL MAINTENANCE,16/10/2020,9230981399,19.10,WOLSELEY UK
OXFORDSHIRE CC,ENVIRONMENT AND ECONOMY,COUNTY LIBRARY,GENERAL MAINTENANCE,16/10/2020,9230981405,228.06,WOLSELEY UK
OXFORDSHIRE CC,ENVIRONMENT AND ECONOMY,COUNTY LIBRARY,GENERAL MAINTENANCE,16/10/2020,9230981411,73.92,WOLSELEY UK
OXFORDSHIRE CC,ENVIRONMENT AND ECONOMY,COUNTY LIBRARY,GENERAL MAINTENANCE,16/10/2020,9230981417,36.82,WOLSELEY UK
OXFORDSHIRE CC,SOCIAL AND COMMUNITY SERVICES,CSS BICESTER,CATERING PROVISIONS,16/10/2020,9230981429,3.00,WILKO RETAIL LIMITED
OXFORDSHIRE CC,SOCIAL AND COMMUNITY SERVICES,CSS BICESTER,MATERIALS,16/10/2020,9230981433,7.00,POUNDLAND LTD 1505
OXFORDSHIRE CC,"CHILDRENS, YOUNG PEOPLE AND FAMILIES",EYNSHAM,MATERIALS,16/10/2020,9230982215,47.63,AMZNMKTPLACE
OXFORDSHIRE CC,"CHILDRENS, YOUNG PEOPLE AND FAMILIES",EYNSHAM,OTHER COMMUNICATIONS,16/10/2020,9230982217,8.99,NETFLIX.COM
OXFORDSHIRE CC,CORPORATE CORE,,"SUPPLIES, STATIONERY AND MATERIALS",16/10/2020,9230982219,98.68,LYRECO UK LTD
OXFORDSHIRE CC,CORPORATE CORE,,"SUPPLIES, STATIONERY AND MATERIALS",16/10/2020,9230982225,79.08,LYRECO UK LTD
OXFORDSHIRE CC,CORPORATE CORE,,"SUPPLIES, STATIONERY AND MATERIALS",16/10/2020,9230982231,47.81,LYRECO UK LTD
OXFORDSHIRE CC,CORPORATE CORE,,"SUPPLIES, STATIONERY AND MATERIALS",16/10/2020,9230982235,18.86,LYRECO UK LTD
OXFORDSHIRE CC,ENTERPRISEVC,,CAR LEASING - PRIVATE RENTALS,16/10/2020,9230982241,565.75,ENTERPRISE RENT-A-CAR
OXFORDSHIRE CC,"CHILDRENS, YOUNG PEOPLE AND FAMILIES","	40 THE MOORS",HIRED AND CONTRACTED SERVICES,16/10/2020,9230981455,14.00,KIDLINGTON BARBERS
OXFORDSHIRE CC,SOCIAL AND COMMUNITY SERVICES,UASC 16&17,VEHICLE FUEL,16/10/2020,9230981467,25.50,TESCO PAY AT PUMP 4267
OXFORDSHIRE CC,"CHILDRENS, YOUNG PEOPLE AND FAMILIES",CNTL EARLY HELP-RHIL,MATERIALS,16/10/2020,9230981485,9.75,AMZNMKTPLACE
OXFORDSHIRE CC,"CHILDRENS, YOUNG PEOPLE AND FAMILIES","	FAM SUPP SOUTH",PAYMENTS TO TRANSPORT OPERATORS,16/10/2020,9230981493,132.78,THETRAINLINE.COM
OXFORDSHIRE CC,ENTERPRISEVC,BUSINESS SYST STAFF,MATERIALS,16/10/2020,9230981501,15.99,AMZNMKTPLACE
OXFORDSHIRE CC,SOCIAL AND COMMUNITY SERVICES,DIDCOT MOVE-ON HOME,CATERING PROVISIONS,16/10/2020,9230981519,4.90,SAINSBURYS SACAT 2067
OXFORDSHIRE CC,SOCIAL AND COMMUNITY SERVICES,"	MUSEUMS COLLECTIONS",CATERING PROVISIONS,16/10/2020,9230981525,3.12,MILK AND MORE
OXFORDSHIRE CC,"CHILDRENS, YOUNG PEOPLE AND FAMILIES","	LOOKED AFTER CITY 1",OTHER EXPENSES,16/10/2020,9230981529,14.18,HOLLYWOOD BOWL
OXFORDSHIRE CC,SOCIAL AND COMMUNITY SERVICES,CSS BICESTER,CATERING PROVISIONS,16/10/2020,9230981551,9.17,ALDI 49 775
OXFORDSHIRE CC,ENVIRONMENT AND ECONOMY,OMNICAV,EXHIBITIONS (PURCHAS,16/10/2020,9230981553,83.66,EB  NATIONAL DAMAGE PR
OXFORDSHIRE CC,CORPORATE CORE,"MARKETING, COMMUNICATIONS & ENGAGEMENT","PUBLICITY, PROMOTIONS AND ADVERTISEMENT",16/10/2020,9230981555,60.04,SNAP  ADS
OXFORDSHIRE CC,CORPORATE CORE,"MARKETING, COMMUNICATIONS & ENGAGEMENT","PUBLICITY, PROMOTIONS AND ADVERTISEMENT",16/10/2020,9230981559,23.81,SNAP  ADS
OXFORDSHIRE CC,SOCIAL AND COMMUNITY SERVICES,CSS WANTAGE,CATERING PROVISIONS,16/10/2020,9230981975,12.90,SAINSBURYS SACAT 2244
OXFORDSHIRE CC,"CHILDRENS, YOUNG PEOPLE AND FAMILIES","	40 THE MOORS",CATERING,16/10/2020,9230982057,5.38,MCDONALDS
OXFORDSHIRE CC,"CHILDRENS, YOUNG PEOPLE AND FAMILIES","	LOOKED AFTER SOUTH",CATERING,16/10/2020,9230982063,10.70,COSTA COFFEE ABINGDON
OXFORDSHIRE CC,ENVIRONMENT AND ECONOMY,"	MUSEUM DEV OFFICER",PAYMENTS TO VOLUNTARY BODIES,16/10/2020,9230982081,120.00,MUSEUMSASSC
OXFORDSHIRE CC,"CHILDRENS, YOUNG PEOPLE AND FAMILIES","	LEAVING CARE CITY 2",HIRE OF ACCOMMODATION AND FACILITIES,16/10/2020,9230982119,130.98,PREMIER INN
OXFORDSHIRE CC,"CHILDRENS, YOUNG PEOPLE AND FAMILIES","	LEAVING CARE SOUTH",MATERIALS,16/10/2020,9230982127,11.99,AMZNMKTPLACE
OXFORDSHIRE CC,"CHILDRENS, YOUNG PEOPLE AND FAMILIES","	LEAVING CARE SOUTH",HIRE OF ACCOMMODATION AND FACILITIES,16/10/2020,9230982131,35.00,PREMIER INN
OXFORDSHIRE CC,CORPORATE CORE,ICT OPERATIONS & MAI,EQUIPMENT,16/10/2020,9230982133,58.20,GLOBE PACKAGING - PACK
OXFORDSHIRE CC,"CHILDRENS, YOUNG PEOPLE AND FAMILIES",HOUSE PROJECT,CATERING PROVISIONS,16/10/2020,9230982147,3.18,PPOINT_ COSTCUTTER 659
OXFORDSHIRE CC,"CHILDRENS, YOUNG PEOPLE AND FAMILIES",EYNSHAM,FURNITURE,16/10/2020,9230981343,18.33,AMZNMKTPLACE
OXFORDSHIRE CC,CORPORATE CORE,CATERING MANAGEMENT SOFT FM,MATERIALS,16/10/2020,9230981571,14.17,AMAZON.CO.UK JJ9CI29X5
OXFORDSHIRE CC,SOCIAL AND COMMUNITY SERVICES,CSS WALLINGFORD,CATERING PROVISIONS,16/10/2020,9230981575,2.70,WAITROSE 675
OXFORDSHIRE CC,SOCIAL AND COMMUNITY SERVICES,LOOKED AFTER SOUTH,OTHER TRANSPORT ARRANGEMENTS,16/10/2020,9230981583,5.00,OXPENS CAR PARK
OXFORDSHIRE CC,"CHILDRENS, YOUNG PEOPLE AND FAMILIES",STH EARLY HELP-DDCOT,DOMESTIC AND CLEANING EQUIPMENT,16/10/2020,9230981589,199.99,ARGOS LTD
OXFORDSHIRE CC,CORPORATE CORE,"	CHAIRMANS ALLOWANCE",PAYMENTS TO VOLUNTARY BODIES,16/10/2020,9230981627,85.00,ROYAL BRITISH LEGION P
OXFORDSHIRE CC,SOCIAL AND COMMUNITY SERVICES,RESIDENTIAL STRATEGY,CLOTHING AND UNIFORMS,16/10/2020,9230981633,58.00,SP   OUTLET26.COM
OXFORDSHIRE CC,"CHILDRENS, YOUNG PEOPLE AND FAMILIES","	FAMILY SUPPORT CITY3",OTHER TRANSPORT ARRANGEMENTS,16/10/2020,9230981645,-87.00,STAGECOACH SERVICE
OXFORDSHIRE CC,"CHILDRENS, YOUNG PEOPLE AND FAMILIES",UASC POST 18,OTHER EXPENSES,16/10/2020,9230981653,224.99,PAYPAL  HOMEFURNISH EB
OXFORDSHIRE CC,SOCIAL AND COMMUNITY SERVICES,LOOKED AFTER NORTH,OTHER TRANSPORT ARRANGEMENTS,16/10/2020,9230981657,6.70,M6 TOLL
OXFORDSHIRE CC,"CHILDRENS, YOUNG PEOPLE AND FAMILIES","	FPT CITY",MATERIALS,16/10/2020,9230981661,10.54,AMAZON.CO.UK UY2EF99L5
OXFORDSHIRE CC,"CHILDRENS, YOUNG PEOPLE AND FAMILIES",EYNSHAM,CATERING,16/10/2020,9230981673,5.00,CO-OPERATIVE FOOD
OXFORDSHIRE CC,"CHILDRENS, YOUNG PEOPLE AND FAMILIES",THAME E&A HOME,CATERING PROVISIONS,16/10/2020,9230981699,4.50,SAINSBURYS SACAT 2096
OXFORDSHIRE CC,"CHILDRENS, YOUNG PEOPLE AND FAMILIES",HOUSE PROJECT,MATERIALS,16/10/2020,9230981717,5.50,POUNDLAND LTD 1586
OXFORDSHIRE CC,"CHILDRENS, YOUNG PEOPLE AND FAMILIES","	OCCG GRANT",CATERING,16/10/2020,9230981723,3.75,COSTA COFFEE 43039930
OXFORDSHIRE CC,"CHILDRENS, YOUNG PEOPLE AND FAMILIES","	OCCG GRANT",DISABILITY AIDS AND EQUIPMENT,16/10/2020,9230981727,10.00,VISION EXPRESS 0592
OXFORDSHIRE CC,"CHILDRENS, YOUNG PEOPLE AND FAMILIES","	OCCG GRANT",FURNITURE,16/10/2020,9230981733,6.00,ASDA STORE 4442
OXFORDSHIRE CC,"CHILDRENS, YOUNG PEOPLE AND FAMILIES","	OCCG GRANT",FURNITURE,16/10/2020,9230981737,3.98,ROBERT DYAS HOLDNG LTD
OXFORDSHIRE CC,"CHILDRENS, YOUNG PEOPLE AND FAMILIES","	OCCG GRANT",BIRTHDAY ALLOWANCE,16/10/2020,9230981745,11.50,TESCO STORE 3230
OXFORDSHIRE CC,"CHILDRENS, YOUNG PEOPLE AND FAMILIES","	OCCG GRANT",BIRTHDAY ALLOWANCE,16/10/2020,9230981749,2.25,CO-OPERATIVE FOOD
OXFORDSHIRE CC,ENVIRONMENT AND ECONOMY,"	BUSINESS SYST STAFF",MATERIALS,16/10/2020,9230981757,51.98,ARGOS LTD
OXFORDSHIRE CC,ENVIRONMENT AND ECONOMY,"	ROW MAINT",MATERIALS,16/10/2020,9230981825,24.60,BARLOWS OF HERMITAGE-T
OXFORDSHIRE CC,"CHILDRENS, YOUNG PEOPLE AND FAMILIES","	FOSTER CARE RECRUIT","SUPPLIES, STATIONERY AND MATERIALS",16/10/2020,9230981873,540.00,FYNE ASSOCIATED
OXFORDSHIRE CC,"CHILDRENS, YOUNG PEOPLE AND FAMILIES","	LOOKED AFTER CITY 2",OTHER EXPENSES,15/10/2020,9227764067,60.00,BODALWYN GUEST HOUSE
OXFORDSHIRE CC,"CHILDRENS, YOUNG PEOPLE AND FAMILIES",NTH EARLY HELP-BCSTR,PAYMENTS TO VOLUNTARY BODIES,15/10/2020,9227764081,110.00,PAYPAL  WOMENSLIBER WO
OXFORDSHIRE CC,"CHILDRENS, YOUNG PEOPLE AND FAMILIES",CSC COVID-19,TELEPHONE - EQUIPMENT,15/10/2020,9227764083,20.00,VESTA VODAFONE
OXFORDSHIRE CC,CORPORATE CORE,"MARKETING, COMMUNICATIONS & ENGAGEMENT","PUBLICITY, PROMOTIONS AND ADVERTISEMENT",15/10/2020,9227764085,30.13,SNAP  ADS
OXFORDSHIRE CC,CORPORATE CORE,"MARKETING, COMMUNICATIONS & ENGAGEMENT","PUBLICITY, PROMOTIONS AND ADVERTISEMENT",15/10/2020,9227764087,57.46,SNAP  ADS
OXFORDSHIRE CC,"CHILDRENS, YOUNG PEOPLE AND FAMILIES","	LEAVING CARE NORTH",CLOTHING AND UNIFORMS,15/10/2020,9227764091,60.20,HOLLISTER
OXFORDSHIRE CC,"CHILDRENS, YOUNG PEOPLE AND FAMILIES","	LOOKED AFTER NORTH",OTHER EXPENSES,15/10/2020,9227764097,30.65,PAYPAL  CROCSOFTHEW
OXFORDSHIRE CC,"CHILDRENS, YOUNG PEOPLE AND FAMILIES",KINGFISHER,CATERING PROVISIONS,15/10/2020,9227764105,4.80,SAINSBURYS SAC2305SAC
OXFORDSHIRE CC,ENVIRONMENT AND ECONOMY,THE RIDGEWAY,METERED WATER,15/10/2020,9227764107,6.03,CASTLE WATER
OXFORDSHIRE CC,"CHILDRENS, YOUNG PEOPLE AND FAMILIES",DIDCOT MOVE-ON HOME,CATERING PROVISIONS,15/10/2020,9227764109,9.99,B&M 514 - DICOT
OXFORDSHIRE CC,"CHILDRENS, YOUNG PEOPLE AND FAMILIES",DIDCOT MOVE-ON HOME,CATERING PROVISIONS,15/10/2020,9227764111,25.25,TESCO STORE 2413
OXFORDSHIRE CC,"CHILDRENS, YOUNG PEOPLE AND FAMILIES",KINGFISHER,CATERING,15/10/2020,9227764119,9.98,COSTA@NEXT 43041715
OXFORDSHIRE CC,ENVIRONMENT AND ECONOMY,"	COMMERCIAL MANAGEMEN",POSTAGE AND DELIVERY,15/10/2020,9227764129,12.00,ROYAL MAIL GROUP LTD
OXFORDSHIRE CC,"CHILDRENS, YOUNG PEOPLE AND FAMILIES",THAME E&A HOME,CATERING PROVISIONS,15/10/2020,9227764135,13.89,SAINSBURYS 2096
OXFORDSHIRE CC,"CHILDRENS, YOUNG PEOPLE AND FAMILIES",CSS - ABINGDON,CATERING PROVISIONS,15/10/2020,9227764139,48.00,TESCO STORES 2008
OXFORDSHIRE CC,SOCIAL AND COMMUNITY SERVICES,RESIDENTIAL STRATEGY,HIRED AND CONTRACTED SERVICES,15/10/2020,9227764141,13.00,JAKS BARBER SHOP
OXFORDSHIRE CC,SOCIAL AND COMMUNITY SERVICES,RESIDENTIAL STRATEGY,CATERING PROVISIONS,15/10/2020,9227764143,35.89,SAINSBURYS 0632
OXFORDSHIRE CC,"CHILDRENS, YOUNG PEOPLE AND FAMILIES","	FAMILY SUPPORT CITY3",LEGAL COSTS,15/10/2020,9227764145,192.00,TURPIN & MILLER LLP
OXFORDSHIRE CC,"CHILDRENS, YOUNG PEOPLE AND FAMILIES","	40 THE MOORS",CATERING PROVISIONS,15/10/2020,9227764147,44.50,SAINSBURYS 0631
OXFORDSHIRE CC,"CHILDRENS, YOUNG PEOPLE AND FAMILIES","	LEAVING CARE SOUTH",PAYMENTS TO TRANSPORT OPERATORS,15/10/2020,9227764155,18.60,WWW.GWR.COM
OXFORDSHIRE CC,"CHILDRENS, YOUNG PEOPLE AND FAMILIES","	LEAVING CARE SOUTH",CATERING PROVISIONS,15/10/2020,9227764157,2.00,SAINSBURYS SACAT 2067
OXFORDSHIRE CC,SOCIAL AND COMMUNITY SERVICES,LOOKED AFTER NORTH,MATERIALS,15/10/2020,9227764159,-35.00,JD SPORTS INTERNET
OXFORDSHIRE CC,"CHILDRENS, YOUNG PEOPLE AND FAMILIES","	LEAVING CARE NORTH",IT SOFTWARE,15/10/2020,9227764163,5.00,WWW.SECURE-PAYMENT-SER
OXFORDSHIRE CC,"CHILDRENS, YOUNG PEOPLE AND FAMILIES","	LEAVING CARE NORTH",CATERING PROVISIONS,15/10/2020,9227764165,3.00,TESCO PFS 4267
OXFORDSHIRE CC,"CHILDRENS, YOUNG PEOPLE AND FAMILIES",FIELDWORK UASC,PAYMENT TO GOVERNMENT DEPARTMENTS,15/10/2020,9227764167,34.00,DVLA DRIVER ONLINE
OXFORDSHIRE CC,CORPORATE CORE,"MARKETING, COMMUNICATIONS & ENGAGEMENT","PUBLICITY, PROMOTIONS AND ADVERTISEMENT",15/10/2020,9227764169,500.00,FACEBK JZS8ZWA9Z2
OXFORDSHIRE CC,CORPORATE CORE,"MARKETING, COMMUNICATIONS & ENGAGEMENT","PUBLICITY, PROMOTIONS AND ADVERTISEMENT",15/10/2020,9227764171,720.00,TIKTOK ADS
OXFORDSHIRE CC,"CHILDRENS, YOUNG PEOPLE AND FAMILIES",DIDCOT MOVE-ON HOME,CATERING,15/10/2020,9227764373,37.30,CHOIS
OXFORDSHIRE CC,"CHILDRENS, YOUNG PEOPLE AND FAMILIES","	LEAVING CARE SOUTH",OTHER EXPENSES,15/10/2020,9227763991,24.99,AMZNMKTPLACE
OXFORDSHIRE CC,"CHILDRENS, YOUNG PEOPLE AND FAMILIES","	LOOKED AFTER SOUTH",OTHER EXPENSES,15/10/2020,9227763993,32.95,ARGOS LTD
OXFORDSHIRE CC,SOCIAL AND COMMUNITY SERVICES,CSS - ABINGDON,OTHER SERVICES,15/10/2020,9227764009,75.00,TOTAL PEST CONTROL
OXFORDSHIRE CC,"CHILDRENS, YOUNG PEOPLE AND FAMILIES","	LEAVING CARE SOUTH",CLOTHING AND UNIFORMS,15/10/2020,9227764389,63.95,WWW.BIGDUDECLOTHING.CO
OXFORDSHIRE CC,"CHILDRENS, YOUNG PEOPLE AND FAMILIES","	LEAVING CARE SOUTH",MATERIALS,15/10/2020,9227764391,53.90,ARGOS LTD
OXFORDSHIRE CC,ENVIRONMENT AND ECONOMY,SIP MANAGEMENT,MANAGEMENT CONSULTANT FEES,15/10/2020,9227764395,240.00,WWW.ALDERCROSS.COM
OXFORDSHIRE CC,ENVIRONMENT AND ECONOMY,"	NAT TRAILS GENERAL",VEHICLE FUEL,15/10/2020,9227764015,22.62,BP BUCKLAND CONNECT
OXFORDSHIRE CC,"CHILDRENS, YOUNG PEOPLE AND FAMILIES","	RESIDENTIAL STRATEGY",HIRED AND CONTRACTED SERVICES,15/10/2020,9227764017,13.00,JAKS BARBER SHOP
OXFORDSHIRE CC,ENVIRONMENT AND ECONOMY,"	COUNTY PRINT FINSHRS",EQUIPMENT,15/10/2020,9227764019,85.14,WWW.APLPACKAGING.CO.UK
OXFORDSHIRE CC,"CHILDRENS, YOUNG PEOPLE AND FAMILIES",NASS,"PUBLICITY, PROMOTIONS AND ADVERTISEMENT",15/10/2020,9227764021,10.99,CANVA  02843-10665403
OXFORDSHIRE CC,ENVIRONMENT AND ECONOMY,HARD FM,HARDWARE AND CROCKERY,15/10/2020,9227764023,37.54,TOOLSTATION LTD
OXFORDSHIRE CC,ENVIRONMENT AND ECONOMY,HARD FM,HARDWARE AND CROCKERY,15/10/2020,9227764025,128.28,SCREWFIX DIRECT
OXFORDSHIRE CC,ENVIRONMENT AND ECONOMY,HARD FM,GENERAL MAINTENANCE,15/10/2020,9227764027,886.80,WOLSELEY UK
OXFORDSHIRE CC,ENVIRONMENT AND ECONOMY,HARD FM,HIRED AND CONTRACTED SERVICES,15/10/2020,9227764029,20.24,PAYPAL  UKELECTRICL
OXFORDSHIRE CC,ENVIRONMENT AND ECONOMY,HARD FM,MATERIALS,15/10/2020,9227764031,-52.49,PAYPAL  KJPLUMBINGF
OXFORDSHIRE CC,"CHILDRENS, YOUNG PEOPLE AND FAMILIES",THAME E&A HOME,MATERIALS,15/10/2020,9227764033,14.99,SPORTSDIRECT 218
OXFORDSHIRE CC,ENVIRONMENT AND ECONOMY,SIP MANAGEMENT,MANAGEMENT CONSULTANT FEES,15/10/2020,9227764397,228.00,WESTMINSTER FORUM PROJ
OXFORDSHIRE CC,"CHILDRENS, YOUNG PEOPLE AND FAMILIES",HOUSE PROJECT,PAYMENTS TO TRANSPORT OPERATORS,15/10/2020,9227764399,92.76,TRAIN TICKETS
OXFORDSHIRE CC,"CHILDRENS, YOUNG PEOPLE AND FAMILIES","	DIRECTOR'S OFFICE",MATERIALS,15/10/2020,9227764403,30.48,AMZNMKTPLACE
OXFORDSHIRE CC,SOCIAL AND COMMUNITY SERVICES,CSS - OXFORD,MATERIALS,15/10/2020,9227764039,47.10,HOBBYCRAFT
OXFORDSHIRE CC,SOCIAL AND COMMUNITY SERVICES,CSS - OXFORD,MATERIALS,15/10/2020,9227764041,6.00,HOBBYCRAFT
OXFORDSHIRE CC,SOCIAL AND COMMUNITY SERVICES,CSS - OXFORD,MATERIALS,15/10/2020,9227764043,18.10,POUNDLAND LTD
OXFORDSHIRE CC,SOCIAL AND COMMUNITY SERVICES,CSS BICESTER,CATERING PROVISIONS,15/10/2020,9227764045,3.68,ALDI 49 775
OXFORDSHIRE CC,"CHILDRENS, YOUNG PEOPLE AND FAMILIES",CNTL EARLY HELP-RHIL,MATERIALS,15/10/2020,9227764049,7.45,AMZNMKTPLACE
OXFORDSHIRE CC,"CHILDRENS, YOUNG PEOPLE AND FAMILIES",CNTL EARLY HELP-RHIL,MATERIALS,15/10/2020,9227764051,14.99,ARGOS LTD
OXFORDSHIRE CC,CORPORATE CORE,,"SUPPLIES, STATIONERY AND MATERIALS",15/10/2020,9227764457,21.96,LYRECO UK LTD
OXFORDSHIRE CC,CORPORATE CORE,,"SUPPLIES, STATIONERY AND MATERIALS",15/10/2020,9227764461,83.26,LYRECO UK LTD
OXFORDSHIRE CC,CORPORATE CORE,,"SUPPLIES, STATIONERY AND MATERIALS",15/10/2020,9227764465,66.91,LYRECO UK LTD
OXFORDSHIRE CC,,,PAYMENTS TO TRANSPORT OPERATORS,15/10/2020,9227764473,388.76,CAPITA TRAVEL AND
OXFORDSHIRE CC,SOCIAL AND COMMUNITY SERVICES,SCHOOLS FM,MATERIALS,15/10/2020,9227764061,26.99,AMZNMKTPLACE
OXFORDSHIRE CC,"CHILDRENS, YOUNG PEOPLE AND FAMILIES",FAMILY TIME COSTS,CATERING PROVISIONS,15/10/2020,9227764063,73.23,WAITROSE.COM
OXFORDSHIRE CC,SOCIAL AND COMMUNITY SERVICES,DIDCOT MOVE-ON HOME,MATERIALS,15/10/2020,9227764065,23.84,AMAZON.CO.UK 0X1ZU7Z15
OXFORDSHIRE CC,"CHILDRENS, YOUNG PEOPLE AND FAMILIES",HOUSE PROJECT,CATERING,15/10/2020,9227764175,4.00,COSTA COFFEE 43041630
OXFORDSHIRE CC,SOCIAL AND COMMUNITY SERVICES,"	VISUAL IMP. TEAM",MATERIALS,15/10/2020,9227764183,63.66,AMZNMKTPLACE
OXFORDSHIRE CC,ENVIRONMENT AND ECONOMY,"	COUNTY HALL",MATERIALS,15/10/2020,9227764187,31.35,AMZNMKTPLACE AMAZON.CO
OXFORDSHIRE CC,ENVIRONMENT AND ECONOMY,"	COUNTY HALL",MATERIALS,15/10/2020,9227764189,76.41,AMZNMKTPLACE
OXFORDSHIRE CC,ENVIRONMENT AND ECONOMY,"	COUNTY HALL",MATERIALS,15/10/2020,9227764191,22.47,AMZNMKTPLACE
OXFORDSHIRE CC,ENVIRONMENT AND ECONOMY,"	COUNTY HALL",MATERIALS,15/10/2020,9227764193,58.45,AMZNMKTPLACE
OXFORDSHIRE CC,CORPORATE CORE,"	CC TRAINING",OTHER TRAINING COURSES AND QUALIFICATION,15/10/2020,9227764211,-27.54,EB  SEMINAR PROCUREMEN
OXFORDSHIRE CC,"CHILDRENS, YOUNG PEOPLE AND FAMILIES",THAME E&A HOME,CATERING PROVISIONS,15/10/2020,9227764219,4.36,ASDA SUPERSTORE
OXFORDSHIRE CC,"CHILDRENS, YOUNG PEOPLE AND FAMILIES","	LOOKED AFTER CITY 2",CATERING PROVISIONS,15/10/2020,9227764225,9.60,WELCOME B/WAITROSE
OXFORDSHIRE CC,"CHILDRENS, YOUNG PEOPLE AND FAMILIES","	LOOKED AFTER CITY 2",CATERING PROVISIONS,15/10/2020,9227764227,4.50,WELCOME BREAK
OXFORDSHIRE CC,"CHILDRENS, YOUNG PEOPLE AND FAMILIES","	RESIDENTIAL STRATEGY",VEHICLE FUEL,15/10/2020,9227764229,18.46,SHELL WITNEY
OXFORDSHIRE CC,CORPORATE CORE,"	CORPORATE FINANCE",PROFESSIONAL SUBSCRIPTIONS,15/10/2020,9227764235,250.00,WWW.CIPFA.ORG.UK/PFMCO
OXFORDSHIRE CC,SOCIAL AND COMMUNITY SERVICES,"	MUSEUMS COLLECTIONS",OTHER SERVICES,15/10/2020,9227764237,207.60,WWW.PRESERVATIONEQUIPM
OXFORDSHIRE CC,"CHILDRENS, YOUNG PEOPLE AND FAMILIES","	LOOKED AFTER CITY 1",MATERIALS,15/10/2020,9227764267,16.00,ARGOS HEYFORD HILL
OXFORDSHIRE CC,"CHILDRENS, YOUNG PEOPLE AND FAMILIES","	MALTFIELD HOUSE",CATERING PROVISIONS,15/10/2020,9227764325,12.90,ASDA STORES 4920
OXFORDSHIRE CC,"CHILDRENS, YOUNG PEOPLE AND FAMILIES",NTH EARLY HELP-WITNY,MATERIALS,15/10/2020,9227763953,8.99,AMZNMKTPLACE AMAZON.CO
OXFORDSHIRE CC,"CHILDRENS, YOUNG PEOPLE AND FAMILIES","	OCCG GRANT",MATERIALS,14/10/2020,9226096989,40.14,AMAZON.CO.UK IZ3IV3085
OXFORDSHIRE CC,CORPORATE CORE,ICT OPERATIONS & MAI,IT SERVICES,14/10/2020,9226097703,19.79,GITHUB
OXFORDSHIRE CC,"CHILDRENS, YOUNG PEOPLE AND FAMILIES",EYNSHAM,CATERING PROVISIONS,14/10/2020,9226097719,145.97,TESCO STORES 2008
OXFORDSHIRE CC,"CHILDRENS, YOUNG PEOPLE AND FAMILIES","	LOOKED AFTER SOUTH",CATERING,14/10/2020,9226097801,34.12,HARVESTER
OXFORDSHIRE CC,"CHILDRENS, YOUNG PEOPLE AND FAMILIES","	RIVERSIDE CENTRE",CATERING PROVISIONS,14/10/2020,9226097839,2.45,TESCO STORES 4377
OXFORDSHIRE CC,"CHILDRENS, YOUNG PEOPLE AND FAMILIES","	LEAVING CARE CITY 1",MATERIALS,14/10/2020,9226097851,-76.50,ARGOS LTD
OXFORDSHIRE CC,CORPORATE CORE,,"SUPPLIES, STATIONERY AND MATERIALS",14/10/2020,9226097859,57.72,LYRECO UK LTD
OXFORDSHIRE CC,CORPORATE CORE,,"SUPPLIES, STATIONERY AND MATERIALS",14/10/2020,9226097867,74.46,LYRECO UK LTD
OXFORDSHIRE CC,CORPORATE CORE,,"SUPPLIES, STATIONERY AND MATERIALS",14/10/2020,9226097879,18.77,LYRECO UK LTD
OXFORDSHIRE CC,CORPORATE CORE,,"SUPPLIES, STATIONERY AND MATERIALS",14/10/2020,9226097889,47.81,LYRECO UK LTD
OXFORDSHIRE CC,CORPORATE CORE,,"SUPPLIES, STATIONERY AND MATERIALS",14/10/2020,9226097897,25.20,LYRECO UK LTD
OXFORDSHIRE CC,CORPORATE CORE,,"SUPPLIES, STATIONERY AND MATERIALS",14/10/2020,9226097905,11.52,LYRECO UK LTD
OXFORDSHIRE CC,ENTERPRISEVC,,CAR LEASING - PRIVATE RENTALS,14/10/2020,9226097917,93.54,ENTERPRISE RENT-A-CAR
OXFORDSHIRE CC,ENTERPRISEVC,,CAR LEASING - PRIVATE RENTALS,14/10/2020,9226097929,46.12,ENTERPRISE RENT-A-CAR
OXFORDSHIRE CC,"CHILDRENS, YOUNG PEOPLE AND FAMILIES","	LEAVING CARE NORTH",PAYMENTS TO TRANSPORT OPERATORS,14/10/2020,9226096131,33.05,PAYPAL  TRAINLINE
OXFORDSHIRE CC,SOCIAL AND COMMUNITY SERVICES,CSS - OXFORD,EQUIPMENT,14/10/2020,9226096203,15.35,AMZNMKTPLACE
OXFORDSHIRE CC,CORPORATE CORE,"MARKETING, COMMUNICATIONS & ENGAGEMENT","PUBLICITY, PROMOTIONS AND ADVERTISEMENT",14/10/2020,9226096595,88.98,LINKEDIN IRELAND
OXFORDSHIRE CC,"CHILDRENS, YOUNG PEOPLE AND FAMILIES",THAME E&A HOME,CATERING,14/10/2020,9226096627,39.71,DOMINOS PIZZA UK & IRE
OXFORDSHIRE CC,SOCIAL AND COMMUNITY SERVICES,CSS - BANBURY,MATERIALS,14/10/2020,9226097427,22.99,AMZNMKTPLACE
OXFORDSHIRE CC,"CHILDRENS, YOUNG PEOPLE AND FAMILIES",EYNSHAM,CATERING PROVISIONS,14/10/2020,9226097447,5.20,TESCO STORES 4377
OXFORDSHIRE CC,"CHILDRENS, YOUNG PEOPLE AND FAMILIES","	40 THE MOORS",CLOTHING AND UNIFORMS,14/10/2020,9226097513,38.89,WWW.ASOS.COM
OXFORDSHIRE CC,"CHILDRENS, YOUNG PEOPLE AND FAMILIES",DIDCOT MOVE-ON HOME,CATERING PROVISIONS,14/10/2020,9226097557,16.85,SAINSBURYS SACAT 2067
OXFORDSHIRE CC,"CHILDRENS, YOUNG PEOPLE AND FAMILIES",DIDCOT MOVE-ON HOME,CATERING PROVISIONS,14/10/2020,9226097569,14.26,SAINSBURYS SACAT 2067
OXFORDSHIRE CC,SOCIAL AND COMMUNITY SERVICES,"	KINGFISHER",CATERING,14/10/2020,9226096271,5.90,IZ  WOODSTOCK COFFEE S
OXFORDSHIRE CC,CORPORATE CORE,BUSINESS SUPPORT,"SUPPLIES, STATIONERY AND MATERIALS",14/10/2020,9226096283,609.92,EDENRED (INCENTIVES &
OXFORDSHIRE CC,CORPORATE CORE,RECHARGES SOC CARE,"SUPPLIES, STATIONERY AND MATERIALS",14/10/2020,9226096283,609.92,EDENRED (INCENTIVES &
OXFORDSHIRE CC,CORPORATE CORE,CEF EYECARE VOUCHERS,"SUPPLIES, STATIONERY AND MATERIALS",14/10/2020,9226096283,609.91,EDENRED (INCENTIVES &
OXFORDSHIRE CC,"CHILDRENS, YOUNG PEOPLE AND FAMILIES",DIDCOT MOVE-ON HOME,CATERING PROVISIONS,14/10/2020,9226097579,1.70,SAINSBURYS SACAT 2067
OXFORDSHIRE CC,"CHILDRENS, YOUNG PEOPLE AND FAMILIES",DIDCOT MOVE-ON HOME,CLEANING MATERIALS,14/10/2020,9226097587,2.00,SAINSBURYS SACAT 2067
OXFORDSHIRE CC,"CHILDRENS, YOUNG PEOPLE AND FAMILIES",0-5 STDS & PROGRESS,MATERIALS,14/10/2020,9226097597,15.46,AMZNMKTPLACE
OXFORDSHIRE CC,"CHILDRENS, YOUNG PEOPLE AND FAMILIES",0-5 STDS & PROGRESS,MATERIALS,14/10/2020,9226097603,26.75,AMZNMKTPLACE
OXFORDSHIRE CC,"CHILDRENS, YOUNG PEOPLE AND FAMILIES","	LOOKED AFTER CITY 2",CATERING PROVISIONS,14/10/2020,9226097671,32.20,ASDA STORE 4442
OXFORDSHIRE CC,"CHILDRENS, YOUNG PEOPLE AND FAMILIES","	LEAVING CARE SOUTH",MATERIALS,14/10/2020,9226097685,24.94,AMZNMKTPLACE AMAZON.CO
OXFORDSHIRE CC,"CHILDRENS, YOUNG PEOPLE AND FAMILIES",UASC POST 18,OTHER TRANSPORT ARRANGEMENTS,14/10/2020,9226096485,24.60,SE LONDON VICTORIA SST
OXFORDSHIRE CC,"CHILDRENS, YOUNG PEOPLE AND FAMILIES",UASC POST 18,STAFF USE OF PUBLIC TRANSPORT,14/10/2020,9226096491,4.80,TFL TRAVEL CH
OXFORDSHIRE CC,"CHILDRENS, YOUNG PEOPLE AND FAMILIES","	LOOKED AFTER SOUTH",PAYMENT TO GOVERNMENT DEPARTMENTS,14/10/2020,9226095573,25.00,GEN REGISTER OFFICE
OXFORDSHIRE CC,"CHILDRENS, YOUNG PEOPLE AND FAMILIES","	LEAVING CARE SOUTH",OTHER EXPENSES,14/10/2020,9226095583,14.99,AMZNMKTPLACE
OXFORDSHIRE CC,SOCIAL AND COMMUNITY SERVICES,CSS - ABINGDON,"SUPPLIES, STATIONERY AND MATERIALS",14/10/2020,9226095595,46.00,WWW.THEWORKS.CO.UK
OXFORDSHIRE CC,SOCIAL AND COMMUNITY SERVICES,CSS - ABINGDON,MATERIALS,14/10/2020,9226095613,119.70,AMZNMKTPLACE
OXFORDSHIRE CC,ENVIRONMENT AND ECONOMY,"	NAT TRAILS GENERAL",VEHICLE FUEL,14/10/2020,9226095625,55.03,ESSO CHISELDON CAMP SS
OXFORDSHIRE CC,"CHILDRENS, YOUNG PEOPLE AND FAMILIES",WITNEY,CATERING PROVISIONS,14/10/2020,9226095635,5.75,ASDA STORES 4920
OXFORDSHIRE CC,"CHILDRENS, YOUNG PEOPLE AND FAMILIES",WITNEY,CATERING PROVISIONS,14/10/2020,9226095641,19.66,ASDA STORES 4920
OXFORDSHIRE CC,"CHILDRENS, YOUNG PEOPLE AND FAMILIES",UASC 16&17,NON-STAFF SUBSISTENCE AND EXPENSES,14/10/2020,9226095653,80.00,J D SPORTS FASHION PLC
OXFORDSHIRE CC,"CHILDRENS, YOUNG PEOPLE AND FAMILIES",UASC 16&17,NON-STAFF SUBSISTENCE AND EXPENSES,14/10/2020,9226095659,41.00,SPORTSDIRECT 436
OXFORDSHIRE CC,"CHILDRENS, YOUNG PEOPLE AND FAMILIES",NTH FAM SUPRT-BCSTR,MATERIALS,14/10/2020,9226096053,349.97,AMZNMKTPLACE AMAZON.CO
OXFORDSHIRE CC,"CHILDRENS, YOUNG PEOPLE AND FAMILIES",NTH FAM SUPRT-BCSTR,"BOOKS, DVDS AND CDS",14/10/2020,9226096063,8.49,AMZN DIGITAL
OXFORDSHIRE CC,"CHILDRENS, YOUNG PEOPLE AND FAMILIES",NTH FAM SUPRT-BCSTR,PAYMENTS TO TRANSPORT OPERATORS,14/10/2020,9226096073,9.80,WWW.GWR.COM
OXFORDSHIRE CC,CORPORATE CORE,"MARKETING, COMMUNICATIONS & ENGAGEMENT","PUBLICITY, PROMOTIONS AND ADVERTISEMENT",14/10/2020,9226096089,30.68,SNAP  ADS
OXFORDSHIRE CC,CORPORATE CORE,"MARKETING, COMMUNICATIONS & ENGAGEMENT","PUBLICITY, PROMOTIONS AND ADVERTISEMENT",14/10/2020,9226096105,30.48,SNAP  ADS
OXFORDSHIRE CC,SOCIAL AND COMMUNITY SERVICES,LOOKED AFTER NORTH,PAYMENTS TO TRANSPORT OPERATORS,14/10/2020,9226096503,41.30,BICESTER VIL SSTP
OXFORDSHIRE CC,"CHILDRENS, YOUNG PEOPLE AND FAMILIES",FIELDWORK UASC,TRANSPORT TO SCHOOL,14/10/2020,9226096527,13.40,BANBURY STATION T/O
OXFORDSHIRE CC,"CHILDRENS, YOUNG PEOPLE AND FAMILIES",FIELDWORK UASC,STAFF USE OF PUBLIC TRANSPORT,14/10/2020,9226096533,16.20,BANBURY STATION T/O
OXFORDSHIRE CC,"CHILDRENS, YOUNG PEOPLE AND FAMILIES",FIELDWORK UASC,CATERING,14/10/2020,9226096539,30.50,CAFE ROUGE
OXFORDSHIRE CC,ENVIRONMENT AND ECONOMY,"	KNIGHTS COURT",MATERIALS,14/10/2020,9226096565,11.16,AMZNMKTPLACE
OXFORDSHIRE CC,ENTERPRISEVC,MANAGEMENT & ADMIN,STATIONERY,14/10/2020,9226096575,23.40,CARTRIDGE SAVE
OXFORDSHIRE CC,"CHILDRENS, YOUNG PEOPLE AND FAMILIES",UASC 16&17,"SUPPLIES, STATIONERY AND MATERIALS",14/10/2020,9226095665,17.99,SPORTSDIRECT 436
OXFORDSHIRE CC,ENVIRONMENT AND ECONOMY,HARD FM,HARDWARE AND CROCKERY,14/10/2020,9226095745,21.98,SCREWFIX DIRECT
OXFORDSHIRE CC,ENVIRONMENT AND ECONOMY,HARD FM,MATERIALS,14/10/2020,9226095751,54.50,HALFORDS 0988
OXFORDSHIRE CC,ENVIRONMENT AND ECONOMY,HARD FM,HARDWARE AND CROCKERY,14/10/2020,9226095757,205.58,JEWSON LTD
OXFORDSHIRE CC,CORPORATE CORE,"MARKETING, COMMUNICATIONS & ENGAGEMENT","PUBLICITY, PROMOTIONS AND ADVERTISEMENT",14/10/2020,9226096109,27.97,SNAP  ADS
OXFORDSHIRE CC,ENVIRONMENT AND ECONOMY,HARD FM,OTHER TRANSPORT ARRANGEMENTS,14/10/2020,9226095769,2.50,ST CLEMENTS CAR PARK
OXFORDSHIRE CC,ENVIRONMENT AND ECONOMY,HARD FM,GENERAL MAINTENANCE,14/10/2020,9226095779,82.14,WOLSELEY UK
OXFORDSHIRE CC,ENVIRONMENT AND ECONOMY,HARD FM,MATERIALS,14/10/2020,9226095789,547.13,AMZ CATERING APPLIAN
OXFORDSHIRE CC,SOCIAL AND COMMUNITY SERVICES,CSS BICESTER,CATERING PROVISIONS,14/10/2020,9226095853,8.55,ALDI 49 775
OXFORDSHIRE CC,"CHILDRENS, YOUNG PEOPLE AND FAMILIES","	40 THE MOORS",CATERING,14/10/2020,9226096327,6.23,HAILEY EXPRESS
OXFORDSHIRE CC,"CHILDRENS, YOUNG PEOPLE AND FAMILIES","	40 THE MOORS",CATERING,14/10/2020,9226096333,4.40,SHELL DUCKLINGTON
OXFORDSHIRE CC,SOCIAL AND COMMUNITY SERVICES,RESIDENTIAL STRATEGY,HIRED AND CONTRACTED SERVICES,14/10/2020,9226096363,13.00,JAKS BARBER SHOP
OXFORDSHIRE CC,SOCIAL AND COMMUNITY SERVICES,RESIDENTIAL STRATEGY,DOMESTIC SUPPLIES,14/10/2020,9226096367,17.00,SAINSBURYS SACAT 0631
OXFORDSHIRE CC,"CHILDRENS, YOUNG PEOPLE AND FAMILIES","	FAMILY SUPPORT CITY3",MATERIALS,14/10/2020,9226096377,274.00,AO RETAIL LIMITED
OXFORDSHIRE CC,"CHILDRENS, YOUNG PEOPLE AND FAMILIES","	OCCG GRANT",MATERIALS,14/10/2020,9226097001,70.98,AMAZON.CO.UK EE9EF4VD5
OXFORDSHIRE CC,"CHILDRENS, YOUNG PEOPLE AND FAMILIES","	OCCG GRANT",MATERIALS,14/10/2020,9226097007,70.98,AMAZON.CO.UK P314E1NW5
OXFORDSHIRE CC,"CHILDRENS, YOUNG PEOPLE AND FAMILIES","	RESIDENTIAL STRATEGY",CATERING PROVISIONS,14/10/2020,9226097021,12.00,TESCO STORE 2990
OXFORDSHIRE CC,SOCIAL AND COMMUNITY SERVICES,"	MUSEUMS COLLECTIONS",OTHER SERVICES,14/10/2020,9226097043,61.99,SP   CONSERVATION RESO
OXFORDSHIRE CC,SOCIAL AND COMMUNITY SERVICES,"	MUSEUMS COLLECTIONS",PREMISES REPAIRS,14/10/2020,9226097055,62.86,HSD ONLINE
OXFORDSHIRE CC,SOCIAL AND COMMUNITY SERVICES,"	MUSEUMS COLLECTIONS",OTHER SERVICES,14/10/2020,9226097063,22.65,AMAZON.CO.UK LV31U3Y05
OXFORDSHIRE CC,ENTERPRISEVC,,CAR LEASING - PRIVATE RENTALS,14/10/2020,9226097931,46.12,ENTERPRISE RENT-A-CAR
OXFORDSHIRE CC,ENTERPRISEVC,,CAR LEASING - PRIVATE RENTALS,14/10/2020,9226097941,55.19,ENTERPRISE RENT-A-CAR
OXFORDSHIRE CC,ENTERPRISEVC,,CAR LEASING - PRIVATE RENTALS,14/10/2020,9226097947,43.18,ENTERPRISE RENT-A-CAR
OXFORDSHIRE CC,ENTERPRISEVC,,CAR LEASING - PRIVATE RENTALS,14/10/2020,9226097957,78.11,ENTERPRISE RENT-A-CAR
OXFORDSHIRE CC,ENTERPRISEVC,,CAR LEASING - PRIVATE RENTALS,14/10/2020,9226097967,78.11,ENTERPRISE RENT-A-CAR
OXFORDSHIRE CC,ENTERPRISEVC,,CAR LEASING - PRIVATE RENTALS,14/10/2020,9226097975,53.30,ENTERPRISE RENT-A-CAR
OXFORDSHIRE CC,ENTERPRISEVC,,CAR LEASING - PRIVATE RENTALS,14/10/2020,9226097981,75.43,ENTERPRISE RENT-A-CAR
OXFORDSHIRE CC,,,CATERING,14/10/2020,9226097997,22.80,BRAKE BROS LTD
OXFORDSHIRE CC,,,CATERING,14/10/2020,9226098007,129.89,BRAKE BROS LTD
OXFORDSHIRE CC,,,CATERING,14/10/2020,9226098023,8.07,BRAKE BROS LTD
OXFORDSHIRE CC,"CHILDRENS, YOUNG PEOPLE AND FAMILIES",CSS WALLINGFORD,CATERING PROVISIONS,14/10/2020,9226095503,38.74,WAITROSE 675
OXFORDSHIRE CC,"CHILDRENS, YOUNG PEOPLE AND FAMILIES",THAME E&A HOME,MATERIALS,14/10/2020,9226095513,24.49,AMZNMKTPLACE AMAZON.CO
OXFORDSHIRE CC,"CHILDRENS, YOUNG PEOPLE AND FAMILIES",NORTH FSS- BANBURY,POSTAGE AND DELIVERY,14/10/2020,9226095895,.88,ROYAL MAIL GROUP LTD
OXFORDSHIRE CC,ENVIRONMENT AND ECONOMY,AREA OPERATIONS SOUTH STAFF,STATIONERY,14/10/2020,9226095937,68.48,VIKING UK
OXFORDSHIRE CC,SOCIAL AND COMMUNITY SERVICES,SCHOOLS FM,MATERIALS,14/10/2020,9226095981,53.98,AMZNMKTPLACE
OXFORDSHIRE CC,"CHILDRENS, YOUNG PEOPLE AND FAMILIES","	40 THE MOORS","BOOKS, DVDS AND CDS",14/10/2020,9226096399,6.50,PEN TO PAPER
OXFORDSHIRE CC,"CHILDRENS, YOUNG PEOPLE AND FAMILIES","	40 THE MOORS","BOOKS, DVDS AND CDS",14/10/2020,9226096399,1.70,PEN TO PAPER
OXFORDSHIRE CC,"CHILDRENS, YOUNG PEOPLE AND FAMILIES","	MARLBOROUGH","SUPPLIES, STATIONERY AND MATERIALS",14/10/2020,9226096463,37.50,RNIB CHARITY
OXFORDSHIRE CC,"CHILDRENS, YOUNG PEOPLE AND FAMILIES",UASC POST 18,STAFF USE OF PUBLIC TRANSPORT,14/10/2020,9226096477,2.30,OXFORD BUS COMPANY
OXFORDSHIRE CC,SOCIAL AND COMMUNITY SERVICES,WITNEY MOVE ON HOME,CATERING PROVISIONS,13/10/2020,9222383987,11.00,SAINSBURYS SACAT 0632
OXFORDSHIRE CC,"CHILDRENS, YOUNG PEOPLE AND FAMILIES",THAME E&A HOME,FURNITURE,13/10/2020,9222384007,105.95,IKEA LTD 185 MILTON KE
OXFORDSHIRE CC,"CHILDRENS, YOUNG PEOPLE AND FAMILIES",WITNEY,CATERING,13/10/2020,9222384021,6.10,TESCO PFS 3418
OXFORDSHIRE CC,"CHILDRENS, YOUNG PEOPLE AND FAMILIES","	LOOKED AFTER CITY 1",RESIDENTIAL ACTIVITIES,13/10/2020,9222384103,38.99,PUREGYM LIMITED
OXFORDSHIRE CC,SOCIAL AND COMMUNITY SERVICES,CSS BICESTER,CATERING PROVISIONS,13/10/2020,9222384161,17.37,ALDI 49 775
OXFORDSHIRE CC,CORPORATE CORE,"MARKETING, COMMUNICATIONS & ENGAGEMENT","PUBLICITY, PROMOTIONS AND ADVERTISEMENT",13/10/2020,9222384175,17.60,SNAP  ADS
OXFORDSHIRE CC,SOCIAL AND COMMUNITY SERVICES,SCHOOLS FM,MATERIALS,13/10/2020,9222384183,69.45,AMZNMKTPLACE
OXFORDSHIRE CC,SOCIAL AND COMMUNITY SERVICES,CSS - BANBURY,CATERING PROVISIONS,13/10/2020,9222384201,47.00,SAINSBURYS TO YOU 0642
OXFORDSHIRE CC,SOCIAL AND COMMUNITY SERVICES,"	HISTORY SERVICE","BOOKS, DVDS AND CDS",13/10/2020,9222384213,27.80,AMZNMKTPLACE
OXFORDSHIRE CC,"CHILDRENS, YOUNG PEOPLE AND FAMILIES",THAME E&A HOME,CATERING PROVISIONS,13/10/2020,9222384265,125.72,TESCO STORES 2038
OXFORDSHIRE CC,"CHILDRENS, YOUNG PEOPLE AND FAMILIES","	LOOKED AFTER CITY 1",POSTAGE AND DELIVERY,13/10/2020,9222384273,9.12,POST OFFICE COUNTER
OXFORDSHIRE CC,"CHILDRENS, YOUNG PEOPLE AND FAMILIES","	LOOKED AFTER CITY 1",VEHICLE FUEL,13/10/2020,9222384279,59.04,TESCO PAY AT PUMP 3968
OXFORDSHIRE CC,"CHILDRENS, YOUNG PEOPLE AND FAMILIES","	LOOKED AFTER CITY 1",MATERIALS,13/10/2020,9222384285,4.00,POUNDLAND LTD
OXFORDSHIRE CC,"CHILDRENS, YOUNG PEOPLE AND FAMILIES","	40 THE MOORS",CATERING,13/10/2020,9222384375,38.88,JUST EAT
OXFORDSHIRE CC,"CHILDRENS, YOUNG PEOPLE AND FAMILIES","	40 THE MOORS",CATERING,13/10/2020,9222384381,46.79,JUST EAT
OXFORDSHIRE CC,"CHILDRENS, YOUNG PEOPLE AND FAMILIES","	FAMILY SUPPORT CITY3",MATERIALS,13/10/2020,9222384405,225.90,AMAZON.CO.UK MC8P414Q4
OXFORDSHIRE CC,"CHILDRENS, YOUNG PEOPLE AND FAMILIES","	FAMILY SUPPORT CITY3",PAYMENT TO GOVERNMENT DEPARTMENTS,13/10/2020,9222384413,14.00,GEN REGISTER OFFICE
OXFORDSHIRE CC,"CHILDRENS, YOUNG PEOPLE AND FAMILIES","	40 THE MOORS",CATERING PROVISIONS,13/10/2020,9222384427,158.14,SAINSBURYS (2243)
OXFORDSHIRE CC,"CHILDRENS, YOUNG PEOPLE AND FAMILIES","	LEAVING CARE SOUTH",DOMESTIC SUPPLIES,13/10/2020,9222384473,6.20,WILKO RETAIL LIMITED
OXFORDSHIRE CC,"CHILDRENS, YOUNG PEOPLE AND FAMILIES","	LEAVING CARE SOUTH",CATERING PROVISIONS,13/10/2020,9222384489,20.00,TESCO STORES 4377
OXFORDSHIRE CC,"CHILDRENS, YOUNG PEOPLE AND FAMILIES","	LEAVING CARE SOUTH",CATERING,13/10/2020,9222384505,5.21,MCDONALDS
OXFORDSHIRE CC,"CHILDRENS, YOUNG PEOPLE AND FAMILIES",UASC POST 18,OTHER TRANSPORT ARRANGEMENTS,13/10/2020,9222384519,57.47,THETRAINLINE.COM
OXFORDSHIRE CC,SOCIAL AND COMMUNITY SERVICES,LOOKED AFTER NORTH,MATERIALS,13/10/2020,9222384527,29.98,AMZNMKTPLACE
OXFORDSHIRE CC,SOCIAL AND COMMUNITY SERVICES,LOOKED AFTER NORTH,EQUIPMENT,13/10/2020,9222384535,165.00,HALFORDS ON LINE
OXFORDSHIRE CC,"CHILDRENS, YOUNG PEOPLE AND FAMILIES",FIELDWORK UASC,PAYMENT TO GOVERNMENT DEPARTMENTS,13/10/2020,9222384551,34.00,DVLA DRIVER ONLINE
OXFORDSHIRE CC,ENVIRONMENT AND ECONOMY,"	KNIGHTS COURT",CATERING PROVISIONS,13/10/2020,9222384591,2.98,CO-OPERATIVE FOOD
OXFORDSHIRE CC,"CHILDRENS, YOUNG PEOPLE AND FAMILIES",NTH EARLY HELP-WITNY,GAS,13/10/2020,9222384601,72.41,ALLSTAR BUSINESS SOLUT
OXFORDSHIRE CC,CORPORATE CORE,"MARKETING, COMMUNICATIONS & ENGAGEMENT",MATERIALS,13/10/2020,9222384609,500.00,GOOGLE  ADS4896546035
OXFORDSHIRE CC,CORPORATE CORE,"MARKETING, COMMUNICATIONS & ENGAGEMENT","PUBLICITY, PROMOTIONS AND ADVERTISEMENT",13/10/2020,9222384623,500.00,FACEBK 33QBLWW8Z2
OXFORDSHIRE CC,ENVIRONMENT AND ECONOMY,"	NATURAL ENVIRONMENT","NEWSPAPERS, PERIODICALS AND PUBLICATIONS",13/10/2020,9222384789,300.00,WWW.DTAPUBLICATIONS.CO
OXFORDSHIRE CC,ENVIRONMENT AND ECONOMY,"	NATURAL ENVIRONMENT",TRAINING RELATED EXPENDITURE,13/10/2020,9222384797,-204.00,WWW.CHARTEREDFORESTERS
OXFORDSHIRE CC,ENVIRONMENT AND ECONOMY,"	BRIDGES GENERAL",OTHER COMMUNICATIONS,13/10/2020,9222384819,225.59,SPOT EURO
OXFORDSHIRE CC,SOCIAL AND COMMUNITY SERVICES,CSS BICESTER,CATERING PROVISIONS,13/10/2020,9222383405,50.64,TESCO STORES 4480
OXFORDSHIRE CC,CORPORATE CORE,"	LEGAL SERVICES",LEGAL COSTS,13/10/2020,9222384953,16.00,CITY OF WOLVERHAMPTON
OXFORDSHIRE CC,CORPORATE CORE,"	LEGAL SERVICES",LEGAL COSTS,13/10/2020,9222384959,11.00,OXFORDSHIRE CC MOTO1
OXFORDSHIRE CC,CORPORATE CORE,"	LEGAL SERVICES",LEGAL COSTS,13/10/2020,9222384969,11.00,WWW.READING.GOV.UK
OXFORDSHIRE CC,"CHILDRENS, YOUNG PEOPLE AND FAMILIES",THAME E&A HOME,MATERIALS,13/10/2020,9222383417,13.80,AMZNMKTPLACE AMAZON.CO
OXFORDSHIRE CC,"CHILDRENS, YOUNG PEOPLE AND FAMILIES",THAME E&A HOME,MATERIALS,13/10/2020,9222383423,23.90,AMAZON.CO.UK ZM6938SY5
OXFORDSHIRE CC,"CHILDRENS, YOUNG PEOPLE AND FAMILIES",THAME E&A HOME,MATERIALS,13/10/2020,9222383429,37.08,AMZNMKTPLACE
OXFORDSHIRE CC,"CHILDRENS, YOUNG PEOPLE AND FAMILIES",THAME E&A HOME,MATERIALS,13/10/2020,9222383439,3.55,AMZNMKTPLACE
OXFORDSHIRE CC,"CHILDRENS, YOUNG PEOPLE AND FAMILIES",THAME E&A HOME,MATERIALS,13/10/2020,9222383447,6.79,AMZNMKTPLACE
OXFORDSHIRE CC,CORPORATE CORE,"	LEGAL SERVICES",LEGAL COSTS,13/10/2020,9222384981,11.00,WWW.READING.GOV.UK
OXFORDSHIRE CC,CORPORATE CORE,"	LEGAL SERVICES",LEGAL COSTS,13/10/2020,9222384987,11.00,WWW.SANDWELL.GOV.UK
OXFORDSHIRE CC,"CHILDRENS, YOUNG PEOPLE AND FAMILIES","	40 THE MOORS",CATERING PROVISIONS,13/10/2020,9222384997,4.25,TESCO STORES 4377
OXFORDSHIRE CC,"CHILDRENS, YOUNG PEOPLE AND FAMILIES","	RESIDENTIAL STRATEGY",OTHER COMMUNICATIONS,13/10/2020,9222385017,5.99,NETFLIX.COM
OXFORDSHIRE CC,"CHILDRENS, YOUNG PEOPLE AND FAMILIES","	LEAVING CARE NORTH",MATERIALS,13/10/2020,9222385043,19.99,TESCO ONLINE
OXFORDSHIRE CC,"CHILDRENS, YOUNG PEOPLE AND FAMILIES","	LEAVING CARE SOUTH",OTHER EXPENSES,13/10/2020,9222383541,29.99,AMZNMKTPLACE
OXFORDSHIRE CC,"CHILDRENS, YOUNG PEOPLE AND FAMILIES","	LEAVING CARE SOUTH",OTHER EXPENSES,13/10/2020,9222383547,40.98,AMZNMKTPLACE
OXFORDSHIRE CC,"CHILDRENS, YOUNG PEOPLE AND FAMILIES","	LOOKED AFTER SOUTH",CLOTHING AND UNIFORMS,13/10/2020,9222383553,25.99,PRETTYLITTLETHING.COM
OXFORDSHIRE CC,ENVIRONMENT AND ECONOMY,"	FLEET OPERATIONS",TELEPHONE - EQUIPMENT,13/10/2020,9222385189,64.76,BT BILL PAYMENT 2
OXFORDSHIRE CC,"CHILDRENS, YOUNG PEOPLE AND FAMILIES",CSS WALLINGFORD,MATERIALS,13/10/2020,9222383589,6.35,AMZNMKTPLACE
OXFORDSHIRE CC,"CHILDRENS, YOUNG PEOPLE AND FAMILIES",CSS WALLINGFORD,MATERIALS,13/10/2020,9222383595,55.11,AMZNMKTPLACE
OXFORDSHIRE CC,"CHILDRENS, YOUNG PEOPLE AND FAMILIES","	40 THE MOORS",HARDWARE AND CROCKERY,13/10/2020,9222385269,84.63,B AND Q
OXFORDSHIRE CC,"CHILDRENS, YOUNG PEOPLE AND FAMILIES","	LOOKED AFTER SOUTH",CLOTHING AND UNIFORMS,13/10/2020,9222385283,58.03,SP   MRBEAST MERCHLINE
OXFORDSHIRE CC,ENVIRONMENT AND ECONOMY,"	FM RECHARGES",REGISTRATION AND INSPECTION FEES,13/10/2020,9222383691,420.00,THOMSON REUTERS UK LTD
OXFORDSHIRE CC,ENVIRONMENT AND ECONOMY,HARD FM,HARDWARE AND CROCKERY,13/10/2020,9222383703,23.00,OXON FASTENING SYSTEMS
OXFORDSHIRE CC,ENVIRONMENT AND ECONOMY,HARD FM,GENERAL MAINTENANCE,13/10/2020,9222383717,151.55,WOLSELEY UK
OXFORDSHIRE CC,"CHILDRENS, YOUNG PEOPLE AND FAMILIES",THAME E&A HOME,CATERING,13/10/2020,9222383735,3.70,KK STATION
OXFORDSHIRE CC,"CHILDRENS, YOUNG PEOPLE AND FAMILIES","	40 THE MOORS",OTHER TRANSPORT ARRANGEMENTS,13/10/2020,9222385339,61.00,WWW.THEKEY.CO.UK
OXFORDSHIRE CC,"CHILDRENS, YOUNG PEOPLE AND FAMILIES",DIDCOT MOVE-ON HOME,POSTAGE AND DELIVERY,13/10/2020,9222385379,5.88,POST OFFICE COUNTER
OXFORDSHIRE CC,"CHILDRENS, YOUNG PEOPLE AND FAMILIES",DIDCOT MOVE-ON HOME,MATERIALS,13/10/2020,9222385387,7.50,WH SMITH
OXFORDSHIRE CC,"CHILDRENS, YOUNG PEOPLE AND FAMILIES",DIDCOT MOVE-ON HOME,CATERING PROVISIONS,13/10/2020,9222385393,9.50,SAINSBURYS SACAT 2067
OXFORDSHIRE CC,"CHILDRENS, YOUNG PEOPLE AND FAMILIES",THAME E&A HOME,EQUIPMENT,13/10/2020,9222383745,9.00,CEX OXFORD
OXFORDSHIRE CC,"CHILDRENS, YOUNG PEOPLE AND FAMILIES",THAME E&A HOME,PAYMENTS TO VOLUNTARY BODIES,13/10/2020,9222383753,7.98,BRITISH HEART FOUNDATI
OXFORDSHIRE CC,"CHILDRENS, YOUNG PEOPLE AND FAMILIES",THAME E&A HOME,CATERING PROVISIONS,13/10/2020,9222383763,20.00,B&M 236 - COWLEY
OXFORDSHIRE CC,"CHILDRENS, YOUNG PEOPLE AND FAMILIES",THAME E&A HOME,CATERING,13/10/2020,9222383769,2.55,GREGGS
OXFORDSHIRE CC,"CHILDRENS, YOUNG PEOPLE AND FAMILIES","	40 THE MOORS",CATERING PROVISIONS,13/10/2020,9222383831,3.79,TESCO STORE 2788
OXFORDSHIRE CC,SOCIAL AND COMMUNITY SERVICES,LEADERSHIP TEAM,PAYMENTS TO VOLUNTARY BODIES,13/10/2020,9222385463,720.00,WWW.ADASS.ORG.UK
OXFORDSHIRE CC,"CHILDRENS, YOUNG PEOPLE AND FAMILIES","	LEAVING CARE NORTH",PAYMENT TO GOVERNMENT DEPARTMENTS,13/10/2020,9222385505,-35.00,GEN REGISTER OFFICE
OXFORDSHIRE CC,"CHILDRENS, YOUNG PEOPLE AND FAMILIES",CNTL EARLY HELP-RHIL,MATERIALS,13/10/2020,9222383873,224.99,ARGOS LTD
OXFORDSHIRE CC,"CHILDRENS, YOUNG PEOPLE AND FAMILIES","	LOOKED AFTER CITY 2",OTHER TRANSPORT ARRANGEMENTS,13/10/2020,9222385511,7.00,GWR OXFORD SST
OXFORDSHIRE CC,"CHILDRENS, YOUNG PEOPLE AND FAMILIES",EYNSHAM,IT SOFTWARE,13/10/2020,9222385521,13.00,MAYFIELDEGGS
OXFORDSHIRE CC,"CHILDRENS, YOUNG PEOPLE AND FAMILIES",FPT SOUTH/VALE,MATERIALS,13/10/2020,9222385525,45.98,CHATTERBOXWALLS
OXFORDSHIRE CC,CORPORATE CORE,MOTOR FLEET,MOTOR IF OWN DAMAGE,13/10/2020,9222385529,715.20,WHOLESALE AUTOPARTS
OXFORDSHIRE CC,CORPORATE CORE,MOTOR FLEET,MOTOR IF OWN DAMAGE,13/10/2020,9222385533,445.20,WHOLESALE AUTOPARTS
OXFORDSHIRE CC,"CHILDRENS, YOUNG PEOPLE AND FAMILIES","	LEAVING CARE NORTH",CLOTHING AND UNIFORMS,13/10/2020,9222385539,85.00,WWW.SIZE.CO.UK
OXFORDSHIRE CC,"CHILDRENS, YOUNG PEOPLE AND FAMILIES","	LEAVING CARE CITY 1","SUPPLIES, STATIONERY AND MATERIALS",12/10/2020,9219453805,300.00,WWW.VOUCHEREXPRESS.CO.
OXFORDSHIRE CC,SOCIAL AND COMMUNITY SERVICES,DIDCOT MOVE-ON HOME,CATERING,12/10/2020,9219453809,8.76,COSTA COFFEE 43042160
OXFORDSHIRE CC,SOCIAL AND COMMUNITY SERVICES,DIDCOT MOVE-ON HOME,CATERING PROVISIONS,12/10/2020,9219453811,6.47,MARKS&SPENCER PLC SF
OXFORDSHIRE CC,"CHILDRENS, YOUNG PEOPLE AND FAMILIES",WITNEY,EDUCATIONAL AND VOCATIONAL TRAINING ,12/10/2020,9219453815,23.94,PROTRAININGS
OXFORDSHIRE CC,"CHILDRENS, YOUNG PEOPLE AND FAMILIES",EYNSHAM,CATERING PROVISIONS,12/10/2020,9219453819,7.10,ASDA SUPERSTORE
OXFORDSHIRE CC,"CHILDRENS, YOUNG PEOPLE AND FAMILIES",THAME E&A HOME,CATERING,12/10/2020,9219454295,51.98,BEEFEATER40014640
OXFORDSHIRE CC,"CHILDRENS, YOUNG PEOPLE AND FAMILIES",UASC 16&17,CATERING PROVISIONS,12/10/2020,9219454313,2.22,HEADINGTON BUTCHERS AN
OXFORDSHIRE CC,"CHILDRENS, YOUNG PEOPLE AND FAMILIES",UASC 16&17,"SUPPLIES, STATIONERY AND MATERIALS",12/10/2020,9219454321,15.20,THE WORKS
OXFORDSHIRE CC,"CHILDRENS, YOUNG PEOPLE AND FAMILIES",UASC 16&17,CATERING,12/10/2020,9219454325,17.75,CO-OPERATIVE FOOD
OXFORDSHIRE CC,"CHILDRENS, YOUNG PEOPLE AND FAMILIES","	OCCG GRANT",CATERING,12/10/2020,9219454329,3.35,COSTA COFFEE
OXFORDSHIRE CC,"CHILDRENS, YOUNG PEOPLE AND FAMILIES","	OCCG GRANT",CATERING,12/10/2020,9219454337,3.07,COSTA COFFEE
OXFORDSHIRE CC,"CHILDRENS, YOUNG PEOPLE AND FAMILIES","	LEAVING CARE CITY 1",FURNITURE,12/10/2020,9219454343,413.00,IKEA LTD SHOP ONLINE
OXFORDSHIRE CC,CORPORATE CORE,OPERATIONS,EQUIPMENT,12/10/2020,9219454403,8.99,AMZNMKTPLACE AMAZON.CO
OXFORDSHIRE CC,CORPORATE CORE,OPERATIONS,CLOTHING AND UNIFORMS,12/10/2020,9219454409,8.98,AMZNMKTPLACE AMAZON.CO
OXFORDSHIRE CC,CORPORATE CORE,LIBRARY COLLECTIONS,"BOOKS, DVDS AND CDS",12/10/2020,9219454413,13.94,AMAZON.CO.UK M52SU7WM5
OXFORDSHIRE CC,ENVIRONMENT AND ECONOMY,ENV & RES EFF STAFF,"PUBLICITY, PROMOTIONS AND ADVERTISEMENT",12/10/2020,9219454437,210.00,PAYPAL  BRITISHARCH
OXFORDSHIRE CC,ENVIRONMENT AND ECONOMY,"	COUNTY HALL",MATERIALS,12/10/2020,9219454463,116.09,AMZNMKTPLACE
OXFORDSHIRE CC,"CHILDRENS, YOUNG PEOPLE AND FAMILIES",SOUTH FSS STATUTORY - ABINGDON,FURNITURE,12/10/2020,9219453629,339.95,ARGOS LTD
OXFORDSHIRE CC,"CHILDRENS, YOUNG PEOPLE AND FAMILIES",WITNEY,VEHICLE FUEL,12/10/2020,9219454491,4.10,TESCO PFS 3418
OXFORDSHIRE CC,"CHILDRENS, YOUNG PEOPLE AND FAMILIES","	RIVERSIDE CENTRE",TRAINING RELATED EXPENDITURE,12/10/2020,9219454523,450.00,THE INSTITUTE FOR OUTD
OXFORDSHIRE CC,"CHILDRENS, YOUNG PEOPLE AND FAMILIES",THAME E&A HOME,VEHICLE FUEL,12/10/2020,9219454527,2.00,POSTCOMBE SVS STN
OXFORDSHIRE CC,"CHILDRENS, YOUNG PEOPLE AND FAMILIES",THAME E&A HOME,MATERIALS,12/10/2020,9219453635,23.84,AMAZON.CO.UK QM5IX8UV5
OXFORDSHIRE CC,ENVIRONMENT AND ECONOMY,S38 INSPECT & OTHER,MATERIALS,12/10/2020,9219453643,404.85,AMZNMKTPLACE
OXFORDSHIRE CC,SOCIAL AND COMMUNITY SERVICES,LOOKED AFTER SOUTH,VEHICLE FUEL,12/10/2020,9219454003,33.73,TESCO PFS 3932
OXFORDSHIRE CC,"CHILDRENS, YOUNG PEOPLE AND FAMILIES",EYNSHAM,CATERING PROVISIONS,12/10/2020,9219454945,164.56,TESCO STORES 2008
OXFORDSHIRE CC,"CHILDRENS, YOUNG PEOPLE AND FAMILIES",WITNEY,MATERIALS,12/10/2020,9219453655,23.84,AMAZON.CO.UK WD7YD4ZV5
OXFORDSHIRE CC,"CHILDRENS, YOUNG PEOPLE AND FAMILIES",WITNEY,CATERING PROVISIONS,12/10/2020,9219453659,14.05,POUNDSTRETCHER 700
OXFORDSHIRE CC,"CHILDRENS, YOUNG PEOPLE AND FAMILIES","	40 THE MOORS",OTHER EXPENSES,12/10/2020,9219454557,59.00,EE LIMITED
OXFORDSHIRE CC,"CHILDRENS, YOUNG PEOPLE AND FAMILIES","	LOOKED AFTER CITY 2",CATERING PROVISIONS,12/10/2020,9219454585,12.75,COSTA GROVE
OXFORDSHIRE CC,"CHILDRENS, YOUNG PEOPLE AND FAMILIES","	LEAVING CARE NORTH",CATERING PROVISIONS,12/10/2020,9219454591,11.54,TESCO STORES 4480
OXFORDSHIRE CC,"CHILDRENS, YOUNG PEOPLE AND FAMILIES","	RESIDENTIAL STRATEGY",CATERING PROVISIONS,12/10/2020,9219453693,4.50,SAINSBURYS SACAT 0631
OXFORDSHIRE CC,"CHILDRENS, YOUNG PEOPLE AND FAMILIES","	RESIDENTIAL STRATEGY",CATERING PROVISIONS,12/10/2020,9219453699,24.25,TESCO STORE 2788
OXFORDSHIRE CC,"CHILDRENS, YOUNG PEOPLE AND FAMILIES",THAME E&A HOME,VEHICLE FUEL,12/10/2020,9219453705,6.25,THAME BP SF CONNECT
OXFORDSHIRE CC,"CHILDRENS, YOUNG PEOPLE AND FAMILIES",WITNEY,MATERIALS,12/10/2020,9219453709,7.99,GAME RETAIL
OXFORDSHIRE CC,"CHILDRENS, YOUNG PEOPLE AND FAMILIES",UASC 16&17,RESIDENTIAL ACTIVITIES,12/10/2020,9219453723,38.99,PUREGYM LIMITED
OXFORDSHIRE CC,"CHILDRENS, YOUNG PEOPLE AND FAMILIES","	LOOKED AFTER CITY 1",MATERIALS,12/10/2020,9219453731,6.55,AMAZON.CO.UK FC1GT3LR5
OXFORDSHIRE CC,ENVIRONMENT AND ECONOMY,HARD FM,GENERAL MAINTENANCE,12/10/2020,9219453735,256.76,AIR CONDITIONING GROUP
OXFORDSHIRE CC,SOCIAL AND COMMUNITY SERVICES,CSS WITNEY,CATERING PROVISIONS,12/10/2020,9219454629,86.48,SAINSBURYS 0632
OXFORDSHIRE CC,ENVIRONMENT AND ECONOMY,HARD FM,HARDWARE AND CROCKERY,12/10/2020,9219453741,20.54,TRAVIS PERKINS
OXFORDSHIRE CC,ENVIRONMENT AND ECONOMY,HARD FM,HARDWARE AND CROCKERY,12/10/2020,9219453747,50.96,SCREWFIX DIRECT
OXFORDSHIRE CC,ENVIRONMENT AND ECONOMY,HARD FM,HARDWARE AND CROCKERY,12/10/2020,9219453751,29.33,SCREWFIX DIRECT
OXFORDSHIRE CC,ENVIRONMENT AND ECONOMY,HARD FM,HARDWARE AND CROCKERY,12/10/2020,9219453755,31.98,SCREWFIX DIRECT
OXFORDSHIRE CC,ENVIRONMENT AND ECONOMY,HARD FM,HARDWARE AND CROCKERY,12/10/2020,9219453757,38.45,TOOLSTATION LTD
OXFORDSHIRE CC,ENVIRONMENT AND ECONOMY,HARD FM,MATERIALS,12/10/2020,9219453761,52.49,PAYPAL  KJPLUMBINGF
OXFORDSHIRE CC,ENVIRONMENT AND ECONOMY,HARD FM,HARDWARE AND CROCKERY,12/10/2020,9219453773,32.20,WICKES OXFORD
OXFORDSHIRE CC,SOCIAL AND COMMUNITY SERVICES,CSS - OXFORD,MATERIALS,12/10/2020,9219453783,50.03,ROBERT DYAS HOLDNG LTD
OXFORDSHIRE CC,"CHILDRENS, YOUNG PEOPLE AND FAMILIES","	DISABILITIES TEAM-C",CHILDCARE MANAGEMENT FEES,12/10/2020,9219453787,203.00,KINGSWOOD DAYCARE NURS
OXFORDSHIRE CC,"CHILDRENS, YOUNG PEOPLE AND FAMILIES","	MALTFIELD HOUSE",CATERING PROVISIONS,12/10/2020,9219454705,3.50,SAINSBURYS SACAT 0632
OXFORDSHIRE CC,"CHILDRENS, YOUNG PEOPLE AND FAMILIES","	40 THE MOORS",PAYMENTS TO TRANSPORT OPERATORS,12/10/2020,9219453797,154.50,GWR OXFORD TO
OXFORDSHIRE CC,"CHILDRENS, YOUNG PEOPLE AND FAMILIES","	LEAVING CARE CITY 1",OTHER EXPENSES,12/10/2020,9219453801,174.40,OXFORD CITY COUNCIL DO
OXFORDSHIRE CC,"CHILDRENS, YOUNG PEOPLE AND FAMILIES","	LEAVING CARE NORTH",CATERING PROVISIONS,12/10/2020,9219454241,3.45,TESCO PFS 3418
OXFORDSHIRE CC,"CHILDRENS, YOUNG PEOPLE AND FAMILIES",THAME E&A HOME,CATERING PROVISIONS,12/10/2020,9219453827,11.00,SAINSBURYS SACAT 2096
OXFORDSHIRE CC,"CHILDRENS, YOUNG PEOPLE AND FAMILIES",THAME E&A HOME,CATERING PROVISIONS,12/10/2020,9219453831,14.00,ASDA STORE 4442
OXFORDSHIRE CC,SOCIAL AND COMMUNITY SERVICES,"	ASSESSMENT TEAM NORT",CATERING PROVISIONS,12/10/2020,9219454751,45.26,TESCO STORES 4480
OXFORDSHIRE CC,SOCIAL AND COMMUNITY SERVICES,CSS - BANBURY,MATERIALS,12/10/2020,9219454785,10.99,AMZNMKTPLACE
OXFORDSHIRE CC,"CHILDRENS, YOUNG PEOPLE AND FAMILIES",THAME E&A HOME,CATERING PROVISIONS,12/10/2020,9219453833,11.42,ASDA SUPERSTORE
OXFORDSHIRE CC,"CHILDRENS, YOUNG PEOPLE AND FAMILIES",NTH FAM SUPRT-BCSTR,POSTAGE AND DELIVERY,12/10/2020,9219453839,1.64,ROYAL MAIL GROUP LTD
OXFORDSHIRE CC,SOCIAL AND COMMUNITY SERVICES,WITNEY MOVE ON HOME,CATERING PROVISIONS,12/10/2020,9219453863,50.55,ASDA STORES 4920
OXFORDSHIRE CC,SOCIAL AND COMMUNITY SERVICES,WITNEY MOVE ON HOME,CATERING PROVISIONS,12/10/2020,9219453869,51.57,ASDA STORES 4920
OXFORDSHIRE CC,"CHILDRENS, YOUNG PEOPLE AND FAMILIES",NORTH FSS- BANBURY,POSTAGE AND DELIVERY,12/10/2020,9219453889,8.04,ROYAL MAIL GROUP LTD
OXFORDSHIRE CC,"CHILDRENS, YOUNG PEOPLE AND FAMILIES","	40 THE MOORS",OTHER TRANSPORT ARRANGEMENTS,12/10/2020,9219454809,55.00,WWW.THENEWFORESTTOUR.I
OXFORDSHIRE CC,"CHILDRENS, YOUNG PEOPLE AND FAMILIES",DIDCOT MOVE-ON HOME,CATERING PROVISIONS,12/10/2020,9219454833,9.91,SAINSBURYS SACAT 2067
OXFORDSHIRE CC,"CHILDRENS, YOUNG PEOPLE AND FAMILIES",DIDCOT MOVE-ON HOME,MATERIALS,12/10/2020,9219454839,37.00,ARGOS LTD
OXFORDSHIRE CC,"CHILDRENS, YOUNG PEOPLE AND FAMILIES",DIDCOT MOVE-ON HOME,CATERING PROVISIONS,12/10/2020,9219454843,2.00,SAINSBURYS 2067
OXFORDSHIRE CC,"CHILDRENS, YOUNG PEOPLE AND FAMILIES",THAME E&A HOME,FURNITURE,12/10/2020,9219453897,26.85,IKEA LTD 185 MILTON KE
OXFORDSHIRE CC,ENTERPRISEVC,BUSINESS SYST STAFF,TELEPHONE - EQUIPMENT,12/10/2020,9219453903,39.00,BT WI-FI
OXFORDSHIRE CC,"CHILDRENS, YOUNG PEOPLE AND FAMILIES",DIDCOT MOVE-ON HOME,CATERING PROVISIONS,12/10/2020,9219453911,2.20,SAINSBURYS SACAT 2067
OXFORDSHIRE CC,"CHILDRENS, YOUNG PEOPLE AND FAMILIES",DIDCOT MOVE-ON HOME,CATERING PROVISIONS,12/10/2020,9219453917,2.00,SAINSBURYS SACAT 2067
OXFORDSHIRE CC,"CHILDRENS, YOUNG PEOPLE AND FAMILIES",DIDCOT MOVE-ON HOME,CATERING PROVISIONS,12/10/2020,9219453923,26.04,TESCO STORE 2413
OXFORDSHIRE CC,"CHILDRENS, YOUNG PEOPLE AND FAMILIES","	LEAVING CARE CITY 2",OTHER EXPENSES,12/10/2020,9219453929,338.00,DREAMS LTD
OXFORDSHIRE CC,SOCIAL AND COMMUNITY SERVICES,SCHOOLS FM,MATERIALS,12/10/2020,9219453947,24.99,AMZNMKTPLACE
OXFORDSHIRE CC,"CHILDRENS, YOUNG PEOPLE AND FAMILIES","	LEAVING CARE NORTH",MATERIALS,12/10/2020,9219453951,-99.95,PRECIOUS LITTLE ONE
OXFORDSHIRE CC,"CHILDRENS, YOUNG PEOPLE AND FAMILIES","	LEAVING CARE NORTH",PAYMENT TO GOVERNMENT DEPARTMENTS,12/10/2020,9219454879,38.00,GEN REGISTER OFFICE
OXFORDSHIRE CC,"CHILDRENS, YOUNG PEOPLE AND FAMILIES",UNION STREET FFS,MANAGEMENT CONSULTANT FEES,12/10/2020,9219454887,157.50,TVLICENSING.CO.UK
OXFORDSHIRE CC,"CHILDRENS, YOUNG PEOPLE AND FAMILIES","	LEAVING CARE CITY 2","SUPPLIES, STATIONERY AND MATERIALS",12/10/2020,9219454893,56.16,PAYPAL  SALLYSALONS
OXFORDSHIRE CC,"CHILDRENS, YOUNG PEOPLE AND FAMILIES","	LEAVING CARE CITY 2",PAYMENTS TO TRANSPORT OPERATORS,12/10/2020,9219454899,7.00,GWR OXFORD SST
OXFORDSHIRE CC,"CHILDRENS, YOUNG PEOPLE AND FAMILIES","	LEAVING CARE CITY 2",OTHER EXPENSES,12/10/2020,9219454903,8.99,"BOOTS,BANBURY"
OXFORDSHIRE CC,"CHILDRENS, YOUNG PEOPLE AND FAMILIES","	LOOKED AFTER CITY 2",OTHER TRANSPORT ARRANGEMENTS,12/10/2020,9219454907,30.00,IZ  ROYAL CARS OXFORD
OXFORDSHIRE CC,"CHILDRENS, YOUNG PEOPLE AND FAMILIES","	LEAVING CARE SOUTH",OTHER TRANSPORT ARRANGEMENTS,12/10/2020,9219454917,8.50,IZ  PETER DAINTY
OXFORDSHIRE CC,"CHILDRENS, YOUNG PEOPLE AND FAMILIES","	LEAVING CARE SOUTH",CLOTHING AND UNIFORMS,12/10/2020,9219454921,144.00,PRIMARK
OXFORDSHIRE CC,CORPORATE CORE,ICT OPERATIONS & MAI,MATERIALS,12/10/2020,9219454929,12.99,AMZNMKTPLACE
OXFORDSHIRE CC,CORPORATE CORE,SCHOOLS FM,CATERING,12/10/2020,9219453955,170.28,BOOKER LIMITED OXFORD
OXFORDSHIRE CC,SOCIAL AND COMMUNITY SERVICES,CSS WALLINGFORD,CATERING PROVISIONS,12/10/2020,9219453963,36.00,SAVAGES (BLEWBURY) LTD
OXFORDSHIRE CC,SOCIAL AND COMMUNITY SERVICES,CSS WALLINGFORD,CATERING PROVISIONS,12/10/2020,9219453967,7.85,WAITROSE 675
OXFORDSHIRE CC,SOCIAL AND COMMUNITY SERVICES,CSS WALLINGFORD,MATERIALS,12/10/2020,9219453971,16.99,AMZNMKTPLACE
OXFORDSHIRE CC,"CHILDRENS, YOUNG PEOPLE AND FAMILIES","	LOOKED AFTER NORTH",OTHER EXPENSES,12/10/2020,9219453977,204.48,AMAZON.CO.UK YR3M64PJ5
OXFORDSHIRE CC,"CHILDRENS, YOUNG PEOPLE AND FAMILIES",THAME E&A HOME,CATERING PROVISIONS,12/10/2020,9219454271,10.60,SAINSBURYS 2096
OXFORDSHIRE CC,CORPORATE CORE,"MARKETING, COMMUNICATIONS & ENGAGEMENT","PUBLICITY, PROMOTIONS AND ADVERTISEMENT",12/10/2020,9219454277,500.00,FACEBK ZHWTMW2AZ2
OXFORDSHIRE CC,CORPORATE CORE,"MARKETING, COMMUNICATIONS & ENGAGEMENT",PHOTOCOPYING,12/10/2020,9219454279,29.00,STK SHUTTERSTOCK
OXFORDSHIRE CC,"CHILDRENS, YOUNG PEOPLE AND FAMILIES",EYNSHAM,CATERING,12/10/2020,9219454963,51.10,PAYPAL  GP WITNEY
OXFORDSHIRE CC,"CHILDRENS, YOUNG PEOPLE AND FAMILIES","	LOOKED AFTER SOUTH",CATERING,12/10/2020,9219454979,8.28,MCDONALDS
OXFORDSHIRE CC,"CHILDRENS, YOUNG PEOPLE AND FAMILIES","	DIRECTOR'S OFFICE",EDUCATIONAL AND VOCATIONAL TRAINING ,12/10/2020,9219454987,-546.00,KNOWLEDGE EXCHANGE GRO
OXFORDSHIRE CC,"CHILDRENS, YOUNG PEOPLE AND FAMILIES",THAME E&A HOME,CATERING PROVISIONS,12/10/2020,9219454031,94.52,TESCO STORES 2038
OXFORDSHIRE CC,"CHILDRENS, YOUNG PEOPLE AND FAMILIES",THAME E&A HOME,MATERIALS,12/10/2020,9219454033,2.00,POUNDLAND LTD 1505
OXFORDSHIRE CC,"CHILDRENS, YOUNG PEOPLE AND FAMILIES",THAME E&A HOME,MATERIALS,12/10/2020,9219454037,6.99,TESCO SUBSCRIPTION
OXFORDSHIRE CC,"CHILDRENS, YOUNG PEOPLE AND FAMILIES",THAME E&A HOME,CATERING PROVISIONS,12/10/2020,9219454041,27.05,TESCO STORES 4480
OXFORDSHIRE CC,"CHILDRENS, YOUNG PEOPLE AND FAMILIES",THAME E&A HOME,CATERING PROVISIONS,12/10/2020,9219454043,7.25,ALDI 49 775
OXFORDSHIRE CC,ENVIRONMENT AND ECONOMY,WASTE REDUCTION GEN,"PUBLICITY, PROMOTIONS AND ADVERTISEMENT",12/10/2020,9219454053,10.00,FACEBK TXBU2VWB32
OXFORDSHIRE CC,"CHILDRENS, YOUNG PEOPLE AND FAMILIES","	LOOKED AFTER NORTH",MATERIALS,12/10/2020,9219455033,6.64,AMAZON.CO.UK C699B7LS5
OXFORDSHIRE CC,"CHILDRENS, YOUNG PEOPLE AND FAMILIES",EYNSHAM,MATERIALS,12/10/2020,9219455043,19.86,AMAZON.CO.UK 5I64Z2FV5
OXFORDSHIRE CC,CORPORATE CORE,,"SUPPLIES, STATIONERY AND MATERIALS",12/10/2020,9219455047,42.00,LYRECO UK LTD
OXFORDSHIRE CC,CORPORATE CORE,,"SUPPLIES, STATIONERY AND MATERIALS",12/10/2020,9219455053,64.03,LYRECO UK LTD
OXFORDSHIRE CC,"CHILDRENS, YOUNG PEOPLE AND FAMILIES","	LEAVING CARE SOUTH",PAYMENT TO GOVERNMENT DEPARTMENTS,12/10/2020,9219455057,23.00,DVSA  LEARNER
OXFORDSHIRE CC,"CHILDRENS, YOUNG PEOPLE AND FAMILIES",EET SERVICE,SUBSCRIPTIONS,12/10/2020,9219454063,100.00,HIGHSTREETVOUCHERS
OXFORDSHIRE CC,ENVIRONMENT AND ECONOMY,LIB ICT SUPPRT&MAINT,IT SERVICES,12/10/2020,9219454107,149.96,WWW.PRINTERLAND.CO
OXFORDSHIRE CC,CORPORATE CORE,RESOURCING,PAYMENT TO GOVERNMENT DEPARTMENTS,12/10/2020,9219454113,"1,476.00",RNE755800008T UKVI
OXFORDSHIRE CC,"CHILDRENS, YOUNG PEOPLE AND FAMILIES","	LEAVING CARE SOUTH",MATERIALS,12/10/2020,9219455063,404.98,AMAZON.CO.UK TB4E56XO5
OXFORDSHIRE CC,"CHILDRENS, YOUNG PEOPLE AND FAMILIES","	FAMILY SUPPORT CITY3",HIRE OF ACCOMMODATION AND FACILITIES,12/10/2020,9219454171,68.00,WELCOME BREAK
OXFORDSHIRE CC,"CHILDRENS, YOUNG PEOPLE AND FAMILIES","	40 THE MOORS",CLOTHING AND UNIFORMS,12/10/2020,9219454191,79.97,WWW.ROMWE.COM
OXFORDSHIRE CC,"CHILDRENS, YOUNG PEOPLE AND FAMILIES","	40 THE MOORS",CATERING PROVISIONS,12/10/2020,9219454195,143.23,SAINSBURYS (2243)
OXFORDSHIRE CC,"CHILDRENS, YOUNG PEOPLE AND FAMILIES","	40 THE MOORS",TELEPHONE - EQUIPMENT,12/10/2020,9219454199,30.00,EE TOPUP  VESTA
OXFORDSHIRE CC,"CHILDRENS, YOUNG PEOPLE AND FAMILIES","	40 THE MOORS",CATERING PROVISIONS,12/10/2020,9219454203,2.90,CO-OPERATIVE FOOD
OXFORDSHIRE CC,"CHILDRENS, YOUNG PEOPLE AND FAMILIES","	LOOKED AFTER NORTH",CLOTHING AND UNIFORMS,12/10/2020,9219454207,76.45,NIKE
OXFORDSHIRE CC,CORPORATE CORE,RESOURCING,MATERIALS,12/10/2020,9219454213,72.00,LINKEDIN
OXFORDSHIRE CC,"CHILDRENS, YOUNG PEOPLE AND FAMILIES","	LEAVING CARE SOUTH",DOMESTIC AND CLEANING EQUIPMENT,12/10/2020,9219454231,8.96,POUNDSTRETCHER 322
OXFORDSHIRE CC,"CHILDRENS, YOUNG PEOPLE AND FAMILIES",EYNSHAM,CATERING PROVISIONS,09/10/2020,9215626037,14.55,CO-OPERATIVE FOOD
OXFORDSHIRE CC,"CHILDRENS, YOUNG PEOPLE AND FAMILIES","	LOOKED AFTER SOUTH",IT SOFTWARE,09/10/2020,9215626043,189.00,LONDON DOCTORS CLINIC
OXFORDSHIRE CC,"CHILDRENS, YOUNG PEOPLE AND FAMILIES","	LOOKED AFTER SOUTH",OTHER TRANSPORT ARRANGEMENTS,09/10/2020,9215626095,78.75,WWW.THEKEY.CO.UK
OXFORDSHIRE CC,"CHILDRENS, YOUNG PEOPLE AND FAMILIES","	RIVERSIDE CENTRE",VEHICLE FUEL,09/10/2020,9215625543,80.99,BP MILTON HEIGHTS S/SE
OXFORDSHIRE CC,"CHILDRENS, YOUNG PEOPLE AND FAMILIES","	RIVERSIDE CENTRE",CATERING PROVISIONS,09/10/2020,9215625551,1.60,TESCO STORES 4377
OXFORDSHIRE CC,SOCIAL AND COMMUNITY SERVICES,LEAVING CARE NORTH,SUBSCRIPTIONS,09/10/2020,9215625589,16.98,HOLLYWOOD BOWL
OXFORDSHIRE CC,"CHILDRENS, YOUNG PEOPLE AND FAMILIES","	LEAVING CARE NORTH",PAYMENT TO GOVERNMENT DEPARTMENTS,09/10/2020,9215625635,34.00,DVLA DRIVER ONLINE
OXFORDSHIRE CC,SOCIAL AND COMMUNITY SERVICES,CSS WANTAGE,MATERIALS,09/10/2020,9215625651,20.99,AMZNMKTPLACE
OXFORDSHIRE CC,SOCIAL AND COMMUNITY SERVICES,CSS WANTAGE,CATERING PROVISIONS,09/10/2020,9215625657,21.22,SAINSBURYS SACAT 2244
OXFORDSHIRE CC,SOCIAL AND COMMUNITY SERVICES,CSS WANTAGE,MATERIALS,09/10/2020,9215625659,35.00,AMAZON.CO.UK H80SV43F5
OXFORDSHIRE CC,"CHILDRENS, YOUNG PEOPLE AND FAMILIES",STH EARLY HELP-ABNDN,CLOTHING AND UNIFORMS,09/10/2020,9215624819,24.99,SCREWFIX DIRECT
OXFORDSHIRE CC,"CHILDRENS, YOUNG PEOPLE AND FAMILIES",THAME E&A HOME,MATERIALS,09/10/2020,9215624825,41.96,AMZNMKTPLACE
OXFORDSHIRE CC,"CHILDRENS, YOUNG PEOPLE AND FAMILIES","	LOOKED AFTER SOUTH",MATERIALS,09/10/2020,9215625771,119.99,CURRYS
OXFORDSHIRE CC,"CHILDRENS, YOUNG PEOPLE AND FAMILIES",DIDCOT MOVE-ON HOME,PAYMENTS TO TRANSPORT OPERATORS,09/10/2020,9215625819,95.40,GWR DIDCOT PKWY TO
OXFORDSHIRE CC,"CHILDRENS, YOUNG PEOPLE AND FAMILIES",DIDCOT MOVE-ON HOME,CATERING PROVISIONS,09/10/2020,9215625833,6.27,SAINSBURYS SACAT 2067
OXFORDSHIRE CC,"CHILDRENS, YOUNG PEOPLE AND FAMILIES",THAME E&A HOME,MATERIALS,09/10/2020,9215624827,4.58,AMZNMKTPLACE
OXFORDSHIRE CC,SOCIAL AND COMMUNITY SERVICES,LOOKED AFTER NORTH,MATERIALS,09/10/2020,9215625337,239.99,ARGOS LTD
OXFORDSHIRE CC,"CHILDRENS, YOUNG PEOPLE AND FAMILIES","	LOOKED AFTER CITY 2",OTHER TRANSPORT ARRANGEMENTS,09/10/2020,9215625353,3.80,OXFORD BUS COMPANY
OXFORDSHIRE CC,"CHILDRENS, YOUNG PEOPLE AND FAMILIES","	LOOKED AFTER CITY 2",PAYMENTS TO TRANSPORT OPERATORS,09/10/2020,9215625361,33.70,GWR OXFORD TO
OXFORDSHIRE CC,"CHILDRENS, YOUNG PEOPLE AND FAMILIES",EYNSHAM,CATERING,09/10/2020,9215625365,18.64,CO-OPERATIVE FOOD
OXFORDSHIRE CC,"CHILDRENS, YOUNG PEOPLE AND FAMILIES",THAME E&A HOME,CATERING PROVISIONS,09/10/2020,9215625371,14.75,SAINSBURYS SACAT 2096
OXFORDSHIRE CC,CORPORATE CORE,"MARKETING, COMMUNICATIONS & ENGAGEMENT",MATERIALS,09/10/2020,9215625375,500.00,GOOGLE  ADS4896546035
OXFORDSHIRE CC,"CHILDRENS, YOUNG PEOPLE AND FAMILIES",KINGFISHER,MATERIALS,09/10/2020,9215625401,7.99,AMAZON PRIME 588WE6K75
OXFORDSHIRE CC,"CHILDRENS, YOUNG PEOPLE AND FAMILIES",UASC 16&17,CATERING,09/10/2020,9215625409,17.08,CO-OPERATIVE FOOD
OXFORDSHIRE CC,ENVIRONMENT AND ECONOMY,"	BUSINESS SYST STAFF",CATERING PROVISIONS,09/10/2020,9215625413,2.49,POUNDSTRETCHER 771
OXFORDSHIRE CC,"CHILDRENS, YOUNG PEOPLE AND FAMILIES","	MANAGEMENT & ADMIN",HIRE OF ACCOMMODATION AND FACILITIES,09/10/2020,9215624881,297.00,JURYS INN OXFORD HOTEL
OXFORDSHIRE CC,"CHILDRENS, YOUNG PEOPLE AND FAMILIES","	MANAGEMENT & ADMIN",HIRE OF ACCOMMODATION AND FACILITIES,09/10/2020,9215624885,250.00,JURYS INN OXFORD HOTEL
OXFORDSHIRE CC,"CHILDRENS, YOUNG PEOPLE AND FAMILIES",0-5 STDS & PROGRESS,EDUCATIONAL AND VOCATIONAL TRAINING ,09/10/2020,9215625889,10.00,WP-THE BRITISH ASS
OXFORDSHIRE CC,SOCIAL AND COMMUNITY SERVICES,CSS BICESTER,MATERIALS,09/10/2020,9215624895,9.46,AMZNMKTPLACE
OXFORDSHIRE CC,SOCIAL AND COMMUNITY SERVICES,CSS BICESTER,MATERIALS,09/10/2020,9215624903,13.64,AMZNMKTPLACE
OXFORDSHIRE CC,SOCIAL AND COMMUNITY SERVICES,CSS - ABINGDON,EQUIPMENT,09/10/2020,9215624907,11.72,AMAZON.CO.UK E701N0FC5
OXFORDSHIRE CC,ENVIRONMENT AND ECONOMY,HARD FM,HARDWARE AND CROCKERY,09/10/2020,9215624909,113.98,SCREWFIX DIRECT
OXFORDSHIRE CC,ENVIRONMENT AND ECONOMY,HARD FM,FURNITURE,09/10/2020,9215624915,24.99,TOPPS TILES OXFORD
OXFORDSHIRE CC,ENVIRONMENT AND ECONOMY,HARD FM,GENERAL MAINTENANCE,09/10/2020,9215624917,29.11,WOLSELEY UK
OXFORDSHIRE CC,ENVIRONMENT AND ECONOMY,HARD FM,GENERAL MAINTENANCE,09/10/2020,9215624925,105.38,WOLSELEY UK
OXFORDSHIRE CC,ENVIRONMENT AND ECONOMY,HARD FM,MATERIALS,09/10/2020,9215624931,5.32,AMZNMKTPLACE
OXFORDSHIRE CC,ENVIRONMENT AND ECONOMY,HARD FM,GENERAL MAINTENANCE,09/10/2020,9215624941,32.60,WOLSELEY UK
OXFORDSHIRE CC,ENVIRONMENT AND ECONOMY,HARD FM,HARDWARE AND CROCKERY,09/10/2020,9215624945,18.86,SCREWFIX DIRECT
OXFORDSHIRE CC,"CHILDRENS, YOUNG PEOPLE AND FAMILIES","	LEAVING CARE NORTH",OTHER EXPENSES,09/10/2020,9215625991,134.91,J DEAMER & SONS LIMIT
OXFORDSHIRE CC,"CHILDRENS, YOUNG PEOPLE AND FAMILIES",HOUSE PROJECT,CATERING PROVISIONS,09/10/2020,9215626021,8.20,TESCO STORE 2994
OXFORDSHIRE CC,"CHILDRENS, YOUNG PEOPLE AND FAMILIES",THAME E&A HOME,CATERING PROVISIONS,09/10/2020,9215626031,8.45,SAINSBURYS 2096
OXFORDSHIRE CC,CORPORATE CORE,OTHER,INSUR AD HOLD ACC-E,09/10/2020,9215626033,"2,088.00",THOMSON REUTERS UK LTD
OXFORDSHIRE CC,ENVIRONMENT AND ECONOMY,"	TVERC",SUBSCRIPTIONS,09/10/2020,9215624963,20.00,PAYPAL  NFBR
OXFORDSHIRE CC,SOCIAL AND COMMUNITY SERVICES,UASC 16&17,VEHICLE FUEL,09/10/2020,9215624987,15.00,TESCO PAYAT PUMP 3700
OXFORDSHIRE CC,SOCIAL AND COMMUNITY SERVICES,DIDCOT MOVE-ON HOME,CATERING PROVISIONS,09/10/2020,9215624991,3.50,SAINSBURYS SACAT 2067
OXFORDSHIRE CC,SOCIAL AND COMMUNITY SERVICES,"	VISUAL IMP. TEAM",MATERIALS,09/10/2020,9215625481,52.35,AMZNMKTPLACE
OXFORDSHIRE CC,CORPORATE CORE,HOLTON SITE,SECURITY COSTS,09/10/2020,9215625483,243.60,CHRISLEWISFS.CO.UK
OXFORDSHIRE CC,"CHILDRENS, YOUNG PEOPLE AND FAMILIES","	LOOKED AFTER CITY 2",ENTERTAINMENT EXPENSES,09/10/2020,9215625493,108.00,THE ZOOLOGICAL SOCIETY
OXFORDSHIRE CC,SOCIAL AND COMMUNITY SERVICES,CSS - OXFORD,CATERING PROVISIONS,09/10/2020,9215625497,174.07,TESCO STORE 2994
OXFORDSHIRE CC,"CHILDRENS, YOUNG PEOPLE AND FAMILIES",WITNEY,MATERIALS,09/10/2020,9215625505,151.97,GAME RETAIL
OXFORDSHIRE CC,"CHILDRENS, YOUNG PEOPLE AND FAMILIES",THAME E&A HOME,VEHICLE FUEL,09/10/2020,9215625081,1.80,THAME BP SF CONNECT
OXFORDSHIRE CC,SOCIAL AND COMMUNITY SERVICES,"	MUSEUMS COLLECTIONS",CATERING PROVISIONS,09/10/2020,9215625105,3.12,MILK&MORE
OXFORDSHIRE CC,CORPORATE CORE,LIBRARY COLLECTIONS,"BOOKS, DVDS AND CDS",09/10/2020,9215625115,193.96,BOLINDA PUBLISHING
OXFORDSHIRE CC,CORPORATE CORE,LIBRARY COLLECTIONS,"BOOKS, DVDS AND CDS",09/10/2020,9215625123,"2,026.98",OVERDRIVE DIST
OXFORDSHIRE CC,CORPORATE CORE,LIBRARY COLLECTIONS,"BOOKS, DVDS AND CDS",09/10/2020,9215625125,"4,889.26",OVERDRIVE DIST
OXFORDSHIRE CC,"CHILDRENS, YOUNG PEOPLE AND FAMILIES",MANAGEMENT,"BOOKS, DVDS AND CDS",09/10/2020,9215625131,562.50,PAYPAL  RUSSELLHOUS
OXFORDSHIRE CC,CORPORATE CORE,"MARKETING, COMMUNICATIONS & ENGAGEMENT",MATERIALS,09/10/2020,9215625137,39.67,AMZNMKTPLACE
OXFORDSHIRE CC,CORPORATE CORE,"MARKETING, COMMUNICATIONS & ENGAGEMENT",MATERIALS,09/10/2020,9215625139,24.87,AMZNMKTPLACE
OXFORDSHIRE CC,SOCIAL AND COMMUNITY SERVICES,CSS WALLINGFORD,CATERING PROVISIONS,09/10/2020,9215625143,7.90,WAITROSE 675
OXFORDSHIRE CC,"CHILDRENS, YOUNG PEOPLE AND FAMILIES",UASC POST 18,CATERING,09/10/2020,9215625189,5.40,IZ  SILVIE
OXFORDSHIRE CC,"CHILDRENS, YOUNG PEOPLE AND FAMILIES",CSS - ABINGDON,CATERING PROVISIONS,09/10/2020,9215625225,36.60,TESCO STORES 2008
OXFORDSHIRE CC,SOCIAL AND COMMUNITY SERVICES,RESIDENTIAL STRATEGY,CLOTHING AND UNIFORMS,09/10/2020,9215625231,16.27,WWW.ROMWE.COM
OXFORDSHIRE CC,SOCIAL AND COMMUNITY SERVICES,RESIDENTIAL STRATEGY,CLOTHING AND UNIFORMS,09/10/2020,9215625233,23.59,BOOHOO.COM
OXFORDSHIRE CC,"CHILDRENS, YOUNG PEOPLE AND FAMILIES","	FAMILY SUPPORT CITY3",OTHER TRANSPORT ARRANGEMENTS,09/10/2020,9215625251,39.00,OXFORD BUS COMPANY
OXFORDSHIRE CC,SOCIAL AND COMMUNITY SERVICES,CSS - OXFORD,CLOTHING AND UNIFORMS,09/10/2020,9215625311,81.10,PAYPAL  ETSY.COM
OXFORDSHIRE CC,"CHILDRENS, YOUNG PEOPLE AND FAMILIES","	LEAVING CARE SOUTH",OTHER TRANSPORT ARRANGEMENTS,09/10/2020,9215625321,7.00,WESTAGTE OXFORD CAR P
OXFORDSHIRE CC,"CHILDRENS, YOUNG PEOPLE AND FAMILIES","	MARLBOROUGH",MATERIALS,09/10/2020,9215625325,24.47,AMZNMKTPLACE
OXFORDSHIRE CC,SHARED SERVICES,COVID-19 COD,FURNITURE,09/10/2020,9215625329,75.00,AMZNMKTPLACE
OXFORDSHIRE CC,SOCIAL AND COMMUNITY SERVICES,LOOKED AFTER NORTH,EDUCATIONAL AND VOCATIONAL TRAINING ,09/10/2020,9215625333,130.00,WWW.HARTPURY.AC.UK
OXFORDSHIRE CC,CORPORATE CORE,"	MEMBERS ALLOWANCES",MATERIALS,08/10/2020,9210720579,39.57,AMAZON.CO.UK BF8F064R5
OXFORDSHIRE CC,CORPORATE CORE,"	MEMBERS ALLOWANCES",MATERIALS,08/10/2020,9210720583,7.92,AMAZON.CO.UK BP4T94Y15
OXFORDSHIRE CC,"CHILDRENS, YOUNG PEOPLE AND FAMILIES",WITNEY,CATERING PROVISIONS,08/10/2020,9210720589,27.18,ASDA STORES 4920
OXFORDSHIRE CC,SOCIAL AND COMMUNITY SERVICES,CSS BICESTER,MATERIALS,08/10/2020,9210720325,11.99,AMZNMKTPLACE
OXFORDSHIRE CC,ENVIRONMENT AND ECONOMY,HARD FM,HARDWARE AND CROCKERY,08/10/2020,9210720333,231.43,OXON FASTENING SYSTEMS
OXFORDSHIRE CC,ENVIRONMENT AND ECONOMY,HARD FM,HARDWARE AND CROCKERY,08/10/2020,9210720337,46.52,OXON FASTENING SYSTEMS
OXFORDSHIRE CC,ENVIRONMENT AND ECONOMY,HARD FM,OTHER TRANSPORT ARRANGEMENTS,08/10/2020,9210720341,3.80,NCP BANBURY MARLBOROUG
OXFORDSHIRE CC,ENVIRONMENT AND ECONOMY,HARD FM,OTHER TRANSPORT ARRANGEMENTS,08/10/2020,9210720343,3.80,NCP BANBURY MARLBOROUG
OXFORDSHIRE CC,ENVIRONMENT AND ECONOMY,HARD FM,GENERAL MAINTENANCE,08/10/2020,9210720349,178.85,WOLSELEY UK
OXFORDSHIRE CC,ENVIRONMENT AND ECONOMY,HARD FM,GENERAL MAINTENANCE,08/10/2020,9210720353,295.20,WOLSELEY UK
OXFORDSHIRE CC,ENVIRONMENT AND ECONOMY,"	TVERC",CATERING PROVISIONS,08/10/2020,9210720359,.99,MOONPIG
OXFORDSHIRE CC,"CHILDRENS, YOUNG PEOPLE AND FAMILIES",THAME E&A HOME,MATERIALS,08/10/2020,9210720825,24.99,AMZNMKTPLACE
OXFORDSHIRE CC,"CHILDRENS, YOUNG PEOPLE AND FAMILIES","	LEAVING CARE NORTH",OTHER EXPENSES,08/10/2020,9210720831,5.39,MCDONALDS
OXFORDSHIRE CC,"CHILDRENS, YOUNG PEOPLE AND FAMILIES","	LOOKED AFTER SOUTH",CATERING,08/10/2020,9210720833,21.45,SMOKEYS STREET STYLE
OXFORDSHIRE CC,"CHILDRENS, YOUNG PEOPLE AND FAMILIES",KEEP ON CARING,CATERING,08/10/2020,9210720383,5.45,COSTA BICESTER
OXFORDSHIRE CC,"CHILDRENS, YOUNG PEOPLE AND FAMILIES","	RESIDENTIAL STRATEGY",EDUCATIONAL AND VOCATIONAL TRAINING ,08/10/2020,9210720387,71.82,PROTRAININGS
OXFORDSHIRE CC,"CHILDRENS, YOUNG PEOPLE AND FAMILIES",NTH FAM SUPRT-BCSTR,MATERIALS,08/10/2020,9210720419,8.79,AMAZON.CO.UK 298W27EW5
OXFORDSHIRE CC,"CHILDRENS, YOUNG PEOPLE AND FAMILIES",CSC COVID-19,TELEPHONE - EQUIPMENT,08/10/2020,9210720421,20.00,VESTA VODAFONE
OXFORDSHIRE CC,ENVIRONMENT AND ECONOMY,V2GO,POSTAGE AND DELIVERY,08/10/2020,9210720425,4.10,POST OFFICE COUNTER
OXFORDSHIRE CC,"CHILDRENS, YOUNG PEOPLE AND FAMILIES",EYNSHAM,CATERING PROVISIONS,08/10/2020,9210720773,9.26,CO-OPERATIVE FOOD
OXFORDSHIRE CC,"CHILDRENS, YOUNG PEOPLE AND FAMILIES","	LEAVING CARE SOUTH",CLOTHING AND UNIFORMS,08/10/2020,9210720795,28.49,BOOHOO.COM
OXFORDSHIRE CC,ENVIRONMENT AND ECONOMY,V2GO,MATERIALS,08/10/2020,9210720427,8.17,WH SMITH
OXFORDSHIRE CC,CORPORATE CORE,"MARKETING, COMMUNICATIONS & ENGAGEMENT","PUBLICITY, PROMOTIONS AND ADVERTISEMENT",08/10/2020,9210720431,94.66,LINKEDIN IRELAND
OXFORDSHIRE CC,"CHILDRENS, YOUNG PEOPLE AND FAMILIES","	LEAVING CARE NORTH",MATERIALS,08/10/2020,9210720433,99.99,ARGOS LTD
OXFORDSHIRE CC,CORPORATE CORE,SCHOOLS FM,MATERIALS,08/10/2020,9210720443,55.96,AMZNMKTPLACE
OXFORDSHIRE CC,SOCIAL AND COMMUNITY SERVICES,CSS WALLINGFORD,CATERING PROVISIONS,08/10/2020,9210720447,13.10,WAITROSE 675
OXFORDSHIRE CC,"CHILDRENS, YOUNG PEOPLE AND FAMILIES",STH EARLY HELP-DDCOT,POSTAGE AND DELIVERY,08/10/2020,9210720471,2.48,POST OFFICE COUNTER
OXFORDSHIRE CC,"CHILDRENS, YOUNG PEOPLE AND FAMILIES",KINGFISHER,CATERING,08/10/2020,9210720485,9.98,COSTA@NEXT 43041715
OXFORDSHIRE CC,"CHILDRENS, YOUNG PEOPLE AND FAMILIES","	SENSS TRAINING",RECRUTIMENT EXPENSES (EXCL. ADVERTISING),08/10/2020,9210720489,14.00,WWW.REED.CO.UK
OXFORDSHIRE CC,SOCIAL AND COMMUNITY SERVICES,"	KINGFISHER",OTHER TRANSPORT ARRANGEMENTS,08/10/2020,9210720493,2.00,HEADINGTON CAR PARK
OXFORDSHIRE CC,SOCIAL AND COMMUNITY SERVICES,"	KINGFISHER",CATERING,08/10/2020,9210720497,10.10,STARBUCKS
OXFORDSHIRE CC,ENVIRONMENT AND ECONOMY,"	COMMERCIAL MANAGEMEN",POSTAGE AND DELIVERY,08/10/2020,9210720505,-12.00,ROYAL MAIL GROUP LTD
OXFORDSHIRE CC,"CHILDRENS, YOUNG PEOPLE AND FAMILIES","	HOME SUPPORT",MATERIALS,08/10/2020,9210720513,20.47,AMZNMKTPLACE
OXFORDSHIRE CC,"CHILDRENS, YOUNG PEOPLE AND FAMILIES","	40 THE MOORS",CATERING,08/10/2020,9210720523,5.00,SAINSBURYS SACAT 0631
OXFORDSHIRE CC,"CHILDRENS, YOUNG PEOPLE AND FAMILIES",NTH FAM SUPRT-BCSTR,TELEPHONE - EQUIPMENT,08/10/2020,9210720525,10.00,GIFFGAFF
OXFORDSHIRE CC,"CHILDRENS, YOUNG PEOPLE AND FAMILIES",UASC POST 18,OTHER TRANSPORT ARRANGEMENTS,08/10/2020,9210720539,3.80,STGCOACH/CTYLINK
OXFORDSHIRE CC,"CHILDRENS, YOUNG PEOPLE AND FAMILIES","	LEAVING CARE SOUTH",CATERING,08/10/2020,9210720543,6.40,COSTA COFFEE THAMESIDE
OXFORDSHIRE CC,"CHILDRENS, YOUNG PEOPLE AND FAMILIES",NTH EARLY HELP-WITNY,PAYMENTS TO VOLUNTARY BODIES,08/10/2020,9210720551,110.00,PAYPAL  WOMENSLIBER WO
OXFORDSHIRE CC,"CHILDRENS, YOUNG PEOPLE AND FAMILIES",THAME E&A HOME,CATERING PROVISIONS,08/10/2020,9210720553,6.00,TESCO STORES 6519
OXFORDSHIRE CC,CORPORATE CORE,"MARKETING, COMMUNICATIONS & ENGAGEMENT","PUBLICITY, PROMOTIONS AND ADVERTISEMENT",08/10/2020,9210720555,500.00,FACEBK BZR7GWW8Z2
OXFORDSHIRE CC,CORPORATE CORE,"MARKETING, COMMUNICATIONS & ENGAGEMENT",IT SOFTWARE,08/10/2020,9210720557,8.01,RSS.APP
OXFORDSHIRE CC,"CHILDRENS, YOUNG PEOPLE AND FAMILIES","	LEAVING CARE SOUTH",CLOTHING AND UNIFORMS,08/10/2020,9210720797,23.19,PRETTYLITTLETHING.COM
OXFORDSHIRE CC,"CHILDRENS, YOUNG PEOPLE AND FAMILIES","	LEAVING CARE SOUTH",MATERIALS,08/10/2020,9210720799,49.99,ARGOS LTD
OXFORDSHIRE CC,"CHILDRENS, YOUNG PEOPLE AND FAMILIES","	LEAVING CARE SOUTH",MATERIALS,08/10/2020,9210720801,253.94,ARGOS LTD
OXFORDSHIRE CC,"CHILDRENS, YOUNG PEOPLE AND FAMILIES","	LEAVING CARE SOUTH",MATERIALS,08/10/2020,9210720803,18.94,ARGOS LTD
OXFORDSHIRE CC,"CHILDRENS, YOUNG PEOPLE AND FAMILIES",EYNSHAM,CATERING PROVISIONS,08/10/2020,9210720809,1.00,SAINSBURYS SACAT 0632
OXFORDSHIRE CC,"CHILDRENS, YOUNG PEOPLE AND FAMILIES",EYNSHAM,MATERIALS,08/10/2020,9210720815,12.95,WITNEY INSIDE SAINSBUR
OXFORDSHIRE CC,"CHILDRENS, YOUNG PEOPLE AND FAMILIES",FPT SOUTH/VALE,CATERING PROVISIONS,08/10/2020,9210720819,22.00,MARKS&SPENCER PLC
OXFORDSHIRE CC,"CHILDRENS, YOUNG PEOPLE AND FAMILIES","	LOOKED AFTER SOUTH",OTHER EXPENSES,08/10/2020,9210720283,62.16,AMZNMKTPLACE
OXFORDSHIRE CC,"CHILDRENS, YOUNG PEOPLE AND FAMILIES","	LOOKED AFTER SOUTH",HIRE OF ACCOMMODATION AND FACILITIES,08/10/2020,9210720287,62.00,THE HIGHFIELD
OXFORDSHIRE CC,"CHILDRENS, YOUNG PEOPLE AND FAMILIES","	LOOKED AFTER SOUTH",CLOTHING AND UNIFORMS,08/10/2020,9210720291,126.65,WWW.ASOS.COM
OXFORDSHIRE CC,CORPORATE CORE,"	LEGAL SERVICES",MATERIALS,08/10/2020,9210720615,25.82,AMAZON.CO.UK 0R6JC9Q55
OXFORDSHIRE CC,SOCIAL AND COMMUNITY SERVICES,LEAVING CARE NORTH,CATERING,08/10/2020,9210720629,20.53,DELIVEROO.CO.UK
OXFORDSHIRE CC,CORPORATE CORE,REGISTRAR,PAYMENT TO GOVERNMENT DEPARTMENTS,08/10/2020,9210720697,80.00,WORCESTERSHIRE CC
OXFORDSHIRE CC,CORPORATE CORE,REGISTRAR,PAYMENT TO GOVERNMENT DEPARTMENTS,08/10/2020,9210720701,40.00,WWW.ICO.ORG.UK
OXFORDSHIRE CC,"CHILDRENS, YOUNG PEOPLE AND FAMILIES","	MALTFIELD HOUSE",CATERING,08/10/2020,9210720717,9.65,COSTA COFFEE
OXFORDSHIRE CC,SOCIAL AND COMMUNITY SERVICES,CSS - BANBURY,CATERING PROVISIONS,08/10/2020,9210720735,11.95,TESCO STORE 2064
OXFORDSHIRE CC,"CHILDRENS, YOUNG PEOPLE AND FAMILIES",DIDCOT MOVE-ON HOME,CATERING PROVISIONS,08/10/2020,9210720749,32.33,SAINSBURYS 2067
OXFORDSHIRE CC,SOCIAL AND COMMUNITY SERVICES,"	CENTRAL LIBRARY",EQUIPMENT,07/10/2020,9208107899,24.00,TIMPSON LTD
OXFORDSHIRE CC,SOCIAL AND COMMUNITY SERVICES,INFO & SURVEILLANCE,HIRED AND CONTRACTED SERVICES,07/10/2020,9208107919,900.00,IPF
OXFORDSHIRE CC,CORPORATE CORE,ICT OPERATIONS & MAI,"SUPPLIES, STATIONERY AND MATERIALS",07/10/2020,9208107925,88.79,ITECHDEVICES UK LTD
OXFORDSHIRE CC,"CHILDRENS, YOUNG PEOPLE AND FAMILIES",EYNSHAM,CATERING PROVISIONS,07/10/2020,9208107929,140.37,TESCO STORES 2008
OXFORDSHIRE CC,"CHILDRENS, YOUNG PEOPLE AND FAMILIES",EYNSHAM,CATERING PROVISIONS,07/10/2020,9208107935,-3.60,TESCO STORES 2008
OXFORDSHIRE CC,SOCIAL AND COMMUNITY SERVICES,CSS BICESTER,CATERING PROVISIONS,07/10/2020,9208106959,40.47,ALDI 49 775
OXFORDSHIRE CC,"CHILDRENS, YOUNG PEOPLE AND FAMILIES","	LOOKED AFTER CITY 1",DRUGS AND MEDICAL SUPPLIES,07/10/2020,9208106965,2.36,SUPERDRUG STORES PLC
OXFORDSHIRE CC,ENVIRONMENT AND ECONOMY,HARD FM,OTHER TRANSPORT ARRANGEMENTS,07/10/2020,9208106971,2.80,NCP BANBURY MARLBOROUG
OXFORDSHIRE CC,ENVIRONMENT AND ECONOMY,HARD FM,OTHER TRANSPORT ARRANGEMENTS,07/10/2020,9208106981,2.80,NCP BANBURY MARLBOROUG
OXFORDSHIRE CC,ENVIRONMENT AND ECONOMY,HARD FM,HARDWARE AND CROCKERY,07/10/2020,9208106985,17.90,WICKES BANBURY
OXFORDSHIRE CC,ENVIRONMENT AND ECONOMY,HARD FM,GENERAL MAINTENANCE,07/10/2020,9208106991,33.12,WOLSELEY UK
OXFORDSHIRE CC,ENVIRONMENT AND ECONOMY,HARD FM,EQUIPMENT,07/10/2020,9208106997,23.99,HENLEY PLUMBING SUPPLI
OXFORDSHIRE CC,ENVIRONMENT AND ECONOMY,AREA OPERATIONS SOUTH STAFF,STATIONERY,07/10/2020,9208107087,36.89,VIKING UK
OXFORDSHIRE CC,"CHILDRENS, YOUNG PEOPLE AND FAMILIES",EYNSHAM,MATERIALS,07/10/2020,9208108047,11.73,AMAZON.CO.UK NV5HW7JA5
OXFORDSHIRE CC,"CHILDRENS, YOUNG PEOPLE AND FAMILIES",STH EARLY HELP-ABNDN,MATERIALS,07/10/2020,9208106873,147.50,FAMILY LINKS
OXFORDSHIRE CC,"CHILDRENS, YOUNG PEOPLE AND FAMILIES",THAME E&A HOME,MATERIALS,07/10/2020,9208106879,67.90,AMZNMKTPLACE
OXFORDSHIRE CC,CORPORATE CORE,"MARKETING, COMMUNICATIONS & ENGAGEMENT",IT SOFTWARE,07/10/2020,9208107321,179.09,MAILCHIMP
OXFORDSHIRE CC,"CHILDRENS, YOUNG PEOPLE AND FAMILIES",UASC 16&17,CATERING PROVISIONS,07/10/2020,9208107343,7.98,HEADINGTON BUTCHERS AN
OXFORDSHIRE CC,"CHILDRENS, YOUNG PEOPLE AND FAMILIES",UASC 16&17,CATERING PROVISIONS,07/10/2020,9208107349,7.60,TESCO STORES 6880
OXFORDSHIRE CC,"CHILDRENS, YOUNG PEOPLE AND FAMILIES","	OCCG GRANT",CATERING,07/10/2020,9208107359,4.00,COSTA COFFEE
OXFORDSHIRE CC,"CHILDRENS, YOUNG PEOPLE AND FAMILIES","	40 THE MOORS",CATERING,07/10/2020,9208107845,81.00,WWW.JUST EAT.CO.UK
OXFORDSHIRE CC,"CHILDRENS, YOUNG PEOPLE AND FAMILIES",DIDCOT MOVE-ON HOME,CATERING PROVISIONS,07/10/2020,9208107865,.75,SAINSBURYS SACAT 2067
OXFORDSHIRE CC,"CHILDRENS, YOUNG PEOPLE AND FAMILIES",EYNSHAM,CATERING,07/10/2020,9208106931,4.20,CO-OPERATIVE FOOD
OXFORDSHIRE CC,"CHILDRENS, YOUNG PEOPLE AND FAMILIES",WITNEY,CATERING PROVISIONS,07/10/2020,9208106935,17.13,ASDA STORES 4920
OXFORDSHIRE CC,SOCIAL AND COMMUNITY SERVICES,CSS BICESTER,CATERING PROVISIONS,07/10/2020,9208106955,7.50,WILKO RETAIL LIMITED
OXFORDSHIRE CC,SOCIAL AND COMMUNITY SERVICES,CSS BICESTER,MATERIALS,07/10/2020,9208107167,13.41,AMZNMKTPLACE
OXFORDSHIRE CC,"CHILDRENS, YOUNG PEOPLE AND FAMILIES",NTH FAM SUPRT-BCSTR,OTHER TRANSPORT ARRANGEMENTS,07/10/2020,9208107171,27.50,STAGECOACH SERVICE
OXFORDSHIRE CC,"CHILDRENS, YOUNG PEOPLE AND FAMILIES",NTH FAM SUPRT-BCSTR,MATERIALS,07/10/2020,9208107175,47.49,AMAZON.CO.UK XN7CL7NT5
OXFORDSHIRE CC,"CHILDRENS, YOUNG PEOPLE AND FAMILIES",KINGFISHER,OTHER TRANSPORT ARRANGEMENTS,07/10/2020,9208107195,101.92,STORAGEBASE
OXFORDSHIRE CC,SOCIAL AND COMMUNITY SERVICES,CSS WITNEY,MATERIALS,07/10/2020,9208107699,32.14,AMZNMKTPLACE AMAZON.CO
OXFORDSHIRE CC,SOCIAL AND COMMUNITY SERVICES,CSS WITNEY,MATERIALS,07/10/2020,9208107705,24.99,AMZNMKTPLACE
OXFORDSHIRE CC,"CHILDRENS, YOUNG PEOPLE AND FAMILIES","	LOOKED AFTER CITY 2","SUPPLIES, STATIONERY AND MATERIALS",07/10/2020,9208107215,284.97,WWW.JOHNLEWIS.COM
OXFORDSHIRE CC,ENVIRONMENT AND ECONOMY,HARD FM,MATERIALS,07/10/2020,9208107001,31.60,AMZNMKTPLACE AMAZON.CO
OXFORDSHIRE CC,SOCIAL AND COMMUNITY SERVICES,CSS - OXFORD,HARDWARE AND CROCKERY,07/10/2020,9208107007,32.00,B & Q 1156
OXFORDSHIRE CC,CORPORATE CORE,SOFT FM,CATERING PROVISIONS,07/10/2020,9208107467,1.25,AMAZON.CO.UK OO5IB7W05
OXFORDSHIRE CC,"CHILDRENS, YOUNG PEOPLE AND FAMILIES",THAME E&A HOME,MATERIALS,07/10/2020,9208107959,7.99,AMAZON PRIME G65GO2905
OXFORDSHIRE CC,"CHILDRENS, YOUNG PEOPLE AND FAMILIES","	LEAVING CARE NORTH",OTHER TRANSPORT ARRANGEMENTS,07/10/2020,9208107965,15.35,PAYPAL  TRAINLINE
OXFORDSHIRE CC,"CHILDRENS, YOUNG PEOPLE AND FAMILIES","	RIVERSIDE CENTRE",CATERING PROVISIONS,07/10/2020,9208107041,11.40,TESCO STORES 4377
OXFORDSHIRE CC,CORPORATE CORE,"	MEMBERS ALLOWANCES",MATERIALS,07/10/2020,9208107517,20.39,AMAZON.CO.UK S467L7EX5
OXFORDSHIRE CC,"CHILDRENS, YOUNG PEOPLE AND FAMILIES","	LEAVING CARE NORTH",OTHER EXPENSES,07/10/2020,9208107967,20.00,WWW.SECURE-PAYMENT-SER
OXFORDSHIRE CC,"CHILDRENS, YOUNG PEOPLE AND FAMILIES","	LOOKED AFTER SOUTH",CATERING PROVISIONS,07/10/2020,9208107971,1.50,MARKS & SPENCER PLC SA
OXFORDSHIRE CC,"CHILDRENS, YOUNG PEOPLE AND FAMILIES","	LOOKED AFTER SOUTH",CATERING PROVISIONS,07/10/2020,9208107975,2.50,MARKS & SPENCER PLC SA
OXFORDSHIRE CC,"CHILDRENS, YOUNG PEOPLE AND FAMILIES","	LOOKED AFTER NORTH",MATERIALS,07/10/2020,9208108001,54.29,AMZNMKTPLACE AMAZON.CO
OXFORDSHIRE CC,"CHILDRENS, YOUNG PEOPLE AND FAMILIES","	LOOKED AFTER NORTH",EDUCATIONAL AND VOCATIONAL TRAINING ,07/10/2020,9208108003,14.99,AMZN DIGITAL
OXFORDSHIRE CC,"CHILDRENS, YOUNG PEOPLE AND FAMILIES","	LOOKED AFTER NORTH",EDUCATIONAL AND VOCATIONAL TRAINING ,07/10/2020,9208108007,199.99,AMAZON.CO.UK MG8151UF4
OXFORDSHIRE CC,SOCIAL AND COMMUNITY SERVICES,"	KINGFISHER",CATERING,07/10/2020,9208107229,5.60,IZ  WOODSTOCK COFFEE S
OXFORDSHIRE CC,CORPORATE CORE,"	CHAIRMANS ALLOWANCE",PAYMENTS TO VOLUNTARY BODIES,07/10/2020,9208107241,17.00,ROYAL BRITISH LEGION P
OXFORDSHIRE CC,"CHILDRENS, YOUNG PEOPLE AND FAMILIES","	FAMILY SUPPORT CITY3",MATERIALS,07/10/2020,9208107249,37.99,HALFORDS ON LINE
OXFORDSHIRE CC,"CHILDRENS, YOUNG PEOPLE AND FAMILIES","	FAMILY SUPPORT CITY3",MATERIALS,07/10/2020,9208107255,10.00,TESCO ONLINE
OXFORDSHIRE CC,CORPORATE CORE,REGISTRAR,CLOTHING AND UNIFORMS,07/10/2020,9208107775,64.45,ETSY.COM - DOMDRICHSTU
OXFORDSHIRE CC,"CHILDRENS, YOUNG PEOPLE AND FAMILIES",UASC POST 18,OTHER TRANSPORT ARRANGEMENTS,07/10/2020,9208107267,26.00,STGCOACH/CTYLINK
OXFORDSHIRE CC,"CHILDRENS, YOUNG PEOPLE AND FAMILIES",UASC POST 18,OTHER TRANSPORT ARRANGEMENTS,07/10/2020,9208107273,7.20,TFL TRAVEL CH
OXFORDSHIRE CC,"CHILDRENS, YOUNG PEOPLE AND FAMILIES",FIELDWORK UASC,PAYMENTS TO TRANSPORT OPERATORS,07/10/2020,9208107277,13.50,LUL TICKET MACHINE
OXFORDSHIRE CC,"CHILDRENS, YOUNG PEOPLE AND FAMILIES",EYNSHAM,MATERIALS,07/10/2020,9208108055,14.99,AMAZON.CO.UK Q554Q9R05
OXFORDSHIRE CC,CORPORATE CORE,,"SUPPLIES, STATIONERY AND MATERIALS",07/10/2020,9208108061,107.52,LYRECO UK LTD
OXFORDSHIRE CC,CORPORATE CORE,,"SUPPLIES, STATIONERY AND MATERIALS",07/10/2020,9208108067,2.28,LYRECO UK LTD
OXFORDSHIRE CC,"CHILDRENS, YOUNG PEOPLE AND FAMILIES",THAME E&A HOME,CATERING PROVISIONS,07/10/2020,9208107107,13.69,SAINSBURYS 2096
OXFORDSHIRE CC,"CHILDRENS, YOUNG PEOPLE AND FAMILIES",DIDCOT MOVE-ON HOME,CATERING PROVISIONS,07/10/2020,9208107113,1.10,SAINSBURYS SACAT 2067
OXFORDSHIRE CC,"CHILDRENS, YOUNG PEOPLE AND FAMILIES",DIDCOT MOVE-ON HOME,CATERING PROVISIONS,07/10/2020,9208107117,23.20,SAINSBURYS SACAT 2067
OXFORDSHIRE CC,SOCIAL AND COMMUNITY SERVICES,SCHOOLS FM,CATERING PROVISIONS,07/10/2020,9208107121,7.30,CO-OPERATIVE FOOD
OXFORDSHIRE CC,"CHILDRENS, YOUNG PEOPLE AND FAMILIES","	LOOKED AFTER CITY 1",OTHER EXPENSES,07/10/2020,9208107139,219.98,WWW.JOHNLEWIS.COM
OXFORDSHIRE CC,CORPORATE CORE,,"SUPPLIES, STATIONERY AND MATERIALS",07/10/2020,9208108073,2.98,LYRECO UK LTD
OXFORDSHIRE CC,CORPORATE CORE,,"SUPPLIES, STATIONERY AND MATERIALS",07/10/2020,9208108077,16.85,LYRECO UK LTD
OXFORDSHIRE CC,ENTERPRISEVC,,CAR LEASING - PRIVATE RENTALS,07/10/2020,9208108089,258.42,ENTERPRISE RENT-A-CAR
OXFORDSHIRE CC,ENTERPRISEVC,,CAR LEASING - PRIVATE RENTALS,07/10/2020,9208108093,46.12,ENTERPRISE RENT-A-CAR
OXFORDSHIRE CC,ENTERPRISEVC,,CAR LEASING - PRIVATE RENTALS,07/10/2020,9208108097,107.88,ENTERPRISE RENT-A-CAR
OXFORDSHIRE CC,ENTERPRISEVC,,CAR LEASING - PRIVATE RENTALS,07/10/2020,9208108101,72.37,ENTERPRISE RENT-A-CAR
OXFORDSHIRE CC,"CHILDRENS, YOUNG PEOPLE AND FAMILIES",SOUTH FSS STATUTORY - ABINGDON,MATERIALS,07/10/2020,9208107157,239.00,AMAZON.CO.UK 1555X90L5
OXFORDSHIRE CC,"CHILDRENS, YOUNG PEOPLE AND FAMILIES","	LEAVING CARE NORTH",MATERIALS,07/10/2020,9208107669,140.00,JD SPORTS INTERNET
OXFORDSHIRE CC,ENTERPRISEVC,,CAR LEASING - PRIVATE RENTALS,07/10/2020,9208108105,46.12,ENTERPRISE RENT-A-CAR
OXFORDSHIRE CC,ENTERPRISEVC,,CAR LEASING - PRIVATE RENTALS,07/10/2020,9208108107,61.31,ENTERPRISE RENT-A-CAR
OXFORDSHIRE CC,ENTERPRISEVC,,CAR LEASING - PRIVATE RENTALS,07/10/2020,9208108111,46.12,ENTERPRISE RENT-A-CAR
OXFORDSHIRE CC,ENTERPRISEVC,,CAR LEASING - PRIVATE RENTALS,07/10/2020,9208108115,64.69,ENTERPRISE RENT-A-CAR
OXFORDSHIRE CC,ENTERPRISEVC,,CAR LEASING - PRIVATE RENTALS,07/10/2020,9208108119,42.96,ENTERPRISE RENT-A-CAR
OXFORDSHIRE CC,CORPORATE CORE,SOFT FM,CATERING PROVISIONS,06/10/2020,9205792481,12.85,AMZNMKTPLACE AMAZON.CO
OXFORDSHIRE CC,CORPORATE CORE,SOFT FM,CATERING PROVISIONS,06/10/2020,9205792485,20.39,AMAZON.CO.UK FW2LL2R15
OXFORDSHIRE CC,SOCIAL AND COMMUNITY SERVICES,CSS - OXFORD,EQUIPMENT,06/10/2020,9205792499,39.95,AMZNMKTPLACE AMAZON.CO
OXFORDSHIRE CC,SOCIAL AND COMMUNITY SERVICES,CSS - OXFORD,CATERING EQUIPMENT,06/10/2020,9205792503,329.96,AMZ BUY IT DIRECT LT
OXFORDSHIRE CC,"CHILDRENS, YOUNG PEOPLE AND FAMILIES",UASC POST 18,OTHER EXPENSES,06/10/2020,9205792527,400.00,CARPETS 4 LESS
OXFORDSHIRE CC,SOCIAL AND COMMUNITY SERVICES,CSS BICESTER,CATERING PROVISIONS,06/10/2020,9205791939,31.45,TESCO STORES 4480
OXFORDSHIRE CC,"CHILDRENS, YOUNG PEOPLE AND FAMILIES","	LOOKED AFTER CITY 2",CLOTHING AND UNIFORMS,06/10/2020,9205792589,52.99,BOOHOO.COM
OXFORDSHIRE CC,SOCIAL AND COMMUNITY SERVICES,LEAVING CARE NORTH,FURNITURE,06/10/2020,9205792593,197.95,AMZNMKTPLACE AMAZON.CO
OXFORDSHIRE CC,"CHILDRENS, YOUNG PEOPLE AND FAMILIES","	LOOKED AFTER SOUTH",OTHER TRANSPORT ARRANGEMENTS,06/10/2020,9205791977,67.50,WWW.THEKEY.CO.UK
OXFORDSHIRE CC,SOCIAL AND COMMUNITY SERVICES,CSS - ABINGDON,CATERING PROVISIONS,06/10/2020,9205791985,13.43,TESCO STORES 2008
OXFORDSHIRE CC,ENVIRONMENT AND ECONOMY,"	NAT TRAILS GENERAL",VEHICLE FUEL,06/10/2020,9205791997,68.74,TESCO PAY AT PUMP 2488
OXFORDSHIRE CC,"CHILDRENS, YOUNG PEOPLE AND FAMILIES",CSS WALLINGFORD,CATERING PROVISIONS,06/10/2020,9205792001,14.05,SAINSBURYS SACAT 2067
OXFORDSHIRE CC,SOCIAL AND COMMUNITY SERVICES,CSS WANTAGE,POSTAGE AND DELIVERY,06/10/2020,9205792629,65.00,POST OFFICE COUNTER
OXFORDSHIRE CC,"CHILDRENS, YOUNG PEOPLE AND FAMILIES",PD EQUIPMENT,DISABILITY AIDS AND EQUIPMENT,06/10/2020,9205792633,39.94,NRS HEALTHCARE
OXFORDSHIRE CC,SOCIAL AND COMMUNITY SERVICES,CSS - BANBURY,CATERING PROVISIONS,06/10/2020,9205792217,51.35,SAINSBURYS TO YOU 0642
OXFORDSHIRE CC,SOCIAL AND COMMUNITY SERVICES,"	HISTORY SERVICE","BOOKS, DVDS AND CDS",06/10/2020,9205792221,14.99,AMAZON.CO.UK VH4DU1LO5
OXFORDSHIRE CC,CORPORATE CORE,,"SUPPLIES, STATIONERY AND MATERIALS",06/10/2020,9205792897,123.00,LYRECO UK LTD
OXFORDSHIRE CC,CORPORATE CORE,,"SUPPLIES, STATIONERY AND MATERIALS",06/10/2020,9205792899,-106.74,LYRECO UK LTD
OXFORDSHIRE CC,CORPORATE CORE,,"SUPPLIES, STATIONERY AND MATERIALS",06/10/2020,9205792903,-16.06,LYRECO UK LTD
OXFORDSHIRE CC,SOCIAL AND COMMUNITY SERVICES,CSS BICESTER,CATERING PROVISIONS,06/10/2020,9205792291,9.80,SAINSBURYS SACAT (2243
OXFORDSHIRE CC,"CHILDRENS, YOUNG PEOPLE AND FAMILIES",THAME E&A HOME,CATERING PROVISIONS,06/10/2020,9205792299,164.82,TESCO STORES 2038
OXFORDSHIRE CC,"CHILDRENS, YOUNG PEOPLE AND FAMILIES",THAME E&A HOME,CATERING PROVISIONS,06/10/2020,9205792303,-3.00,TESCO STORES 2038
OXFORDSHIRE CC,SOCIAL AND COMMUNITY SERVICES,CSS - OXFORD,CATERING PROVISIONS,06/10/2020,9205792305,22.73,ALDI STORES 775-142
OXFORDSHIRE CC,"CHILDRENS, YOUNG PEOPLE AND FAMILIES","	LEAVING CARE CITY 2",CATERING PROVISIONS,06/10/2020,9205792331,22.00,TESCO STORES 4480
OXFORDSHIRE CC,"CHILDRENS, YOUNG PEOPLE AND FAMILIES","	SENSS TRAINING","SUPPLIES, STATIONERY AND MATERIALS",06/10/2020,9205792337,50.00,EB  STARTING OUT CONFE
OXFORDSHIRE CC,"CHILDRENS, YOUNG PEOPLE AND FAMILIES","	SENSS TRAINING","SUPPLIES, STATIONERY AND MATERIALS",06/10/2020,9205792341,50.00,EB  STARTING OUT CONFE
OXFORDSHIRE CC,"CHILDRENS, YOUNG PEOPLE AND FAMILIES","	SENSS TRAINING","SUPPLIES, STATIONERY AND MATERIALS",06/10/2020,9205792343,50.00,EB  STARTING OUT CONFE
OXFORDSHIRE CC,"CHILDRENS, YOUNG PEOPLE AND FAMILIES","	SENSS TRAINING","SUPPLIES, STATIONERY AND MATERIALS",06/10/2020,9205792345,50.00,EB  STARTING OUT CONFE
OXFORDSHIRE CC,"CHILDRENS, YOUNG PEOPLE AND FAMILIES","	SENSS TRAINING","SUPPLIES, STATIONERY AND MATERIALS",06/10/2020,9205792349,50.00,EB  STARTING OUT CONFE
OXFORDSHIRE CC,"CHILDRENS, YOUNG PEOPLE AND FAMILIES","	SENSS TRAINING","SUPPLIES, STATIONERY AND MATERIALS",06/10/2020,9205792351,50.00,EB  STARTING OUT CONFE
OXFORDSHIRE CC,"CHILDRENS, YOUNG PEOPLE AND FAMILIES",FIELDWORK UASC,TELEPHONE - EQUIPMENT,06/10/2020,9205792367,20.00,SMARTY CO UK
OXFORDSHIRE CC,"CHILDRENS, YOUNG PEOPLE AND FAMILIES",THAME E&A HOME,CATERING PROVISIONS,06/10/2020,9205792395,7.18,AL-KHIR GROCERS
OXFORDSHIRE CC,"CHILDRENS, YOUNG PEOPLE AND FAMILIES","	40 THE MOORS",CATERING PROVISIONS,06/10/2020,9205792403,173.94,TESCO STORES 4480
OXFORDSHIRE CC,SOCIAL AND COMMUNITY SERVICES,LOOKED AFTER NORTH,PAYMENTS TO TRANSPORT OPERATORS,06/10/2020,9205792407,53.19,THETRAINLINE.COM
OXFORDSHIRE CC,SOCIAL AND COMMUNITY SERVICES,LOOKED AFTER NORTH,MATERIALS,06/10/2020,9205792411,125.00,JD SPORTS INTERNET
OXFORDSHIRE CC,CORPORATE CORE,"MARKETING, COMMUNICATIONS & ENGAGEMENT",IT SOFTWARE,06/10/2020,9205792427,20.03,ZAPIER.COM/CHARGE
OXFORDSHIRE CC,"CHILDRENS, YOUNG PEOPLE AND FAMILIES",FAMILY SUPPORT 2,GENERAL MAINTENANCE,06/10/2020,9205792813,85.00,CASTLE LOCKSMITHS
OXFORDSHIRE CC,"CHILDRENS, YOUNG PEOPLE AND FAMILIES",CNTL ERLY HELP-BBLEY,CATERING PROVISIONS,06/10/2020,9205792817,1.09,TESCO STORE 2990
OXFORDSHIRE CC,SOCIAL AND COMMUNITY SERVICES,SCHOOLS FM,MATERIALS,06/10/2020,9205792127,23.90,AMAZON.CO.UK HV8JJ4I55
OXFORDSHIRE CC,SOCIAL AND COMMUNITY SERVICES,SCHOOLS FM,MATERIALS,06/10/2020,9205792129,53.98,AMZNMKTPLACE
OXFORDSHIRE CC,"CHILDRENS, YOUNG PEOPLE AND FAMILIES",THAME E&A HOME,FURNITURE,06/10/2020,9205792139,288.40,IKEA LTD 185 MILTON KE
OXFORDSHIRE CC,ENTERPRISEVC,BUSINESS SYST STAFF,"NEWSPAPERS, PERIODICALS AND PUBLICATIONS",06/10/2020,9205792141,35.45,CORDEE LTD
OXFORDSHIRE CC,"CHILDRENS, YOUNG PEOPLE AND FAMILIES","	LOOKED AFTER CITY 2",OTHER TRANSPORT ARRANGEMENTS,06/10/2020,9205792821,155.00,IZ  ROYAL CARS OXF
OXFORDSHIRE CC,"CHILDRENS, YOUNG PEOPLE AND FAMILIES","	LEAVING CARE SOUTH",CLOTHING AND UNIFORMS,06/10/2020,9205792827,15.58,FEMME LUXE
OXFORDSHIRE CC,"CHILDRENS, YOUNG PEOPLE AND FAMILIES","	LEAVING CARE SOUTH",CLOTHING AND UNIFORMS,06/10/2020,9205792831,13.99,BOOHOO.COM
OXFORDSHIRE CC,"CHILDRENS, YOUNG PEOPLE AND FAMILIES","	LEAVING CARE SOUTH",CLOTHING AND UNIFORMS,06/10/2020,9205792833,28.99,PRETTYLITTLETHING.COM
OXFORDSHIRE CC,"CHILDRENS, YOUNG PEOPLE AND FAMILIES","	LEAVING CARE SOUTH",MATERIALS,06/10/2020,9205792837,379.00,AO RETAIL LIMITED
OXFORDSHIRE CC,"CHILDRENS, YOUNG PEOPLE AND FAMILIES",EYNSHAM,IT SOFTWARE,06/10/2020,9205792843,13.00,MAYFIELDEGGS
OXFORDSHIRE CC,CORPORATE CORE,MOTOR FLEET,MOTOR IF OWN DAMAGE,06/10/2020,9205792847,609.58,ENTERPRISE RENT A CAR
OXFORDSHIRE CC,"CHILDRENS, YOUNG PEOPLE AND FAMILIES",EYNSHAM,DRUGS AND MEDICAL SUPPLIES,06/10/2020,9205792851,11.43,LLOYDS PHARMACY
OXFORDSHIRE CC,"CHILDRENS, YOUNG PEOPLE AND FAMILIES",EYNSHAM,CATERING PROVISIONS,06/10/2020,9205792853,17.91,CO-OPERATIVE FOOD
OXFORDSHIRE CC,"CHILDRENS, YOUNG PEOPLE AND FAMILIES",DIDCOT MOVE-ON HOME,CATERING PROVISIONS,06/10/2020,9205792143,18.85,SAINSBURYS SACAT 2067
OXFORDSHIRE CC,SOCIAL AND COMMUNITY SERVICES,SCHOOLS FM,CATERING PROVISIONS,06/10/2020,9205792145,12.60,TESCO STORES 4377
OXFORDSHIRE CC,SOCIAL AND COMMUNITY SERVICES,SCHOOLS FM,CATERING PROVISIONS,06/10/2020,9205792155,35.00,TESCO STORES 6167
OXFORDSHIRE CC,"CHILDRENS, YOUNG PEOPLE AND FAMILIES","	LEAVING CARE CITY 1",PAYMENT TO GOVERNMENT DEPARTMENTS,06/10/2020,9205792165,1.65,ST ALBANS DISTRICT COU
OXFORDSHIRE CC,"CHILDRENS, YOUNG PEOPLE AND FAMILIES","	LEAVING CARE CITY 1",MATERIALS,06/10/2020,9205792169,179.99,ARGOS LTD
OXFORDSHIRE CC,"CHILDRENS, YOUNG PEOPLE AND FAMILIES","	LOOKED AFTER CITY 1",MATERIALS,06/10/2020,9205792171,400.94,ARGOS LTD
OXFORDSHIRE CC,CORPORATE CORE,LIBRARY COLLECTIONS,"BOOKS, DVDS AND CDS",06/10/2020,9205792177,"2,421.23",OVERDRIVE DIST
OXFORDSHIRE CC,CORPORATE CORE,INCOME TEAM,PAYMENT TO GOVERNMENT DEPARTMENTS,06/10/2020,9205792867,1.50,WWW.GOV.UK
OXFORDSHIRE CC,CORPORATE CORE,INCOME TEAM,PAYMENT TO GOVERNMENT DEPARTMENTS,06/10/2020,9205792871,1.50,WWW.GOV.UK
OXFORDSHIRE CC,CORPORATE CORE,INCOME TEAM,PAYMENT TO GOVERNMENT DEPARTMENTS,06/10/2020,9205792875,1.50,WWW.GOV.UK
OXFORDSHIRE CC,CORPORATE CORE,INCOME TEAM,PAYMENT TO GOVERNMENT DEPARTMENTS,06/10/2020,9205792877,1.50,WWW.GOV.UK
OXFORDSHIRE CC,"CHILDRENS, YOUNG PEOPLE AND FAMILIES",UASC 16&17,VEHICLE FUEL,06/10/2020,9205792011,30.93,HOPCROFTS HOLT SERVICE
OXFORDSHIRE CC,ENVIRONMENT AND ECONOMY,HARD FM,HARDWARE AND CROCKERY,06/10/2020,9205792015,26.05,SCREWFIX DIRECT
OXFORDSHIRE CC,ENVIRONMENT AND ECONOMY,HARD FM,HARDWARE AND CROCKERY,06/10/2020,9205792019,32.93,OXON FASTENING SYSTEMS
OXFORDSHIRE CC,ENVIRONMENT AND ECONOMY,HARD FM,HARDWARE AND CROCKERY,06/10/2020,9205792023,57.22,JEWSON LTD
OXFORDSHIRE CC,ENVIRONMENT AND ECONOMY,HARD FM,HARDWARE AND CROCKERY,06/10/2020,9205792027,20.40,B AND Q
OXFORDSHIRE CC,ENVIRONMENT AND ECONOMY,HARD FM,VEHICLES REPAIRS AND MAINTENANCE,06/10/2020,9205792031,113.50,NATIONAL TYRE SERV
OXFORDSHIRE CC,ENVIRONMENT AND ECONOMY,HARD FM,MATERIALS,06/10/2020,9205792035,28.50,HALFORDS 0788
OXFORDSHIRE CC,ENVIRONMENT AND ECONOMY,HARD FM,VEHICLES REPAIRS AND MAINTENANCE,06/10/2020,9205792037,92.00,MEGA TYRE STORES LTD
OXFORDSHIRE CC,ENVIRONMENT AND ECONOMY,"	FLEET OPERATIONS",POSTAGE AND DELIVERY,06/10/2020,9205792685,11.18,POST OFFICE COUNTER
OXFORDSHIRE CC,"CHILDRENS, YOUNG PEOPLE AND FAMILIES","	MALTFIELD HOUSE",CATERING PROVISIONS,06/10/2020,9205792701,5.20,CO-OP GROUP 070582
OXFORDSHIRE CC,"CHILDRENS, YOUNG PEOPLE AND FAMILIES",NTH FAM SUPRT-BCSTR,PAYMENTS TO TRANSPORT OPERATORS,06/10/2020,9205792077,9.80,WWW.GWR.COM
OXFORDSHIRE CC,SOCIAL AND COMMUNITY SERVICES,"	ASSESSMENT TEAM NORT",OTHER EXPENSES,06/10/2020,9205792733,34.99,ARGOS LTD
OXFORDSHIRE CC,"CHILDRENS, YOUNG PEOPLE AND FAMILIES",EYNSHAM,VEHICLE FUEL,06/10/2020,9205792749,2.75,TESCO PFS 2488
OXFORDSHIRE CC,SOCIAL AND COMMUNITY SERVICES,"	KINGFISHER",OTHER TRANSPORT ARRANGEMENTS,05/10/2020,7353855936,2.50,SUMMERTOWN CAR PARK
OXFORDSHIRE CC,SOCIAL AND COMMUNITY SERVICES,LOOKED AFTER NORTH,MATERIALS,05/10/2020,7353856006,54.50,AMZNMKTPLACE
OXFORDSHIRE CC,SOCIAL AND COMMUNITY SERVICES,LOOKED AFTER NORTH,MATERIALS,05/10/2020,7353856010,59.99,AMZNMKTPLACE
OXFORDSHIRE CC,"CHILDRENS, YOUNG PEOPLE AND FAMILIES",CSS WALLINGFORD,CATERING PROVISIONS,05/10/2020,7353855736,6.05,WAITROSE 675
OXFORDSHIRE CC,"CHILDRENS, YOUNG PEOPLE AND FAMILIES",THAME E&A HOME,MATERIALS,05/10/2020,7353855738,17.90,AMZNMKTPLACE
OXFORDSHIRE CC,"CHILDRENS, YOUNG PEOPLE AND FAMILIES",EYNSHAM,POSTAGE AND DELIVERY,05/10/2020,7353855748,1.64,POST OFFICE COUNTER
OXFORDSHIRE CC,ENVIRONMENT AND ECONOMY,HARD FM,GENERAL MAINTENANCE,05/10/2020,7353855786,98.32,WOLSELEY UK
OXFORDSHIRE CC,ENVIRONMENT AND ECONOMY,HARD FM,HARDWARE AND CROCKERY,05/10/2020,7353855788,8.08,B & Q 1156
OXFORDSHIRE CC,ENVIRONMENT AND ECONOMY,HARD FM,HARDWARE AND CROCKERY,05/10/2020,7353855792,34.28,SCREWFIX DIRECT
OXFORDSHIRE CC,ENVIRONMENT AND ECONOMY,HARD FM,VEHICLES REPAIRS AND MAINTENANCE,05/10/2020,7353855794,312.64,NATIONAL WINDSCREENS
OXFORDSHIRE CC,ENVIRONMENT AND ECONOMY,HARD FM,HARDWARE AND CROCKERY,05/10/2020,7353855796,86.75,DULUX DECORATOR CENTRE
OXFORDSHIRE CC,ENVIRONMENT AND ECONOMY,HARD FM,VEHICLES REPAIRS AND MAINTENANCE,05/10/2020,7353855798,92.00,MEGA TYRE STORES LTD
OXFORDSHIRE CC,ENVIRONMENT AND ECONOMY,HARD FM,HARDWARE AND CROCKERY,05/10/2020,7353855802,28.19,B & Q 1062
OXFORDSHIRE CC,"CHILDRENS, YOUNG PEOPLE AND FAMILIES",THAME E&A HOME,CATERING PROVISIONS,05/10/2020,7353855804,15.90,SAINSBURYS SACAT 2096
OXFORDSHIRE CC,SOCIAL AND COMMUNITY SERVICES,CSS BICESTER,MATERIALS,05/10/2020,7353855896,15.70,AMZNMKTPLACE
OXFORDSHIRE CC,"CHILDRENS, YOUNG PEOPLE AND FAMILIES","	LEAVING CARE NORTH",CATERING PROVISIONS,05/10/2020,7353855900,4.05,MOONPIG
OXFORDSHIRE CC,"CHILDRENS, YOUNG PEOPLE AND FAMILIES","	LEAVING CARE NORTH",HIRE OF ACCOMMODATION AND FACILITIES,05/10/2020,7353855902,251.50,PREMIER INN
OXFORDSHIRE CC,CORPORATE CORE,SCHOOLS FM,CATERING,05/10/2020,7353855904,67.56,BOOKER LIMITED OXFORD
OXFORDSHIRE CC,,,,05/10/2020,7353856066,"-250,276.14",
OXFORDSHIRE CC,SOCIAL AND COMMUNITY SERVICES,WITNEY MOVE ON HOME,CATERING PROVISIONS,05/10/2020,7353855850,10.00,ASDA STORES 4920
OXFORDSHIRE CC,SOCIAL AND COMMUNITY SERVICES,WITNEY MOVE ON HOME,CATERING PROVISIONS,05/10/2020,7353855856,55.23,ASDA STORES 4920
OXFORDSHIRE CC,"CHILDRENS, YOUNG PEOPLE AND FAMILIES",THAME E&A HOME,CATERING,05/10/2020,7353855874,7.05,GREGGS PLC
OXFORDSHIRE CC,"CHILDRENS, YOUNG PEOPLE AND FAMILIES",THAME E&A HOME,CATERING PROVISIONS,05/10/2020,7353855876,24.50,ASDA  STORES
OXFORDSHIRE CC,"CHILDRENS, YOUNG PEOPLE AND FAMILIES",THAME E&A HOME,MATERIALS,05/10/2020,7353855878,7.99,AMAZON PRIME RG66Y7WN5
OXFORDSHIRE CC,SOCIAL AND COMMUNITY SERVICES,"	KINGFISHER",CATERING,05/10/2020,7353855938,20.00,JOE'S RESTAURANTS
OXFORDSHIRE CC,"CHILDRENS, YOUNG PEOPLE AND FAMILIES",THAME E&A HOME,CATERING PROVISIONS,05/10/2020,7353855942,27.41,SAINSBURYS SACAT 2096
OXFORDSHIRE CC,"CHILDRENS, YOUNG PEOPLE AND FAMILIES",THAME E&A HOME,VEHICLE FUEL,05/10/2020,7353855946,2.30,THAME BP SF CONNECT
OXFORDSHIRE CC,"CHILDRENS, YOUNG PEOPLE AND FAMILIES",EYNSHAM,CATERING PROVISIONS,05/10/2020,7353855956,3.00,CO-OPERATIVE FOOD
OXFORDSHIRE CC,"CHILDRENS, YOUNG PEOPLE AND FAMILIES","	FAMILY SUPPORT CITY3",HIRE OF ACCOMMODATION AND FACILITIES,05/10/2020,7353855960,74.00,WELCOME BREAK
OXFORDSHIRE CC,CORPORATE CORE,"MARKETING, COMMUNICATIONS & ENGAGEMENT",HIRED AND CONTRACTED SERVICES,05/10/2020,7353856034,32.97,CANVA  02832-4617391
OXFORDSHIRE CC,CORPORATE CORE,"MARKETING, COMMUNICATIONS & ENGAGEMENT","PUBLICITY, PROMOTIONS AND ADVERTISEMENT",05/10/2020,7353856036,500.00,FACEBK 6RGPZVJ9Z2
OXFORDSHIRE CC,SOCIAL AND COMMUNITY SERVICES,CSS WALLINGFORD,CATERING PROVISIONS,05/10/2020,7353855906,14.01,WAITROSE 675
OXFORDSHIRE CC,"CHILDRENS, YOUNG PEOPLE AND FAMILIES","	40 THE MOORS",CATERING PROVISIONS,05/10/2020,7353855974,159.20,SAINSBURYS TO YOU 0600
OXFORDSHIRE CC,"CHILDRENS, YOUNG PEOPLE AND FAMILIES","	40 THE MOORS",CLOTHING AND UNIFORMS,05/10/2020,7353855976,76.69,BOOHOO.COM
OXFORDSHIRE CC,"CHILDRENS, YOUNG PEOPLE AND FAMILIES","	40 THE MOORS",CATERING PROVISIONS,05/10/2020,7353855978,-5.75,TESCO STORE 3539
OXFORDSHIRE CC,"CHILDRENS, YOUNG PEOPLE AND FAMILIES","	RESIDENTIAL STRATEGY",PAYMENTS TO TRANSPORT OPERATORS,05/10/2020,7353855760,154.50,GWR OXFORD TO
OXFORDSHIRE CC,"CHILDRENS, YOUNG PEOPLE AND FAMILIES","	RESIDENTIAL STRATEGY",STATIONERY,05/10/2020,7353855764,6.00,PHOTO ME INTERNATIONAL
OXFORDSHIRE CC,"CHILDRENS, YOUNG PEOPLE AND FAMILIES","	RESIDENTIAL STRATEGY",OTHER TRANSPORT ARRANGEMENTS,05/10/2020,7353855766,4.30,OXFORD BUS COMPANY
OXFORDSHIRE CC,"CHILDRENS, YOUNG PEOPLE AND FAMILIES",WITNEY,CATERING PROVISIONS,05/10/2020,7353855768,9.75,SAINSBURYS SACAT 0632
OXFORDSHIRE CC,"CHILDRENS, YOUNG PEOPLE AND FAMILIES","	LEAVING CARE NORTH",MATERIALS,05/10/2020,7353855812,24.47,AMZNMKTPLACE
OXFORDSHIRE CC,SOCIAL AND COMMUNITY SERVICES,CSS - OXFORD,MATERIALS,05/10/2020,7353855816,70.03,ROBERT DYAS HOLDNG LTD
OXFORDSHIRE CC,"CHILDRENS, YOUNG PEOPLE AND FAMILIES",CNTL EARLY HELP-RHIL,MATERIALS,05/10/2020,7353855822,181.90,ARGOS LTD
OXFORDSHIRE CC,SOCIAL AND COMMUNITY SERVICES,CSS WALLINGFORD,MATERIALS,05/10/2020,7353855908,5.48,CARD FACTORY
OXFORDSHIRE CC,"CHILDRENS, YOUNG PEOPLE AND FAMILIES",THAME E&A HOME,CATERING PROVISIONS,05/10/2020,7353855928,68.46,TESCO STORES 2038
OXFORDSHIRE CC,"CHILDRENS, YOUNG PEOPLE AND FAMILIES",EYNSHAM,TELEPHONE - EQUIPMENT,05/10/2020,7353856510,10.00,GIFFGAFF
OXFORDSHIRE CC,"CHILDRENS, YOUNG PEOPLE AND FAMILIES",THAME E&A HOME,OTHER COMMUNICATIONS,05/10/2020,7353856636,9.99,NOWTV.COM/BILLINGHELP
OXFORDSHIRE CC,"CHILDRENS, YOUNG PEOPLE AND FAMILIES",UASC 16&17,OTHER EXPENSES,05/10/2020,7353856642,25.35,CO-OPERATIVE FOOD
OXFORDSHIRE CC,"CHILDRENS, YOUNG PEOPLE AND FAMILIES",UASC 16&17,OTHER EXPENSES,05/10/2020,7353856646,5.53,MCDONALDS
OXFORDSHIRE CC,"CHILDRENS, YOUNG PEOPLE AND FAMILIES",UASC 16&17,"SUPPLIES, STATIONERY AND MATERIALS",05/10/2020,7353856648,50.00,SP   SEWORKWEAR
OXFORDSHIRE CC,"CHILDRENS, YOUNG PEOPLE AND FAMILIES",CNTL ERLY HELP-BBLEY,FURNITURE,05/10/2020,7353856656,27.00,IKEA LTD 185 MILTON KE
OXFORDSHIRE CC,SOCIAL AND COMMUNITY SERVICES,CSS WITNEY,MATERIALS,05/10/2020,7353856408,11.95,AMZNMKTPLACE
OXFORDSHIRE CC,"CHILDRENS, YOUNG PEOPLE AND FAMILIES",UASC 16&17,OTHER EXPENSES,05/10/2020,7353856172,49.50,WILKO RETAIL LIMITED
OXFORDSHIRE CC,"CHILDRENS, YOUNG PEOPLE AND FAMILIES",UASC 16&17,OTHER EXPENSES,05/10/2020,7353856176,40.50,ASDA STORE 4442
OXFORDSHIRE CC,"CHILDRENS, YOUNG PEOPLE AND FAMILIES","	LOOKED AFTER CITY 2",OTHER TRANSPORT ARRANGEMENTS,05/10/2020,7353856182,2.10,FGW CONNECT WEB
OXFORDSHIRE CC,"CHILDRENS, YOUNG PEOPLE AND FAMILIES","	40 THE MOORS",MATERIALS,05/10/2020,7353856296,7.49,AMZNMKTPLACE
OXFORDSHIRE CC,"CHILDRENS, YOUNG PEOPLE AND FAMILIES","	40 THE MOORS",MATERIALS,05/10/2020,7353856302,-11.98,AMZ MY SHOE STORE
OXFORDSHIRE CC,"CHILDRENS, YOUNG PEOPLE AND FAMILIES","	40 THE MOORS",MATERIALS,05/10/2020,7353856310,36.70,AMZNMKTPLACE
OXFORDSHIRE CC,"CHILDRENS, YOUNG PEOPLE AND FAMILIES","	40 THE MOORS",MATERIALS,05/10/2020,7353856314,36.70,AMZNMKTPLACE
OXFORDSHIRE CC,"CHILDRENS, YOUNG PEOPLE AND FAMILIES","	40 THE MOORS",MATERIALS,05/10/2020,7353856320,36.70,AMZNMKTPLACE
OXFORDSHIRE CC,"CHILDRENS, YOUNG PEOPLE AND FAMILIES","	LEAVING CARE NORTH",PAYMENT TO GOVERNMENT DEPARTMENTS,05/10/2020,7353856602,14.00,GEN REGISTER OFFICE
OXFORDSHIRE CC,CORPORATE CORE,ICT OPERATIONS & MAI,IT SERVICES,05/10/2020,7353856604,300.00,COMMS365 LIMITED
OXFORDSHIRE CC,"CHILDRENS, YOUNG PEOPLE AND FAMILIES",EYNSHAM,CATERING PROVISIONS,05/10/2020,7353856618,163.89,TESCO STORES 2008
OXFORDSHIRE CC,CORPORATE CORE,,"SUPPLIES, STATIONERY AND MATERIALS",05/10/2020,7353856710,16.06,LYRECO UK LTD
OXFORDSHIRE CC,"CHILDRENS, YOUNG PEOPLE AND FAMILIES",DIDCOT MOVE-ON HOME,CATERING PROVISIONS,05/10/2020,7353856552,11.70,SAINSBURYS SACAT 2067
OXFORDSHIRE CC,"CHILDRENS, YOUNG PEOPLE AND FAMILIES",DIDCOT MOVE-ON HOME,CATERING PROVISIONS,05/10/2020,7353856554,3.15,SAINSBURYS 2067
OXFORDSHIRE CC,"CHILDRENS, YOUNG PEOPLE AND FAMILIES",DIDCOT MOVE-ON HOME,CATERING PROVISIONS,05/10/2020,7353856558,9.25,SAINSBURYS SACAT 2067
OXFORDSHIRE CC,"CHILDRENS, YOUNG PEOPLE AND FAMILIES",DIDCOT MOVE-ON HOME,CATERING PROVISIONS,05/10/2020,7353856560,3.00,SAINSBURYS SACAT 2067
OXFORDSHIRE CC,CORPORATE CORE,,"SUPPLIES, STATIONERY AND MATERIALS",05/10/2020,7353856700,106.74,LYRECO UK LTD
OXFORDSHIRE CC,CORPORATE CORE,,"SUPPLIES, STATIONERY AND MATERIALS",05/10/2020,7353856702,76.92,LYRECO UK LTD
OXFORDSHIRE CC,"CHILDRENS, YOUNG PEOPLE AND FAMILIES",UASC 16&17,CATERING,05/10/2020,7353856052,19.61,CO-OPERATIVE FOOD
OXFORDSHIRE CC,"CHILDRENS, YOUNG PEOPLE AND FAMILIES","	OCCG GRANT",CATERING,05/10/2020,7353856054,2.93,COSTA COFFEE
OXFORDSHIRE CC,"CHILDRENS, YOUNG PEOPLE AND FAMILIES",NTH FAM SUPRT-BCSTR,PAYMENT TO GOVERNMENT DEPARTMENTS,05/10/2020,7353856056,53.40,CHERWELL DISTRICT COUN
OXFORDSHIRE CC,"CHILDRENS, YOUNG PEOPLE AND FAMILIES","	OCCG GRANT",CATERING PROVISIONS,05/10/2020,7353856058,26.11,CO-OPERATIVE FOOD
OXFORDSHIRE CC,CORPORATE CORE,"	LEGAL SERVICES",LEGAL COSTS,05/10/2020,7353856222,44.00,OXFORDSHIRE CC MOTO1
OXFORDSHIRE CC,"CHILDRENS, YOUNG PEOPLE AND FAMILIES","	RIVERSIDE CENTRE",CATERING PROVISIONS,05/10/2020,7353856244,7.55,TESCO STORES 4377
OXFORDSHIRE CC,"CHILDRENS, YOUNG PEOPLE AND FAMILIES","	LOOKED AFTER CITY 1",MATERIALS,05/10/2020,7353856382,59.99,ARGOS LTD
OXFORDSHIRE CC,"CHILDRENS, YOUNG PEOPLE AND FAMILIES","	40 THE MOORS",ENTERTAINMENT EXPENSES,05/10/2020,7353856490,13.56,VUE ENTERTAINMENT LTD
OXFORDSHIRE CC,"CHILDRENS, YOUNG PEOPLE AND FAMILIES","	40 THE MOORS",OTHER TRANSPORT ARRANGEMENTS,05/10/2020,7353856494,4.00,STGCOACH/CTYLINK
OXFORDSHIRE CC,"CHILDRENS, YOUNG PEOPLE AND FAMILIES","	40 THE MOORS",DRUGS AND MEDICAL SUPPLIES,05/10/2020,7353856496,32.66,SUPERDRUG STORES PLC
OXFORDSHIRE CC,"CHILDRENS, YOUNG PEOPLE AND FAMILIES","	40 THE MOORS",DRUGS AND MEDICAL SUPPLIES,05/10/2020,7353856500,2.99,SUPERDRUG STORES PLC
OXFORDSHIRE CC,SOCIAL AND COMMUNITY SERVICES,CSS BICESTER,MATERIALS,02/10/2020,7349375458,49.61,AMZNMKTPLACE
OXFORDSHIRE CC,SOCIAL AND COMMUNITY SERVICES,CSS BICESTER,MATERIALS,02/10/2020,7349375460,19.99,AMZNMKTPLACE
OXFORDSHIRE CC,SOCIAL AND COMMUNITY SERVICES,CSS BICESTER,MATERIALS,02/10/2020,7349375462,7.85,AMZNMKTPLACE
OXFORDSHIRE CC,SOCIAL AND COMMUNITY SERVICES,CSS - OXFORD,MATERIALS,02/10/2020,7349375464,24.49,AMZNMKTPLACE
OXFORDSHIRE CC,SOCIAL AND COMMUNITY SERVICES,CSS - OXFORD,MATERIALS,02/10/2020,7349375466,16.37,AMZNMKTPLACE
OXFORDSHIRE CC,CORPORATE CORE,"MARKETING, COMMUNICATIONS & ENGAGEMENT","PUBLICITY, PROMOTIONS AND ADVERTISEMENT",02/10/2020,7349375468,22.50,LINKEDIN IRELAND
OXFORDSHIRE CC,"CHILDRENS, YOUNG PEOPLE AND FAMILIES","	LEAVING CARE NORTH",CATERING,02/10/2020,7349375470,9.75,COSTA COFFEE ABINGDON
OXFORDSHIRE CC,SOCIAL AND COMMUNITY SERVICES,CSS WALLINGFORD,CATERING PROVISIONS,02/10/2020,7349375472,4.00,WAITROSE 675
OXFORDSHIRE CC,SOCIAL AND COMMUNITY SERVICES,CSS WALLINGFORD,MATERIALS,02/10/2020,7349375474,5.75,KP STATIONERS
OXFORDSHIRE CC,"CHILDRENS, YOUNG PEOPLE AND FAMILIES",CSC COVID-19,MATERIALS,02/10/2020,7349375484,35.85,AMAZON.CO.UK BA8FS9FV5
OXFORDSHIRE CC,"CHILDRENS, YOUNG PEOPLE AND FAMILIES","	LOOKED AFTER CITY 1",REGISTRATION AND INSPECTION FEES,02/10/2020,7349375496,36.00,GEN REGISTER OFFICE
OXFORDSHIRE CC,"CHILDRENS, YOUNG PEOPLE AND FAMILIES","	LOOKED AFTER CITY 1",REGISTRATION AND INSPECTION FEES,02/10/2020,7349375498,14.00,GEN REGISTER OFFICE
OXFORDSHIRE CC,"CHILDRENS, YOUNG PEOPLE AND FAMILIES","	LOOKED AFTER CITY 2",REGISTRATION AND INSPECTION FEES,02/10/2020,7349375500,11.00,GEN REGISTER OFFICE
OXFORDSHIRE CC,ENVIRONMENT AND ECONOMY,COVID-19 COD,"SUPPLIES, STATIONERY AND MATERIALS",02/10/2020,7349375506,631.19,WWW.DISPLAYWIZARD.CO.U
OXFORDSHIRE CC,"CHILDRENS, YOUNG PEOPLE AND FAMILIES","	40 THE MOORS",CATERING,02/10/2020,7349375512,9.00,TESCO STORES 4480
OXFORDSHIRE CC,SOCIAL AND COMMUNITY SERVICES,COMMENTS&INFORMATION,POSTAGE AND DELIVERY,02/10/2020,7349375514,13.40,POST OFFICE COUNTER
OXFORDSHIRE CC,"CHILDRENS, YOUNG PEOPLE AND FAMILIES","	FAMILY SUPPORT CITY3",OTHER TRANSPORT ARRANGEMENTS,02/10/2020,7349375516,30.00,ROYAL CARS
OXFORDSHIRE CC,"CHILDRENS, YOUNG PEOPLE AND FAMILIES","	40 THE MOORS",CLOTHING AND UNIFORMS,02/10/2020,7349375520,57.19,BOOHOO.COM
OXFORDSHIRE CC,"CHILDRENS, YOUNG PEOPLE AND FAMILIES","	40 THE MOORS",MATERIALS,02/10/2020,7349375522,-65.00,SPORTSDIRECT.COM
OXFORDSHIRE CC,"CHILDRENS, YOUNG PEOPLE AND FAMILIES",UASC POST 18,ENTERTAINMENT EXPENSES,02/10/2020,7349375526,90.00,WWW.OXFORDSHIRE.GOV.UK
OXFORDSHIRE CC,"CHILDRENS, YOUNG PEOPLE AND FAMILIES",EYNSHAM,CATERING,02/10/2020,7349375392,4.00,SPAR EYNSHAM
OXFORDSHIRE CC,"CHILDRENS, YOUNG PEOPLE AND FAMILIES",WITNEY,MATERIALS,02/10/2020,7349375394,97.99,AMZNMKTPLACE
OXFORDSHIRE CC,"CHILDRENS, YOUNG PEOPLE AND FAMILIES",WITNEY,CATERING PROVISIONS,02/10/2020,7349375396,4.00,CO-OP GROUP 070582
OXFORDSHIRE CC,"CHILDRENS, YOUNG PEOPLE AND FAMILIES",WITNEY,MATERIALS,02/10/2020,7349375398,-155.60,AMZ AMAZON.CO.UK
OXFORDSHIRE CC,"CHILDRENS, YOUNG PEOPLE AND FAMILIES",THAME E&A HOME,CATERING,02/10/2020,7349375788,8.43,COSTA COFFEE 43039930
OXFORDSHIRE CC,"CHILDRENS, YOUNG PEOPLE AND FAMILIES",THAME E&A HOME,CATERING PROVISIONS,02/10/2020,7349375792,92.27,OXY ORIENTAL
OXFORDSHIRE CC,"CHILDRENS, YOUNG PEOPLE AND FAMILIES",THAME E&A HOME,MATERIALS,02/10/2020,7349375794,25.00,J D SPORTS
OXFORDSHIRE CC,"CHILDRENS, YOUNG PEOPLE AND FAMILIES","	LEAVING CARE NORTH",OTHER TRANSPORT ARRANGEMENTS,02/10/2020,7349375802,9.00,WESTAGTE OXFORD CAR P
OXFORDSHIRE CC,"CHILDRENS, YOUNG PEOPLE AND FAMILIES","	LOOKED AFTER SOUTH",VEHICLE FUEL,02/10/2020,7349375806,19.63,SAINSBURYS PFS0180
OXFORDSHIRE CC,ENVIRONMENT AND ECONOMY,HARD FM,HARDWARE AND CROCKERY,02/10/2020,7349375412,24.99,SCREWFIX DIRECT
OXFORDSHIRE CC,ENVIRONMENT AND ECONOMY,HARD FM,HARDWARE AND CROCKERY,02/10/2020,7349375414,87.76,CITY PLUMBING
OXFORDSHIRE CC,ENVIRONMENT AND ECONOMY,"	TVERC",IT SOFTWARE,02/10/2020,7349375416,8.04,COGNITO-PRO
OXFORDSHIRE CC,SOCIAL AND COMMUNITY SERVICES,CSS - OXFORD,MATERIALS,02/10/2020,7349375418,35.99,ROBERT DYAS HOLDNG LTD
OXFORDSHIRE CC,SOCIAL AND COMMUNITY SERVICES,CSS BICESTER,CATERING PROVISIONS,02/10/2020,7349375420,2.67,ALDI 49 775
OXFORDSHIRE CC,CORPORATE CORE,"	LEGAL SERVICES",LEGAL COSTS,02/10/2020,7349375614,22.00,OXFORDSHIRE CC MOTO1
OXFORDSHIRE CC,"CHILDRENS, YOUNG PEOPLE AND FAMILIES","	RIVERSIDE CENTRE",CATERING PROVISIONS,02/10/2020,7349375618,5.15,TESCO STORES 4377
OXFORDSHIRE CC,SOCIAL AND COMMUNITY SERVICES,CSS WITNEY,MATERIALS,02/10/2020,7349375678,33.48,AMZNMKTPLACE AMAZON.CO
OXFORDSHIRE CC,SOCIAL AND COMMUNITY SERVICES,CSS WANTAGE,MATERIALS,02/10/2020,7349375682,6.54,AMZNMKTPLACE
OXFORDSHIRE CC,SOCIAL AND COMMUNITY SERVICES,CSS WANTAGE,MATERIALS,02/10/2020,7349375686,4.00,AMAZON.CO.UK DE7R554G5
OXFORDSHIRE CC,SOCIAL AND COMMUNITY SERVICES,UASC 16&17,VEHICLE FUEL,02/10/2020,7349375424,16.22,TESCO PFS 4267
OXFORDSHIRE CC,"CHILDRENS, YOUNG PEOPLE AND FAMILIES",KEEP ON CARING,PAYMENTS TO VOLUNTARY BODIES,02/10/2020,7349375426,92.29,ALLPAY  A2DOMINION HOU
OXFORDSHIRE CC,"CHILDRENS, YOUNG PEOPLE AND FAMILIES",THAME E&A HOME,CATERING PROVISIONS,02/10/2020,7349375428,20.00,ASDA SUPERSTORE
OXFORDSHIRE CC,"CHILDRENS, YOUNG PEOPLE AND FAMILIES",THAME E&A HOME,CATERING,02/10/2020,7349375430,51.90,TGI FRIDAY'S
OXFORDSHIRE CC,CORPORATE CORE,INCOME TEAM,PAYMENT TO GOVERNMENT DEPARTMENTS,02/10/2020,7349375836,1.50,WWW.GOV.UK
OXFORDSHIRE CC,CORPORATE CORE,INCOME TEAM,PAYMENT TO GOVERNMENT DEPARTMENTS,02/10/2020,7349375838,1.50,WWW.GOV.UK
OXFORDSHIRE CC,CORPORATE CORE,,"SUPPLIES, STATIONERY AND MATERIALS",02/10/2020,7349375872,5.52,LYRECO UK LTD
OXFORDSHIRE CC,CORPORATE CORE,REGISTRAR,MATERIALS,02/10/2020,7349375432,39.95,AMZNMKTPLACE
OXFORDSHIRE CC,"CHILDRENS, YOUNG PEOPLE AND FAMILIES",NORTH FSS- BANBURY,PAYMENT TO GOVERNMENT DEPARTMENTS,02/10/2020,7349375442,83.25,GEN REGISTER OFFICE
OXFORDSHIRE CC,"CHILDRENS, YOUNG PEOPLE AND FAMILIES",THAME E&A HOME,CATERING,02/10/2020,7349375444,50.00,TGI FRIDAY'S
OXFORDSHIRE CC,SOCIAL AND COMMUNITY SERVICES,"	MUSEUMS COLLECTIONS",CATERING PROVISIONS,02/10/2020,7349375446,3.12,MILK&MORE
OXFORDSHIRE CC,CORPORATE CORE,,"SUPPLIES, STATIONERY AND MATERIALS",02/10/2020,7349375878,220.50,LYRECO UK LTD
OXFORDSHIRE CC,CORPORATE CORE,,"SUPPLIES, STATIONERY AND MATERIALS",02/10/2020,7349375884,289.92,LYRECO UK LTD
OXFORDSHIRE CC,SOCIAL AND COMMUNITY SERVICES,CSS BICESTER,MATERIALS,02/10/2020,7349375454,3.99,AMZNMKTPLACE
OXFORDSHIRE CC,SOCIAL AND COMMUNITY SERVICES,CSS BICESTER,MATERIALS,02/10/2020,7349375456,63.18,AMZNMKTPLACE
OXFORDSHIRE CC,"CHILDRENS, YOUNG PEOPLE AND FAMILIES",SOUTH FSS STATUTORY - ABINGDON,PAYMENTS TO TRANSPORT OPERATORS,02/10/2020,7349375384,28.48,TRAINLINE
OXFORDSHIRE CC,"CHILDRENS, YOUNG PEOPLE AND FAMILIES",SOUTH FSS STATUTORY - ABINGDON,PAYMENT TO GOVERNMENT DEPARTMENTS,02/10/2020,7349375386,25.00,GEN REGISTER OFFICE
OXFORDSHIRE CC,"CHILDRENS, YOUNG PEOPLE AND FAMILIES","	LEAVING CARE SOUTH",OTHER EXPENSES,02/10/2020,7349375776,118.95,ASDA STORE 4442
OXFORDSHIRE CC,"CHILDRENS, YOUNG PEOPLE AND FAMILIES","	LEAVING CARE SOUTH",OTHER EXPENSES,02/10/2020,7349375778,39.69,LIDL GB WALLINGFORD
OXFORDSHIRE CC,SOCIAL AND COMMUNITY SERVICES,LOOKED AFTER NORTH,MATERIALS,02/10/2020,7349375534,119.00,AMZNMKTPLACE
OXFORDSHIRE CC,SOCIAL AND COMMUNITY SERVICES,LOOKED AFTER NORTH,MATERIALS,02/10/2020,7349375536,53.99,AMZNMKTPLACE
OXFORDSHIRE CC,"CHILDRENS, YOUNG PEOPLE AND FAMILIES","	LEAVING CARE NORTH",FURNITURE,02/10/2020,7349375540,399.00,DAKO FURNITURE LTD
OXFORDSHIRE CC,ENVIRONMENT AND ECONOMY,"	KNIGHTS COURT",CATERING PROVISIONS,02/10/2020,7349375542,2.98,CO-OPERATIVE FOOD
OXFORDSHIRE CC,"CHILDRENS, YOUNG PEOPLE AND FAMILIES","	OCCG GRANT",CATERING,02/10/2020,7349375566,3.75,COSTA COFFEE 43039930
OXFORDSHIRE CC,CORPORATE CORE,"MARKETING, COMMUNICATIONS & ENGAGEMENT","PUBLICITY, PROMOTIONS AND ADVERTISEMENT",01/10/2020,7345134204,227.99,FACEBK HCGZZWE9Z2
OXFORDSHIRE CC,"CHILDRENS, YOUNG PEOPLE AND FAMILIES",UASC 16&17,OTHER EXPENSES,01/10/2020,7345134232,37.99,PUREGYM LIMITED
OXFORDSHIRE CC,"CHILDRENS, YOUNG PEOPLE AND FAMILIES","	OCCG GRANT",FURNITURE,01/10/2020,7345134238,7.98,CO-OPERATIVE FOOD
OXFORDSHIRE CC,"CHILDRENS, YOUNG PEOPLE AND FAMILIES","	LOOKED AFTER CITY 2",PAYMENTS TO TRANSPORT OPERATORS,01/10/2020,7345134374,7.00,WWW.GWR.COM
OXFORDSHIRE CC,"CHILDRENS, YOUNG PEOPLE AND FAMILIES",NORTH FSS- WITNEY,HIRE OF ACCOMMODATION AND FACILITIES,01/10/2020,7345133590,35.00,PREMIER INN
